{"text_format":"1","workbook":"xlsx","n_sheets":8,"sheets":["ClientCommande","CommandeJour","CommandeFacturation","Liste des produits","Liste des clients","ClientsProduits","Ref","Instructions"],"not_rendered":{"charts":0,"images":0,"macros":1,"external_links":1,"defined_names":5,"comments":0,"pivot_tables":0},"unopened":[],"bounds":{"document_bytes":16777216,"sheet_cells":100000,"rows_first":2000,"rows_last":500,"rows_between":2000,"halvings":0,"cell_chars":16384,"cell_head_chars":4096},"cells_cut":0,"cells_raw":0,"read":"whole","date_system":"1900"}

{"sheet":"ClientCommande","index":0,"n_rows":44,"n_cols":8,"rows_kept":44,"cut":false,"hidden":false,"merged":[]}
[null,null,null,null,"Commande standard"]
[]
[null,null,null,null,"Client","12 - f"]
[]
[null,null,null,null,"Date du jour",{"$f":"TODAY()","v":"2016-06-03"}]
[null,null,null,null,"Jour de livraison","2016-06-04"]
[]
[null,null,null,null,{"$f":"COUNTIF(ClientsProduits!$B$1:$B$423,$F$3)","v":5}]
[]
["Heure","No & nom Client","Date du jour","Jour de livraison","No item Std","Code et nom produit","Quantité","Commentaire"]
[{"$f":"NOW()","v":42524.518741550928},{"$f":"$F$3","v":"12 - f"},{"$f":"$F$5","v":"2016-06-03"},{"$f":"$F$6","v":"2016-06-04"},1,{"$f":"IF($E11<=$E$8,OFFSET(ClientsProduits!$B$1,MATCH($F$3,ClientsProduits!$B$1:$B$423,0)-1,2,1,1),\"\")","v":"5000 - Baguette levain (unité) (280 gr.)"},55,"test"]
[{"$f":"NOW()","v":42524.518741550928},{"$f":"$F$3","v":"12 - f"},{"$f":"$F$5","v":"2016-06-03"},{"$f":"$F$6","v":"2016-06-04"},2,{"$f":"IF($E12<=$E$8,OFFSET(ClientsProduits!$B$1,MATCH($F$3,ClientsProduits!$B$1:$B$423,0),2,1,1),\"\")","v":"4202 - Pain banique tranché  (unité) (500 gr.)"},55,1]
[42524.518741550928,"12 - f","2016-06-03","2016-06-04",3,{"$f":"IF($E13<=$E$8,OFFSET(ClientsProduits!$B$1,MATCH($F$3,ClientsProduits!$B$1:$B$423,0)+1,2,1,1),\"\")","v":"4203 - Pain banique non tranché (unité) (500 gr.)"},55,"test"]
[42524.518741550928,"12 - f","2016-06-03","2016-06-04",4,{"$f":"IF($E14<=$E$8,OFFSET(ClientsProduits!$B$1,MATCH($F$3,ClientsProduits!$B$1:$B$423,0)+2,2,1,1),\"\")","v":"6000 - Baguette levain (x 25) (280 gr.)"},55,"sdg"]
[42524.518741550928,"12 - f","2016-06-03","2016-06-04",5,{"$f":"IF($E15<=$E$8,OFFSET(ClientsProduits!$B$1,MATCH($F$3,ClientsProduits!$B$1:$B$423,0)+3,2,1,1),\"\")","v":"5201 - Grosse miche non tranchée (unité) (600 gr.)"},55,"sdg"]
[42524.518741550928,"12 - f","2016-06-03","2016-06-04",6,{"$f":"IF($E16<=$E$8,OFFSET(ClientsProduits!$B$1,MATCH($F$3,ClientsProduits!$B$1:$B$423,0)+4,2,1,1),\"\")","v":""}]
[42524.518741550928,"12 - f","2016-06-03","2016-06-04",7,{"$f":"IF($E17<=$E$8,OFFSET(ClientsProduits!$B$1,MATCH($F$3,ClientsProduits!$B$1:$B$423,0)+5,2,1,1),\"\")","v":""}]
[42524.518741550928,"12 - f","2016-06-03","2016-06-04",8,{"$f":"IF($E18<=$E$8,OFFSET(ClientsProduits!$B$1,MATCH($F$3,ClientsProduits!$B$1:$B$423,0)+6,2,1,1),\"\")","v":""}]
[42524.518741550928,"12 - f","2016-06-03","2016-06-04",9,{"$f":"IF($E19<=$E$8,OFFSET(ClientsProduits!$B$1,MATCH($F$3,ClientsProduits!$B$1:$B$423,0)+7,2,1,1),\"\")","v":""}]
[42524.518741550928,"12 - f","2016-06-03","2016-06-04",10,{"$f":"IF($E20<=$E$8,OFFSET(ClientsProduits!$B$1,MATCH($F$3,ClientsProduits!$B$1:$B$423,0)+8,2,1,1),\"\")","v":""}]
[42524.518741550928,"12 - f","2016-06-03","2016-06-04",11,{"$f":"IF($E21<=$E$8,OFFSET(ClientsProduits!$B$1,MATCH($F$3,ClientsProduits!$B$1:$B$423,0)+9,2,1,1),\"\")","v":""}]
[42524.518741550928,"12 - f","2016-06-03","2016-06-04",12,{"$f":"IF($E22<=$E$8,OFFSET(ClientsProduits!$B$1,MATCH($F$3,ClientsProduits!$B$1:$B$423,0)+10,2,1,1),\"\")","v":""}]
[42524.518741550928,"12 - f","2016-06-03","2016-06-04",13,{"$f":"IF($E23<=$E$8,OFFSET(ClientsProduits!$B$1,MATCH($F$3,ClientsProduits!$B$1:$B$423,0)+11,2,1,1),\"\")","v":""}]
[42524.518741550928,"12 - f","2016-06-03","2016-06-04",14,{"$f":"IF($E24<=$E$8,OFFSET(ClientsProduits!$B$1,MATCH($F$3,ClientsProduits!$B$1:$B$423,0)+12,2,1,1),\"\")","v":""}]
[42524.518741550928,"12 - f","2016-06-03","2016-06-04",15,{"$f":"IF($E25<=$E$8,OFFSET(ClientsProduits!$B$1,MATCH($F$3,ClientsProduits!$B$1:$B$423,0)+13,2,1,1),\"\")","v":""}]
[]
[null,null,null,null,"Commande spéciale"]
[]
["Heure","No & nom Client","Date du jour","Jour de livraison","No item Sp","Code et nom produit","Quantité","Commentaire"]
[{"$f":"NOW()","v":42524.518741550928},{"$f":"$F$3","v":"12 - f"},{"$f":"$F$5","v":"2016-06-03"},{"$f":"$F$6","v":"2016-06-04"},1]
[{"$f":"NOW()","v":42524.518741550928},"12 - f","2016-06-03","2016-06-04",2]
[42524.518741550928,"12 - f","2016-06-03","2016-06-04",3]
[42524.518741550928,"12 - f","2016-06-03","2016-06-04",4]
[42524.518741550928,"12 - f","2016-06-03","2016-06-04",5]
[42524.518741550928,"12 - f","2016-06-03","2016-06-04",6]
[42524.518741550928,"12 - f","2016-06-03","2016-06-04",7]
[42524.518741550928,"12 - f","2016-06-03","2016-06-04",8]
[42524.518741550928,"12 - f","2016-06-03","2016-06-04",9]
[42524.518741550928,"12 - f","2016-06-03","2016-06-04",10]
[42524.518741550928,"12 - f","2016-06-03","2016-06-04",11]
[42524.518741550928,"12 - f","2016-06-03","2016-06-04",12]
[42524.518741550928,"12 - f","2016-06-03","2016-06-04",13]
[42524.518741550928,"12 - f","2016-06-03","2016-06-04",14]
[42524.518741550928,"12 - f","2016-06-03","2016-06-04",15]

{"sheet":"CommandeJour","index":1,"n_rows":6,"n_cols":8,"rows_kept":6,"cut":false,"hidden":false,"merged":[]}
[]
[]
[]
[]
[]
["Heure","NoNomClient","Date de commande","Date de livraison","No item","Code et nom produit","Quantité","Commentaire"]

{"sheet":"CommandeFacturation","index":2,"n_rows":110,"n_cols":22,"rows_kept":110,"cut":false,"hidden":false,"merged":[]}
[]
[]
[]
[]
[]
["Heure","NoNomClient","Date de commande","Date de livraison","No item","Code et nom produit","Quantité","Commentaire","Catégorie","No client","Adresse livraison","Contact","Téléphone","Ordre livraison","Heure2","NoNomClient3","Date de commande4","Date de livraison5","No item6","Code et nom produit7","Quantité8","Commentaire9"]
[42524.516706249997,"12 - f","2016-06-03","2016-06-04",1,"5000 - Baguette levain (unité) (280 gr.)",55,"test",{"$f":"VLOOKUP(CommandeFacturation[[#This Row],[Code et nom produit]],Produits[[Code et nom produit]:[Catégorie]],3,FALSE)","v":"Frais"},{"$f":"VLOOKUP(CommandeFacturation[[#This Row],[NoNomClient]],Clients[[#All],[No et nom client]:[No client2]],2,FALSE)","v":12},{"$f":"VLOOKUP(CommandeFacturation[[#This Row],[No client]],Clients[[#All],[No Client]:[Téléphone]],4,FALSE)","v":0},{"$f":"VLOOKUP(CommandeFacturation[[#This Row],[No client]],Clients[[#All],[No Client]:[Téléphone]],3,FALSE)","v":0},{"$f":"VLOOKUP(CommandeFacturation[[#This Row],[No client]],Clients[[#All],[No Client]:[Téléphone]],7,FALSE)","v":"418 694-1030"},{"$f":"VLOOKUP(CommandeFacturation[[#This Row],[No client]],Clients[#All],10,FALSE)","v":0},42523.640241550929,"1 - Archibald - Lac-Beauport","2016-06-02","2016-06-04",1,"6000 - Baguette levain (x 25) (280 gr.)",56]
[42524.516706249997,"12 - f","2016-06-03","2016-06-04",2,"4202 - Pain banique tranché  (unité) (500 gr.)",55,1,{"$f":"VLOOKUP(CommandeFacturation[[#This Row],[Code et nom produit]],Produits[[Code et nom produit]:[Catégorie]],3,FALSE)","v":"Fait"},{"$f":"VLOOKUP(CommandeFacturation[[#This Row],[NoNomClient]],Clients[[#All],[No et nom client]:[No client2]],2,FALSE)","v":12},{"$f":"VLOOKUP(CommandeFacturation[[#This Row],[No client]],Clients[[#All],[No Client]:[Téléphone]],4,FALSE)","v":0},{"$f":"VLOOKUP(CommandeFacturation[[#This Row],[No client]],Clients[[#All],[No Client]:[Téléphone]],3,FALSE)","v":0},{"$f":"VLOOKUP(CommandeFacturation[[#This Row],[No client]],Clients[[#All],[No Client]:[Téléphone]],7,FALSE)","v":"418 694-1030"},{"$f":"VLOOKUP(CommandeFacturation[[#This Row],[No client]],Clients[#All],10,FALSE)","v":0},42523.640241550929,"1 - Archibald - Lac-Beauport","2016-06-02","2016-06-04",2,"2000 - Burger brioché nature (x 12) (65 gr.)",56]
[42524.516706249997,"12 - f","2016-06-03","2016-06-04",3,"4203 - Pain banique non tranché (unité) (500 gr.)",55,"test",{"$f":"VLOOKUP(CommandeFacturation[[#This Row],[Code et nom produit]],Produits[[Code et nom produit]:[Catégorie]],3,FALSE)","v":"Fait"},{"$f":"VLOOKUP(CommandeFacturation[[#This Row],[NoNomClient]],Clients[[#All],[No et nom client]:[No client2]],2,FALSE)","v":12},{"$f":"VLOOKUP(CommandeFacturation[[#This Row],[No client]],Clients[[#All],[No Client]:[Téléphone]],4,FALSE)","v":0},{"$f":"VLOOKUP(CommandeFacturation[[#This Row],[No client]],Clients[[#All],[No Client]:[Téléphone]],3,FALSE)","v":0},{"$f":"VLOOKUP(CommandeFacturation[[#This Row],[No client]],Clients[[#All],[No Client]:[Téléphone]],7,FALSE)","v":"418 694-1030"},{"$f":"VLOOKUP(CommandeFacturation[[#This Row],[No client]],Clients[#All],10,FALSE)","v":0},42523.640241550929,"1 - Archibald - Lac-Beauport","2016-06-02","2016-06-04",3,"4006 - Pain ménage graines autrichiennes tranché large  (unité) (90",56]
[42524.516706249997,"12 - f","2016-06-03","2016-06-04",4,"6000 - Baguette levain (x 25) (280 gr.)",55,"sdg",{"$f":"VLOOKUP(CommandeFacturation[[#This Row],[Code et nom produit]],Produits[[Code et nom produit]:[Catégorie]],3,FALSE)","v":"Congelé"},{"$f":"VLOOKUP(CommandeFacturation[[#This Row],[NoNomClient]],Clients[[#All],[No et nom client]:[No client2]],2,FALSE)","v":12},{"$f":"VLOOKUP(CommandeFacturation[[#This Row],[No client]],Clients[[#All],[No Client]:[Téléphone]],4,FALSE)","v":0},{"$f":"VLOOKUP(CommandeFacturation[[#This Row],[No client]],Clients[[#All],[No Client]:[Téléphone]],3,FALSE)","v":0},{"$f":"VLOOKUP(CommandeFacturation[[#This Row],[No client]],Clients[[#All],[No Client]:[Téléphone]],7,FALSE)","v":"418 694-1030"},{"$f":"VLOOKUP(CommandeFacturation[[#This Row],[No client]],Clients[#All],10,FALSE)","v":0},42523.639316319444,"1 - Archibald - Lac-Beauport","2016-06-02","2016-06-04",1,"6000 - Baguette levain (x 25) (280 gr.)",55]
[42524.516706249997,"12 - f","2016-06-03","2016-06-04",5,"5201 - Grosse miche non tranchée (unité) (600 gr.)",55,"sdg",{"$f":"VLOOKUP(CommandeFacturation[[#This Row],[Code et nom produit]],Produits[[Code et nom produit]:[Catégorie]],3,FALSE)","v":"Frais"},{"$f":"VLOOKUP(CommandeFacturation[[#This Row],[NoNomClient]],Clients[[#All],[No et nom client]:[No client2]],2,FALSE)","v":12},{"$f":"VLOOKUP(CommandeFacturation[[#This Row],[No client]],Clients[[#All],[No Client]:[Téléphone]],4,FALSE)","v":0},{"$f":"VLOOKUP(CommandeFacturation[[#This Row],[No client]],Clients[[#All],[No Client]:[Téléphone]],3,FALSE)","v":0},{"$f":"VLOOKUP(CommandeFacturation[[#This Row],[No client]],Clients[[#All],[No Client]:[Téléphone]],7,FALSE)","v":"418 694-1030"},{"$f":"VLOOKUP(CommandeFacturation[[#This Row],[No client]],Clients[#All],10,FALSE)","v":0},42524.479912152776,"10 - Casa Grecque - Sainte-Foy","2016-06-03","2016-06-04",1,"3500 - Baguette de blé Casa (unité) (400 gr.)",23]
[42524.500536342595,"12 - f","2016-06-03","2016-06-04",5,"5201 - Grosse miche non tranchée (unité) (600 gr.)",2,null,{"$f":"VLOOKUP(CommandeFacturation[[#This Row],[Code et nom produit]],Produits[[Code et nom produit]:[Catégorie]],3,FALSE)","v":"Frais"},{"$f":"VLOOKUP(CommandeFacturation[[#This Row],[NoNomClient]],Clients[[#All],[No et nom client]:[No client2]],2,FALSE)","v":12},{"$f":"VLOOKUP(CommandeFacturation[[#This Row],[No client]],Clients[[#All],[No Client]:[Téléphone]],4,FALSE)","v":0},{"$f":"VLOOKUP(CommandeFacturation[[#This Row],[No client]],Clients[[#All],[No Client]:[Téléphone]],3,FALSE)","v":0},{"$f":"VLOOKUP(CommandeFacturation[[#This Row],[No client]],Clients[[#All],[No Client]:[Téléphone]],7,FALSE)","v":"418 694-1030"},{"$f":"VLOOKUP(CommandeFacturation[[#This Row],[No client]],Clients[#All],10,FALSE)","v":0},42524.480209490743,"10 - Casa Grecque - Sainte-Foy","2016-06-03","2016-06-06",1,"3500 - Baguette de blé Casa (unité) (400 gr.)",23]
[null,null,null,null,null,null,null,null,{"$f":"VLOOKUP(CommandeFacturation[[#This Row],[Code et nom produit]],Produits[[Code et nom produit]:[Catégorie]],3,FALSE)","v":{"$error":"#N/A"}},{"$f":"VLOOKUP(CommandeFacturation[[#This Row],[NoNomClient]],Clients[[#All],[No et nom client]:[No client2]],2,FALSE)","v":{"$error":"#N/A"}},{"$f":"VLOOKUP(CommandeFacturation[[#This Row],[No client]],Clients[[#All],[No Client]:[Téléphone]],4,FALSE)","v":{"$error":"#N/A"}},{"$f":"VLOOKUP(CommandeFacturation[[#This Row],[No client]],Clients[[#All],[No Client]:[Téléphone]],3,FALSE)","v":{"$error":"#N/A"}},{"$f":"VLOOKUP(CommandeFacturation[[#This Row],[No client]],Clients[[#All],[No Client]:[Téléphone]],7,FALSE)","v":{"$error":"#N/A"}},{"$f":"VLOOKUP(CommandeFacturation[[#This Row],[No client]],Clients[#All],10,FALSE)","v":{"$error":"#N/A"}},42524.477647800923,"10 - Casa Grecque - Sainte-Foy","2016-06-03","2016-06-04",1,"3500 - Baguette de blé Casa (unité) (400 gr.)",22]
[null,null,null,null,null,null,null,null,{"$f":"VLOOKUP(CommandeFacturation[[#This Row],[Code et nom produit]],Produits[[Code et nom produit]:[Catégorie]],3,FALSE)","v":{"$error":"#N/A"}},{"$f":"VLOOKUP(CommandeFacturation[[#This Row],[NoNomClient]],Clients[[#All],[No et nom client]:[No client2]],2,FALSE)","v":{"$error":"#N/A"}},{"$f":"VLOOKUP(CommandeFacturation[[#This Row],[No client]],Clients[[#All],[No Client]:[Téléphone]],4,FALSE)","v":{"$error":"#N/A"}},{"$f":"VLOOKUP(CommandeFacturation[[#This Row],[No client]],Clients[[#All],[No Client]:[Téléphone]],3,FALSE)","v":{"$error":"#N/A"}},{"$f":"VLOOKUP(CommandeFacturation[[#This Row],[No client]],Clients[[#All],[No Client]:[Téléphone]],7,FALSE)","v":{"$error":"#N/A"}},{"$f":"VLOOKUP(CommandeFacturation[[#This Row],[No client]],Clients[#All],10,FALSE)","v":{"$error":"#N/A"}},42524.480064467592,"10 - Casa Grecque - Sainte-Foy","2016-06-03","2016-06-05",1,"3500 - Baguette de blé Casa (unité) (400 gr.)",22]
[null,null,null,null,null,null,null,null,{"$f":"VLOOKUP(CommandeFacturation[[#This Row],[Code et nom produit]],Produits[[Code et nom produit]:[Catégorie]],3,FALSE)","v":{"$error":"#N/A"}},{"$f":"VLOOKUP(CommandeFacturation[[#This Row],[NoNomClient]],Clients[[#All],[No et nom client]:[No client2]],2,FALSE)","v":{"$error":"#N/A"}},{"$f":"VLOOKUP(CommandeFacturation[[#This Row],[No client]],Clients[[#All],[No Client]:[Téléphone]],4,FALSE)","v":{"$error":"#N/A"}},{"$f":"VLOOKUP(CommandeFacturation[[#This Row],[No client]],Clients[[#All],[No Client]:[Téléphone]],3,FALSE)","v":{"$error":"#N/A"}},{"$f":"VLOOKUP(CommandeFacturation[[#This Row],[No client]],Clients[[#All],[No Client]:[Téléphone]],7,FALSE)","v":{"$error":"#N/A"}},{"$f":"VLOOKUP(CommandeFacturation[[#This Row],[No client]],Clients[#All],10,FALSE)","v":{"$error":"#N/A"}},42524.473952430555,"1 - Archibald - Lac-Beauport","2016-06-03","2016-06-04",1,"6000 - Baguette levain (x 25) (280 gr.)",5]
[null,null,null,null,null,null,null,null,{"$f":"VLOOKUP(CommandeFacturation[[#This Row],[Code et nom produit]],Produits[[Code et nom produit]:[Catégorie]],3,FALSE)","v":{"$error":"#N/A"}},{"$f":"VLOOKUP(CommandeFacturation[[#This Row],[NoNomClient]],Clients[[#All],[No et nom client]:[No client2]],2,FALSE)","v":{"$error":"#N/A"}},{"$f":"VLOOKUP(CommandeFacturation[[#This Row],[No client]],Clients[[#All],[No Client]:[Téléphone]],4,FALSE)","v":{"$error":"#N/A"}},{"$f":"VLOOKUP(CommandeFacturation[[#This Row],[No client]],Clients[[#All],[No Client]:[Téléphone]],3,FALSE)","v":{"$error":"#N/A"}},{"$f":"VLOOKUP(CommandeFacturation[[#This Row],[No client]],Clients[[#All],[No Client]:[Téléphone]],7,FALSE)","v":{"$error":"#N/A"}},{"$f":"VLOOKUP(CommandeFacturation[[#This Row],[No client]],Clients[#All],10,FALSE)","v":{"$error":"#N/A"}},42524.473952430555,"1 - Archibald - Lac-Beauport","2016-06-03","2016-06-04",2,"2000 - Burger brioché nature (x 12) (65 gr.)",5]
[null,null,null,null,null,null,null,null,{"$f":"VLOOKUP(CommandeFacturation[[#This Row],[Code et nom produit]],Produits[[Code et nom produit]:[Catégorie]],3,FALSE)","v":{"$error":"#N/A"}},{"$f":"VLOOKUP(CommandeFacturation[[#This Row],[NoNomClient]],Clients[[#All],[No et nom client]:[No client2]],2,FALSE)","v":{"$error":"#N/A"}},{"$f":"VLOOKUP(CommandeFacturation[[#This Row],[No client]],Clients[[#All],[No Client]:[Téléphone]],4,FALSE)","v":{"$error":"#N/A"}},{"$f":"VLOOKUP(CommandeFacturation[[#This Row],[No client]],Clients[[#All],[No Client]:[Téléphone]],3,FALSE)","v":{"$error":"#N/A"}},{"$f":"VLOOKUP(CommandeFacturation[[#This Row],[No client]],Clients[[#All],[No Client]:[Téléphone]],7,FALSE)","v":{"$error":"#N/A"}},{"$f":"VLOOKUP(CommandeFacturation[[#This Row],[No client]],Clients[#All],10,FALSE)","v":{"$error":"#N/A"}},42524.473952430555,"1 - Archibald - Lac-Beauport","2016-06-03","2016-06-04",3,"4006 - Pain ménage graines autrichiennes tranché large  (unité) (90",5]
[null,null,null,null,null,null,null,null,{"$f":"VLOOKUP(CommandeFacturation[[#This Row],[Code et nom produit]],Produits[[Code et nom produit]:[Catégorie]],3,FALSE)","v":{"$error":"#N/A"}},{"$f":"VLOOKUP(CommandeFacturation[[#This Row],[NoNomClient]],Clients[[#All],[No et nom client]:[No client2]],2,FALSE)","v":{"$error":"#N/A"}},{"$f":"VLOOKUP(CommandeFacturation[[#This Row],[No client]],Clients[[#All],[No Client]:[Téléphone]],4,FALSE)","v":{"$error":"#N/A"}},{"$f":"VLOOKUP(CommandeFacturation[[#This Row],[No client]],Clients[[#All],[No Client]:[Téléphone]],3,FALSE)","v":{"$error":"#N/A"}},{"$f":"VLOOKUP(CommandeFacturation[[#This Row],[No client]],Clients[[#All],[No Client]:[Téléphone]],7,FALSE)","v":{"$error":"#N/A"}},{"$f":"VLOOKUP(CommandeFacturation[[#This Row],[No client]],Clients[#All],10,FALSE)","v":{"$error":"#N/A"}},42524.474370023148,"5 - Cactus Restaurant Bar","2016-06-03","2016-06-04",1,"2007 - Burger pavot (x 12) (65 gr.)",5]
[null,null,null,null,null,null,null,null,{"$f":"VLOOKUP(CommandeFacturation[[#This Row],[Code et nom produit]],Produits[[Code et nom produit]:[Catégorie]],3,FALSE)","v":{"$error":"#N/A"}},{"$f":"VLOOKUP(CommandeFacturation[[#This Row],[NoNomClient]],Clients[[#All],[No et nom client]:[No client2]],2,FALSE)","v":{"$error":"#N/A"}},{"$f":"VLOOKUP(CommandeFacturation[[#This Row],[No client]],Clients[[#All],[No Client]:[Téléphone]],4,FALSE)","v":{"$error":"#N/A"}},{"$f":"VLOOKUP(CommandeFacturation[[#This Row],[No client]],Clients[[#All],[No Client]:[Téléphone]],3,FALSE)","v":{"$error":"#N/A"}},{"$f":"VLOOKUP(CommandeFacturation[[#This Row],[No client]],Clients[[#All],[No Client]:[Téléphone]],7,FALSE)","v":{"$error":"#N/A"}},{"$f":"VLOOKUP(CommandeFacturation[[#This Row],[No client]],Clients[#All],10,FALSE)","v":{"$error":"#N/A"}},42524.474370023148,"5 - Cactus Restaurant Bar","2016-06-03","2016-06-04",2,"2101 - Mini-burger pavot (x 24) (35 gr.)",5]
[null,null,null,null,null,null,null,null,{"$f":"VLOOKUP(CommandeFacturation[[#This Row],[Code et nom produit]],Produits[[Code et nom produit]:[Catégorie]],3,FALSE)","v":{"$error":"#N/A"}},{"$f":"VLOOKUP(CommandeFacturation[[#This Row],[NoNomClient]],Clients[[#All],[No et nom client]:[No client2]],2,FALSE)","v":{"$error":"#N/A"}},{"$f":"VLOOKUP(CommandeFacturation[[#This Row],[No client]],Clients[[#All],[No Client]:[Téléphone]],4,FALSE)","v":{"$error":"#N/A"}},{"$f":"VLOOKUP(CommandeFacturation[[#This Row],[No client]],Clients[[#All],[No Client]:[Téléphone]],3,FALSE)","v":{"$error":"#N/A"}},{"$f":"VLOOKUP(CommandeFacturation[[#This Row],[No client]],Clients[[#All],[No Client]:[Téléphone]],7,FALSE)","v":{"$error":"#N/A"}},{"$f":"VLOOKUP(CommandeFacturation[[#This Row],[No client]],Clients[#All],10,FALSE)","v":{"$error":"#N/A"}},42524.474370023148,"5 - Cactus Restaurant Bar","2016-06-03","2016-06-04",3,"4101 - Petit belge blé tranché (unité) (500 gr.)",5]
[null,null,null,null,null,null,null,null,{"$f":"VLOOKUP(CommandeFacturation[[#This Row],[Code et nom produit]],Produits[[Code et nom produit]:[Catégorie]],3,FALSE)","v":{"$error":"#N/A"}},{"$f":"VLOOKUP(CommandeFacturation[[#This Row],[NoNomClient]],Clients[[#All],[No et nom client]:[No client2]],2,FALSE)","v":{"$error":"#N/A"}},{"$f":"VLOOKUP(CommandeFacturation[[#This Row],[No client]],Clients[[#All],[No Client]:[Téléphone]],4,FALSE)","v":{"$error":"#N/A"}},{"$f":"VLOOKUP(CommandeFacturation[[#This Row],[No client]],Clients[[#All],[No Client]:[Téléphone]],3,FALSE)","v":{"$error":"#N/A"}},{"$f":"VLOOKUP(CommandeFacturation[[#This Row],[No client]],Clients[[#All],[No Client]:[Téléphone]],7,FALSE)","v":{"$error":"#N/A"}},{"$f":"VLOOKUP(CommandeFacturation[[#This Row],[No client]],Clients[#All],10,FALSE)","v":{"$error":"#N/A"}},42524.474773611109,"10 - Casa Grecque - Sainte-Foy","2016-06-03","2016-06-04",1,"3500 - Baguette de blé Casa (unité) (400 gr.)",5]
[null,null,null,null,null,null,null,null,{"$f":"VLOOKUP(CommandeFacturation[[#This Row],[Code et nom produit]],Produits[[Code et nom produit]:[Catégorie]],3,FALSE)","v":{"$error":"#N/A"}},{"$f":"VLOOKUP(CommandeFacturation[[#This Row],[NoNomClient]],Clients[[#All],[No et nom client]:[No client2]],2,FALSE)","v":{"$error":"#N/A"}},{"$f":"VLOOKUP(CommandeFacturation[[#This Row],[No client]],Clients[[#All],[No Client]:[Téléphone]],4,FALSE)","v":{"$error":"#N/A"}},{"$f":"VLOOKUP(CommandeFacturation[[#This Row],[No client]],Clients[[#All],[No Client]:[Téléphone]],3,FALSE)","v":{"$error":"#N/A"}},{"$f":"VLOOKUP(CommandeFacturation[[#This Row],[No client]],Clients[[#All],[No Client]:[Téléphone]],7,FALSE)","v":{"$error":"#N/A"}},{"$f":"VLOOKUP(CommandeFacturation[[#This Row],[No client]],Clients[#All],10,FALSE)","v":{"$error":"#N/A"}},42524.475921064812,"31 - L'Entrecôte Saint-Jean","2016-06-03","2016-06-04",1,"5000 - Baguette levain (unité) (280 gr.)",5,"aa"]
[null,null,null,null,null,null,null,null,{"$f":"VLOOKUP(CommandeFacturation[[#This Row],[Code et nom produit]],Produits[[Code et nom produit]:[Catégorie]],3,FALSE)","v":{"$error":"#N/A"}},{"$f":"VLOOKUP(CommandeFacturation[[#This Row],[NoNomClient]],Clients[[#All],[No et nom client]:[No client2]],2,FALSE)","v":{"$error":"#N/A"}},{"$f":"VLOOKUP(CommandeFacturation[[#This Row],[No client]],Clients[[#All],[No Client]:[Téléphone]],4,FALSE)","v":{"$error":"#N/A"}},{"$f":"VLOOKUP(CommandeFacturation[[#This Row],[No client]],Clients[[#All],[No Client]:[Téléphone]],3,FALSE)","v":{"$error":"#N/A"}},{"$f":"VLOOKUP(CommandeFacturation[[#This Row],[No client]],Clients[[#All],[No Client]:[Téléphone]],7,FALSE)","v":{"$error":"#N/A"}},{"$f":"VLOOKUP(CommandeFacturation[[#This Row],[No client]],Clients[#All],10,FALSE)","v":{"$error":"#N/A"}},42524.475921064812,"31 - L'Entrecôte Saint-Jean","2016-06-03","2016-06-04",2,"6000 - Baguette levain (x 25) (280 gr.)",5,"aa"]
[null,null,null,null,null,null,null,null,{"$f":"VLOOKUP(CommandeFacturation[[#This Row],[Code et nom produit]],Produits[[Code et nom produit]:[Catégorie]],3,FALSE)","v":{"$error":"#N/A"}},{"$f":"VLOOKUP(CommandeFacturation[[#This Row],[NoNomClient]],Clients[[#All],[No et nom client]:[No client2]],2,FALSE)","v":{"$error":"#N/A"}},{"$f":"VLOOKUP(CommandeFacturation[[#This Row],[No client]],Clients[[#All],[No Client]:[Téléphone]],4,FALSE)","v":{"$error":"#N/A"}},{"$f":"VLOOKUP(CommandeFacturation[[#This Row],[No client]],Clients[[#All],[No Client]:[Téléphone]],3,FALSE)","v":{"$error":"#N/A"}},{"$f":"VLOOKUP(CommandeFacturation[[#This Row],[No client]],Clients[[#All],[No Client]:[Téléphone]],7,FALSE)","v":{"$error":"#N/A"}},{"$f":"VLOOKUP(CommandeFacturation[[#This Row],[No client]],Clients[#All],10,FALSE)","v":{"$error":"#N/A"}},42524.475993055552,"31 - L'Entrecôte Saint-Jean","2016-06-03","2016-06-04",1,"5000 - Baguette levain (unité) (280 gr.)",5,"aa"]
[null,null,null,null,null,null,null,null,{"$f":"VLOOKUP(CommandeFacturation[[#This Row],[Code et nom produit]],Produits[[Code et nom produit]:[Catégorie]],3,FALSE)","v":{"$error":"#N/A"}},{"$f":"VLOOKUP(CommandeFacturation[[#This Row],[NoNomClient]],Clients[[#All],[No et nom client]:[No client2]],2,FALSE)","v":{"$error":"#N/A"}},{"$f":"VLOOKUP(CommandeFacturation[[#This Row],[No client]],Clients[[#All],[No Client]:[Téléphone]],4,FALSE)","v":{"$error":"#N/A"}},{"$f":"VLOOKUP(CommandeFacturation[[#This Row],[No client]],Clients[[#All],[No Client]:[Téléphone]],3,FALSE)","v":{"$error":"#N/A"}},{"$f":"VLOOKUP(CommandeFacturation[[#This Row],[No client]],Clients[[#All],[No Client]:[Téléphone]],7,FALSE)","v":{"$error":"#N/A"}},{"$f":"VLOOKUP(CommandeFacturation[[#This Row],[No client]],Clients[#All],10,FALSE)","v":{"$error":"#N/A"}},42524.475993055552,"31 - L'Entrecôte Saint-Jean","2016-06-03","2016-06-04",2,"6000 - Baguette levain (x 25) (280 gr.)",5,"aa"]
[null,null,null,null,null,null,null,null,{"$f":"VLOOKUP(CommandeFacturation[[#This Row],[Code et nom produit]],Produits[[Code et nom produit]:[Catégorie]],3,FALSE)","v":{"$error":"#N/A"}},{"$f":"VLOOKUP(CommandeFacturation[[#This Row],[NoNomClient]],Clients[[#All],[No et nom client]:[No client2]],2,FALSE)","v":{"$error":"#N/A"}},{"$f":"VLOOKUP(CommandeFacturation[[#This Row],[No client]],Clients[[#All],[No Client]:[Téléphone]],4,FALSE)","v":{"$error":"#N/A"}},{"$f":"VLOOKUP(CommandeFacturation[[#This Row],[No client]],Clients[[#All],[No Client]:[Téléphone]],3,FALSE)","v":{"$error":"#N/A"}},{"$f":"VLOOKUP(CommandeFacturation[[#This Row],[No client]],Clients[[#All],[No Client]:[Téléphone]],7,FALSE)","v":{"$error":"#N/A"}},{"$f":"VLOOKUP(CommandeFacturation[[#This Row],[No client]],Clients[#All],10,FALSE)","v":{"$error":"#N/A"}},42519.72563414352,"13 - Cosmos Café inc. Grande-Allée","2016-05-29","2016-06-02",4,"4002 - Pain céréales tranché large (unité) (500 gr.)",4]
[null,null,null,null,null,null,null,null,{"$f":"VLOOKUP(CommandeFacturation[[#This Row],[Code et nom produit]],Produits[[Code et nom produit]:[Catégorie]],3,FALSE)","v":{"$error":"#N/A"}},{"$f":"VLOOKUP(CommandeFacturation[[#This Row],[NoNomClient]],Clients[[#All],[No et nom client]:[No client2]],2,FALSE)","v":{"$error":"#N/A"}},{"$f":"VLOOKUP(CommandeFacturation[[#This Row],[No client]],Clients[[#All],[No Client]:[Téléphone]],4,FALSE)","v":{"$error":"#N/A"}},{"$f":"VLOOKUP(CommandeFacturation[[#This Row],[No client]],Clients[[#All],[No Client]:[Téléphone]],3,FALSE)","v":{"$error":"#N/A"}},{"$f":"VLOOKUP(CommandeFacturation[[#This Row],[No client]],Clients[[#All],[No Client]:[Téléphone]],7,FALSE)","v":{"$error":"#N/A"}},{"$f":"VLOOKUP(CommandeFacturation[[#This Row],[No client]],Clients[#All],10,FALSE)","v":{"$error":"#N/A"}},42523.637892708335,"1 - Archibald - Lac-Beauport","2016-06-02","2016-06-03",2,"2000 - Burger brioché nature (x 12) (65 gr.)",4,"af"]
[null,null,null,null,null,null,null,null,{"$f":"VLOOKUP(CommandeFacturation[[#This Row],[Code et nom produit]],Produits[[Code et nom produit]:[Catégorie]],3,FALSE)","v":{"$error":"#N/A"}},{"$f":"VLOOKUP(CommandeFacturation[[#This Row],[NoNomClient]],Clients[[#All],[No et nom client]:[No client2]],2,FALSE)","v":{"$error":"#N/A"}},{"$f":"VLOOKUP(CommandeFacturation[[#This Row],[No client]],Clients[[#All],[No Client]:[Téléphone]],4,FALSE)","v":{"$error":"#N/A"}},{"$f":"VLOOKUP(CommandeFacturation[[#This Row],[No client]],Clients[[#All],[No Client]:[Téléphone]],3,FALSE)","v":{"$error":"#N/A"}},{"$f":"VLOOKUP(CommandeFacturation[[#This Row],[No client]],Clients[[#All],[No Client]:[Téléphone]],7,FALSE)","v":{"$error":"#N/A"}},{"$f":"VLOOKUP(CommandeFacturation[[#This Row],[No client]],Clients[#All],10,FALSE)","v":{"$error":"#N/A"}},42519.724814699075,"13 - Cosmos Café inc. Grande-Allée","2016-05-29","2016-06-02",3,"3000 - Panini roquette (x 12) (100 gr.)",3]
[null,null,null,null,null,null,null,null,{"$f":"VLOOKUP(CommandeFacturation[[#This Row],[Code et nom produit]],Produits[[Code et nom produit]:[Catégorie]],3,FALSE)","v":{"$error":"#N/A"}},{"$f":"VLOOKUP(CommandeFacturation[[#This Row],[NoNomClient]],Clients[[#All],[No et nom client]:[No client2]],2,FALSE)","v":{"$error":"#N/A"}},{"$f":"VLOOKUP(CommandeFacturation[[#This Row],[No client]],Clients[[#All],[No Client]:[Téléphone]],4,FALSE)","v":{"$error":"#N/A"}},{"$f":"VLOOKUP(CommandeFacturation[[#This Row],[No client]],Clients[[#All],[No Client]:[Téléphone]],3,FALSE)","v":{"$error":"#N/A"}},{"$f":"VLOOKUP(CommandeFacturation[[#This Row],[No client]],Clients[[#All],[No Client]:[Téléphone]],7,FALSE)","v":{"$error":"#N/A"}},{"$f":"VLOOKUP(CommandeFacturation[[#This Row],[No client]],Clients[#All],10,FALSE)","v":{"$error":"#N/A"}},42519.725201041663,"13 - Cosmos Café inc. Grande-Allée","2016-05-29","2016-06-02",3,"3000 - Panini roquette (x 12) (100 gr.)",3]
[null,null,null,null,null,null,null,null,{"$f":"VLOOKUP(CommandeFacturation[[#This Row],[Code et nom produit]],Produits[[Code et nom produit]:[Catégorie]],3,FALSE)","v":{"$error":"#N/A"}},{"$f":"VLOOKUP(CommandeFacturation[[#This Row],[NoNomClient]],Clients[[#All],[No et nom client]:[No client2]],2,FALSE)","v":{"$error":"#N/A"}},{"$f":"VLOOKUP(CommandeFacturation[[#This Row],[No client]],Clients[[#All],[No Client]:[Téléphone]],4,FALSE)","v":{"$error":"#N/A"}},{"$f":"VLOOKUP(CommandeFacturation[[#This Row],[No client]],Clients[[#All],[No Client]:[Téléphone]],3,FALSE)","v":{"$error":"#N/A"}},{"$f":"VLOOKUP(CommandeFacturation[[#This Row],[No client]],Clients[[#All],[No Client]:[Téléphone]],7,FALSE)","v":{"$error":"#N/A"}},{"$f":"VLOOKUP(CommandeFacturation[[#This Row],[No client]],Clients[#All],10,FALSE)","v":{"$error":"#N/A"}},42519.725485416668,"13 - Cosmos Café inc. Grande-Allée","2016-05-29","2016-06-02",1,"1101 - Mini-croissant (x 12) (30 gr.)",2]
[null,null,null,null,null,null,null,null,{"$f":"VLOOKUP(CommandeFacturation[[#This Row],[Code et nom produit]],Produits[[Code et nom produit]:[Catégorie]],3,FALSE)","v":{"$error":"#N/A"}},{"$f":"VLOOKUP(CommandeFacturation[[#This Row],[NoNomClient]],Clients[[#All],[No et nom client]:[No client2]],2,FALSE)","v":{"$error":"#N/A"}},{"$f":"VLOOKUP(CommandeFacturation[[#This Row],[No client]],Clients[[#All],[No Client]:[Téléphone]],4,FALSE)","v":{"$error":"#N/A"}},{"$f":"VLOOKUP(CommandeFacturation[[#This Row],[No client]],Clients[[#All],[No Client]:[Téléphone]],3,FALSE)","v":{"$error":"#N/A"}},{"$f":"VLOOKUP(CommandeFacturation[[#This Row],[No client]],Clients[[#All],[No Client]:[Téléphone]],7,FALSE)","v":{"$error":"#N/A"}},{"$f":"VLOOKUP(CommandeFacturation[[#This Row],[No client]],Clients[#All],10,FALSE)","v":{"$error":"#N/A"}},42519.72563414352,"13 - Cosmos Café inc. Grande-Allée","2016-05-29","2016-06-02",2,"1200 - Brioche vendéenne (unité) (45 gr.)",2]
[null,null,null,null,null,null,null,null,{"$f":"VLOOKUP(CommandeFacturation[[#This Row],[Code et nom produit]],Produits[[Code et nom produit]:[Catégorie]],3,FALSE)","v":{"$error":"#N/A"}},{"$f":"VLOOKUP(CommandeFacturation[[#This Row],[NoNomClient]],Clients[[#All],[No et nom client]:[No client2]],2,FALSE)","v":{"$error":"#N/A"}},{"$f":"VLOOKUP(CommandeFacturation[[#This Row],[No client]],Clients[[#All],[No Client]:[Téléphone]],4,FALSE)","v":{"$error":"#N/A"}},{"$f":"VLOOKUP(CommandeFacturation[[#This Row],[No client]],Clients[[#All],[No Client]:[Téléphone]],3,FALSE)","v":{"$error":"#N/A"}},{"$f":"VLOOKUP(CommandeFacturation[[#This Row],[No client]],Clients[[#All],[No Client]:[Téléphone]],7,FALSE)","v":{"$error":"#N/A"}},{"$f":"VLOOKUP(CommandeFacturation[[#This Row],[No client]],Clients[#All],10,FALSE)","v":{"$error":"#N/A"}},42519.725677662034,"13 - Cosmos Café inc. Grande-Allée","2016-05-29","2016-06-02",1,"1101 - Mini-croissant (x 12) (30 gr.)",2]
[null,null,null,null,null,null,null,null,{"$f":"VLOOKUP(CommandeFacturation[[#This Row],[Code et nom produit]],Produits[[Code et nom produit]:[Catégorie]],3,FALSE)","v":{"$error":"#N/A"}},{"$f":"VLOOKUP(CommandeFacturation[[#This Row],[NoNomClient]],Clients[[#All],[No et nom client]:[No client2]],2,FALSE)","v":{"$error":"#N/A"}},{"$f":"VLOOKUP(CommandeFacturation[[#This Row],[No client]],Clients[[#All],[No Client]:[Téléphone]],4,FALSE)","v":{"$error":"#N/A"}},{"$f":"VLOOKUP(CommandeFacturation[[#This Row],[No client]],Clients[[#All],[No Client]:[Téléphone]],3,FALSE)","v":{"$error":"#N/A"}},{"$f":"VLOOKUP(CommandeFacturation[[#This Row],[No client]],Clients[[#All],[No Client]:[Téléphone]],7,FALSE)","v":{"$error":"#N/A"}},{"$f":"VLOOKUP(CommandeFacturation[[#This Row],[No client]],Clients[#All],10,FALSE)","v":{"$error":"#N/A"}},42519.740017361109,"6 - À l'Improviste","2016-05-29","2016-06-02",2,"6000 - Baguette levain (x 25) (280 gr.)",2]
[null,null,null,null,null,null,null,null,{"$f":"VLOOKUP(CommandeFacturation[[#This Row],[Code et nom produit]],Produits[[Code et nom produit]:[Catégorie]],3,FALSE)","v":{"$error":"#N/A"}},{"$f":"VLOOKUP(CommandeFacturation[[#This Row],[NoNomClient]],Clients[[#All],[No et nom client]:[No client2]],2,FALSE)","v":{"$error":"#N/A"}},{"$f":"VLOOKUP(CommandeFacturation[[#This Row],[No client]],Clients[[#All],[No Client]:[Téléphone]],4,FALSE)","v":{"$error":"#N/A"}},{"$f":"VLOOKUP(CommandeFacturation[[#This Row],[No client]],Clients[[#All],[No Client]:[Téléphone]],3,FALSE)","v":{"$error":"#N/A"}},{"$f":"VLOOKUP(CommandeFacturation[[#This Row],[No client]],Clients[[#All],[No Client]:[Téléphone]],7,FALSE)","v":{"$error":"#N/A"}},{"$f":"VLOOKUP(CommandeFacturation[[#This Row],[No client]],Clients[#All],10,FALSE)","v":{"$error":"#N/A"}},42519.740380208335,"6 - À l'Improviste","2016-05-29","2016-06-02",1,"1101 - Mini-croissant (x 12) (30 gr.)",2]
[null,null,null,null,null,null,null,null,{"$f":"VLOOKUP(CommandeFacturation[[#This Row],[Code et nom produit]],Produits[[Code et nom produit]:[Catégorie]],3,FALSE)","v":{"$error":"#N/A"}},{"$f":"VLOOKUP(CommandeFacturation[[#This Row],[NoNomClient]],Clients[[#All],[No et nom client]:[No client2]],2,FALSE)","v":{"$error":"#N/A"}},{"$f":"VLOOKUP(CommandeFacturation[[#This Row],[No client]],Clients[[#All],[No Client]:[Téléphone]],4,FALSE)","v":{"$error":"#N/A"}},{"$f":"VLOOKUP(CommandeFacturation[[#This Row],[No client]],Clients[[#All],[No Client]:[Téléphone]],3,FALSE)","v":{"$error":"#N/A"}},{"$f":"VLOOKUP(CommandeFacturation[[#This Row],[No client]],Clients[[#All],[No Client]:[Téléphone]],7,FALSE)","v":{"$error":"#N/A"}},{"$f":"VLOOKUP(CommandeFacturation[[#This Row],[No client]],Clients[#All],10,FALSE)","v":{"$error":"#N/A"}},42519.747226967593,"6 - À l'Improviste","2016-05-29","2016-06-02",2,"6000 - Baguette levain (x 25) (280 gr.)",2]
[null,null,null,null,null,null,null,null,{"$f":"VLOOKUP(CommandeFacturation[[#This Row],[Code et nom produit]],Produits[[Code et nom produit]:[Catégorie]],3,FALSE)","v":{"$error":"#N/A"}},{"$f":"VLOOKUP(CommandeFacturation[[#This Row],[NoNomClient]],Clients[[#All],[No et nom client]:[No client2]],2,FALSE)","v":{"$error":"#N/A"}},{"$f":"VLOOKUP(CommandeFacturation[[#This Row],[No client]],Clients[[#All],[No Client]:[Téléphone]],4,FALSE)","v":{"$error":"#N/A"}},{"$f":"VLOOKUP(CommandeFacturation[[#This Row],[No client]],Clients[[#All],[No Client]:[Téléphone]],3,FALSE)","v":{"$error":"#N/A"}},{"$f":"VLOOKUP(CommandeFacturation[[#This Row],[No client]],Clients[[#All],[No Client]:[Téléphone]],7,FALSE)","v":{"$error":"#N/A"}},{"$f":"VLOOKUP(CommandeFacturation[[#This Row],[No client]],Clients[#All],10,FALSE)","v":{"$error":"#N/A"}},42519.747753009258,"6 - À l'Improviste","2016-05-29","2016-06-02",1,"1101 - Mini-croissant (x 12) (30 gr.)",2]
[null,null,null,null,null,null,null,null,{"$f":"VLOOKUP(CommandeFacturation[[#This Row],[Code et nom produit]],Produits[[Code et nom produit]:[Catégorie]],3,FALSE)","v":{"$error":"#N/A"}},{"$f":"VLOOKUP(CommandeFacturation[[#This Row],[NoNomClient]],Clients[[#All],[No et nom client]:[No client2]],2,FALSE)","v":{"$error":"#N/A"}},{"$f":"VLOOKUP(CommandeFacturation[[#This Row],[No client]],Clients[[#All],[No Client]:[Téléphone]],4,FALSE)","v":{"$error":"#N/A"}},{"$f":"VLOOKUP(CommandeFacturation[[#This Row],[No client]],Clients[[#All],[No Client]:[Téléphone]],3,FALSE)","v":{"$error":"#N/A"}},{"$f":"VLOOKUP(CommandeFacturation[[#This Row],[No client]],Clients[[#All],[No Client]:[Téléphone]],7,FALSE)","v":{"$error":"#N/A"}},{"$f":"VLOOKUP(CommandeFacturation[[#This Row],[No client]],Clients[#All],10,FALSE)","v":{"$error":"#N/A"}},42519.747836458337,"6 - À l'Improviste","2016-05-29","2016-06-02",2,"6000 - Baguette levain (x 25) (280 gr.)",2]
[null,null,null,null,null,null,null,null,{"$f":"VLOOKUP(CommandeFacturation[[#This Row],[Code et nom produit]],Produits[[Code et nom produit]:[Catégorie]],3,FALSE)","v":{"$error":"#N/A"}},{"$f":"VLOOKUP(CommandeFacturation[[#This Row],[NoNomClient]],Clients[[#All],[No et nom client]:[No client2]],2,FALSE)","v":{"$error":"#N/A"}},{"$f":"VLOOKUP(CommandeFacturation[[#This Row],[No client]],Clients[[#All],[No Client]:[Téléphone]],4,FALSE)","v":{"$error":"#N/A"}},{"$f":"VLOOKUP(CommandeFacturation[[#This Row],[No client]],Clients[[#All],[No Client]:[Téléphone]],3,FALSE)","v":{"$error":"#N/A"}},{"$f":"VLOOKUP(CommandeFacturation[[#This Row],[No client]],Clients[[#All],[No Client]:[Téléphone]],7,FALSE)","v":{"$error":"#N/A"}},{"$f":"VLOOKUP(CommandeFacturation[[#This Row],[No client]],Clients[#All],10,FALSE)","v":{"$error":"#N/A"}},42519.747837037037,"6 - À l'Improviste","2016-05-29","2016-06-02",1,"1101 - Mini-croissant (x 12) (30 gr.)",2]
[null,null,null,null,null,null,null,null,{"$f":"VLOOKUP(CommandeFacturation[[#This Row],[Code et nom produit]],Produits[[Code et nom produit]:[Catégorie]],3,FALSE)","v":{"$error":"#N/A"}},{"$f":"VLOOKUP(CommandeFacturation[[#This Row],[NoNomClient]],Clients[[#All],[No et nom client]:[No client2]],2,FALSE)","v":{"$error":"#N/A"}},{"$f":"VLOOKUP(CommandeFacturation[[#This Row],[No client]],Clients[[#All],[No Client]:[Téléphone]],4,FALSE)","v":{"$error":"#N/A"}},{"$f":"VLOOKUP(CommandeFacturation[[#This Row],[No client]],Clients[[#All],[No Client]:[Téléphone]],3,FALSE)","v":{"$error":"#N/A"}},{"$f":"VLOOKUP(CommandeFacturation[[#This Row],[No client]],Clients[[#All],[No Client]:[Téléphone]],7,FALSE)","v":{"$error":"#N/A"}},{"$f":"VLOOKUP(CommandeFacturation[[#This Row],[No client]],Clients[#All],10,FALSE)","v":{"$error":"#N/A"}},42519.751426967596,"6 - À l'Improviste","2016-05-29","2016-06-02",2,"6000 - Baguette levain (x 25) (280 gr.)",2]
[null,null,null,null,null,null,null,null,{"$f":"VLOOKUP(CommandeFacturation[[#This Row],[Code et nom produit]],Produits[[Code et nom produit]:[Catégorie]],3,FALSE)","v":{"$error":"#N/A"}},{"$f":"VLOOKUP(CommandeFacturation[[#This Row],[NoNomClient]],Clients[[#All],[No et nom client]:[No client2]],2,FALSE)","v":{"$error":"#N/A"}},{"$f":"VLOOKUP(CommandeFacturation[[#This Row],[No client]],Clients[[#All],[No Client]:[Téléphone]],4,FALSE)","v":{"$error":"#N/A"}},{"$f":"VLOOKUP(CommandeFacturation[[#This Row],[No client]],Clients[[#All],[No Client]:[Téléphone]],3,FALSE)","v":{"$error":"#N/A"}},{"$f":"VLOOKUP(CommandeFacturation[[#This Row],[No client]],Clients[[#All],[No Client]:[Téléphone]],7,FALSE)","v":{"$error":"#N/A"}},{"$f":"VLOOKUP(CommandeFacturation[[#This Row],[No client]],Clients[#All],10,FALSE)","v":{"$error":"#N/A"}},42519.751766203706,"6 - À l'Improviste","2016-05-29","2016-06-02",1,"1101 - Mini-croissant (x 12) (30 gr.)",2]
[null,null,null,null,null,null,null,null,{"$f":"VLOOKUP(CommandeFacturation[[#This Row],[Code et nom produit]],Produits[[Code et nom produit]:[Catégorie]],3,FALSE)","v":{"$error":"#N/A"}},{"$f":"VLOOKUP(CommandeFacturation[[#This Row],[NoNomClient]],Clients[[#All],[No et nom client]:[No client2]],2,FALSE)","v":{"$error":"#N/A"}},{"$f":"VLOOKUP(CommandeFacturation[[#This Row],[No client]],Clients[[#All],[No Client]:[Téléphone]],4,FALSE)","v":{"$error":"#N/A"}},{"$f":"VLOOKUP(CommandeFacturation[[#This Row],[No client]],Clients[[#All],[No Client]:[Téléphone]],3,FALSE)","v":{"$error":"#N/A"}},{"$f":"VLOOKUP(CommandeFacturation[[#This Row],[No client]],Clients[[#All],[No Client]:[Téléphone]],7,FALSE)","v":{"$error":"#N/A"}},{"$f":"VLOOKUP(CommandeFacturation[[#This Row],[No client]],Clients[#All],10,FALSE)","v":{"$error":"#N/A"}},42519.75176712963,"6 - À l'Improviste","2016-05-29","2016-06-02",2,"6000 - Baguette levain (x 25) (280 gr.)",2]
[null,null,null,null,null,null,null,null,{"$f":"VLOOKUP(CommandeFacturation[[#This Row],[Code et nom produit]],Produits[[Code et nom produit]:[Catégorie]],3,FALSE)","v":{"$error":"#N/A"}},{"$f":"VLOOKUP(CommandeFacturation[[#This Row],[NoNomClient]],Clients[[#All],[No et nom client]:[No client2]],2,FALSE)","v":{"$error":"#N/A"}},{"$f":"VLOOKUP(CommandeFacturation[[#This Row],[No client]],Clients[[#All],[No Client]:[Téléphone]],4,FALSE)","v":{"$error":"#N/A"}},{"$f":"VLOOKUP(CommandeFacturation[[#This Row],[No client]],Clients[[#All],[No Client]:[Téléphone]],3,FALSE)","v":{"$error":"#N/A"}},{"$f":"VLOOKUP(CommandeFacturation[[#This Row],[No client]],Clients[[#All],[No Client]:[Téléphone]],7,FALSE)","v":{"$error":"#N/A"}},{"$f":"VLOOKUP(CommandeFacturation[[#This Row],[No client]],Clients[#All],10,FALSE)","v":{"$error":"#N/A"}},42519.751832986112,"6 - À l'Improviste","2016-05-29","2016-06-02",1,"1101 - Mini-croissant (x 12) (30 gr.)",2]
[null,null,null,null,null,null,null,null,{"$f":"VLOOKUP(CommandeFacturation[[#This Row],[Code et nom produit]],Produits[[Code et nom produit]:[Catégorie]],3,FALSE)","v":{"$error":"#N/A"}},{"$f":"VLOOKUP(CommandeFacturation[[#This Row],[NoNomClient]],Clients[[#All],[No et nom client]:[No client2]],2,FALSE)","v":{"$error":"#N/A"}},{"$f":"VLOOKUP(CommandeFacturation[[#This Row],[No client]],Clients[[#All],[No Client]:[Téléphone]],4,FALSE)","v":{"$error":"#N/A"}},{"$f":"VLOOKUP(CommandeFacturation[[#This Row],[No client]],Clients[[#All],[No Client]:[Téléphone]],3,FALSE)","v":{"$error":"#N/A"}},{"$f":"VLOOKUP(CommandeFacturation[[#This Row],[No client]],Clients[[#All],[No Client]:[Téléphone]],7,FALSE)","v":{"$error":"#N/A"}},{"$f":"VLOOKUP(CommandeFacturation[[#This Row],[No client]],Clients[#All],10,FALSE)","v":{"$error":"#N/A"}},42519.751834027775,"6 - À l'Improviste","2016-05-29","2016-06-02",2,"6000 - Baguette levain (x 25) (280 gr.)",2]
[null,null,null,null,null,null,null,null,{"$f":"VLOOKUP(CommandeFacturation[[#This Row],[Code et nom produit]],Produits[[Code et nom produit]:[Catégorie]],3,FALSE)","v":{"$error":"#N/A"}},{"$f":"VLOOKUP(CommandeFacturation[[#This Row],[NoNomClient]],Clients[[#All],[No et nom client]:[No client2]],2,FALSE)","v":{"$error":"#N/A"}},{"$f":"VLOOKUP(CommandeFacturation[[#This Row],[No client]],Clients[[#All],[No Client]:[Téléphone]],4,FALSE)","v":{"$error":"#N/A"}},{"$f":"VLOOKUP(CommandeFacturation[[#This Row],[No client]],Clients[[#All],[No Client]:[Téléphone]],3,FALSE)","v":{"$error":"#N/A"}},{"$f":"VLOOKUP(CommandeFacturation[[#This Row],[No client]],Clients[[#All],[No Client]:[Téléphone]],7,FALSE)","v":{"$error":"#N/A"}},{"$f":"VLOOKUP(CommandeFacturation[[#This Row],[No client]],Clients[#All],10,FALSE)","v":{"$error":"#N/A"}},42519.751885648147,"6 - À l'Improviste","2016-05-29","2016-06-02",1,"1101 - Mini-croissant (x 12) (30 gr.)",2]
[null,null,null,null,null,null,null,null,{"$f":"VLOOKUP(CommandeFacturation[[#This Row],[Code et nom produit]],Produits[[Code et nom produit]:[Catégorie]],3,FALSE)","v":{"$error":"#N/A"}},{"$f":"VLOOKUP(CommandeFacturation[[#This Row],[NoNomClient]],Clients[[#All],[No et nom client]:[No client2]],2,FALSE)","v":{"$error":"#N/A"}},{"$f":"VLOOKUP(CommandeFacturation[[#This Row],[No client]],Clients[[#All],[No Client]:[Téléphone]],4,FALSE)","v":{"$error":"#N/A"}},{"$f":"VLOOKUP(CommandeFacturation[[#This Row],[No client]],Clients[[#All],[No Client]:[Téléphone]],3,FALSE)","v":{"$error":"#N/A"}},{"$f":"VLOOKUP(CommandeFacturation[[#This Row],[No client]],Clients[[#All],[No Client]:[Téléphone]],7,FALSE)","v":{"$error":"#N/A"}},{"$f":"VLOOKUP(CommandeFacturation[[#This Row],[No client]],Clients[#All],10,FALSE)","v":{"$error":"#N/A"}},42519.751886458333,"6 - À l'Improviste","2016-05-29","2016-06-02",2,"6000 - Baguette levain (x 25) (280 gr.)",2]
[null,null,null,null,null,null,null,null,{"$f":"VLOOKUP(CommandeFacturation[[#This Row],[Code et nom produit]],Produits[[Code et nom produit]:[Catégorie]],3,FALSE)","v":{"$error":"#N/A"}},{"$f":"VLOOKUP(CommandeFacturation[[#This Row],[NoNomClient]],Clients[[#All],[No et nom client]:[No client2]],2,FALSE)","v":{"$error":"#N/A"}},{"$f":"VLOOKUP(CommandeFacturation[[#This Row],[No client]],Clients[[#All],[No Client]:[Téléphone]],4,FALSE)","v":{"$error":"#N/A"}},{"$f":"VLOOKUP(CommandeFacturation[[#This Row],[No client]],Clients[[#All],[No Client]:[Téléphone]],3,FALSE)","v":{"$error":"#N/A"}},{"$f":"VLOOKUP(CommandeFacturation[[#This Row],[No client]],Clients[[#All],[No Client]:[Téléphone]],7,FALSE)","v":{"$error":"#N/A"}},{"$f":"VLOOKUP(CommandeFacturation[[#This Row],[No client]],Clients[#All],10,FALSE)","v":{"$error":"#N/A"}},42519.751932175925,"6 - À l'Improviste","2016-05-29","2016-06-02",1,"1101 - Mini-croissant (x 12) (30 gr.)",2]
[null,null,null,null,null,null,null,null,{"$f":"VLOOKUP(CommandeFacturation[[#This Row],[Code et nom produit]],Produits[[Code et nom produit]:[Catégorie]],3,FALSE)","v":{"$error":"#N/A"}},{"$f":"VLOOKUP(CommandeFacturation[[#This Row],[NoNomClient]],Clients[[#All],[No et nom client]:[No client2]],2,FALSE)","v":{"$error":"#N/A"}},{"$f":"VLOOKUP(CommandeFacturation[[#This Row],[No client]],Clients[[#All],[No Client]:[Téléphone]],4,FALSE)","v":{"$error":"#N/A"}},{"$f":"VLOOKUP(CommandeFacturation[[#This Row],[No client]],Clients[[#All],[No Client]:[Téléphone]],3,FALSE)","v":{"$error":"#N/A"}},{"$f":"VLOOKUP(CommandeFacturation[[#This Row],[No client]],Clients[[#All],[No Client]:[Téléphone]],7,FALSE)","v":{"$error":"#N/A"}},{"$f":"VLOOKUP(CommandeFacturation[[#This Row],[No client]],Clients[#All],10,FALSE)","v":{"$error":"#N/A"}},42519.751933101848,"6 - À l'Improviste","2016-05-29","2016-06-02",2,"6000 - Baguette levain (x 25) (280 gr.)",2]
[null,null,null,null,null,null,null,null,{"$f":"VLOOKUP(CommandeFacturation[[#This Row],[Code et nom produit]],Produits[[Code et nom produit]:[Catégorie]],3,FALSE)","v":{"$error":"#N/A"}},{"$f":"VLOOKUP(CommandeFacturation[[#This Row],[NoNomClient]],Clients[[#All],[No et nom client]:[No client2]],2,FALSE)","v":{"$error":"#N/A"}},{"$f":"VLOOKUP(CommandeFacturation[[#This Row],[No client]],Clients[[#All],[No Client]:[Téléphone]],4,FALSE)","v":{"$error":"#N/A"}},{"$f":"VLOOKUP(CommandeFacturation[[#This Row],[No client]],Clients[[#All],[No Client]:[Téléphone]],3,FALSE)","v":{"$error":"#N/A"}},{"$f":"VLOOKUP(CommandeFacturation[[#This Row],[No client]],Clients[[#All],[No Client]:[Téléphone]],7,FALSE)","v":{"$error":"#N/A"}},{"$f":"VLOOKUP(CommandeFacturation[[#This Row],[No client]],Clients[#All],10,FALSE)","v":{"$error":"#N/A"}},42519.751969212964,"6 - À l'Improviste","2016-05-29","2016-06-02",1,"1101 - Mini-croissant (x 12) (30 gr.)",2]
[null,null,null,null,null,null,null,null,{"$f":"VLOOKUP(CommandeFacturation[[#This Row],[Code et nom produit]],Produits[[Code et nom produit]:[Catégorie]],3,FALSE)","v":{"$error":"#N/A"}},{"$f":"VLOOKUP(CommandeFacturation[[#This Row],[NoNomClient]],Clients[[#All],[No et nom client]:[No client2]],2,FALSE)","v":{"$error":"#N/A"}},{"$f":"VLOOKUP(CommandeFacturation[[#This Row],[No client]],Clients[[#All],[No Client]:[Téléphone]],4,FALSE)","v":{"$error":"#N/A"}},{"$f":"VLOOKUP(CommandeFacturation[[#This Row],[No client]],Clients[[#All],[No Client]:[Téléphone]],3,FALSE)","v":{"$error":"#N/A"}},{"$f":"VLOOKUP(CommandeFacturation[[#This Row],[No client]],Clients[[#All],[No Client]:[Téléphone]],7,FALSE)","v":{"$error":"#N/A"}},{"$f":"VLOOKUP(CommandeFacturation[[#This Row],[No client]],Clients[#All],10,FALSE)","v":{"$error":"#N/A"}},42519.751970138888,"6 - À l'Improviste","2016-05-29","2016-06-02",2,"6000 - Baguette levain (x 25) (280 gr.)",2]
[null,null,null,null,null,null,null,null,{"$f":"VLOOKUP(CommandeFacturation[[#This Row],[Code et nom produit]],Produits[[Code et nom produit]:[Catégorie]],3,FALSE)","v":{"$error":"#N/A"}},{"$f":"VLOOKUP(CommandeFacturation[[#This Row],[NoNomClient]],Clients[[#All],[No et nom client]:[No client2]],2,FALSE)","v":{"$error":"#N/A"}},{"$f":"VLOOKUP(CommandeFacturation[[#This Row],[No client]],Clients[[#All],[No Client]:[Téléphone]],4,FALSE)","v":{"$error":"#N/A"}},{"$f":"VLOOKUP(CommandeFacturation[[#This Row],[No client]],Clients[[#All],[No Client]:[Téléphone]],3,FALSE)","v":{"$error":"#N/A"}},{"$f":"VLOOKUP(CommandeFacturation[[#This Row],[No client]],Clients[[#All],[No Client]:[Téléphone]],7,FALSE)","v":{"$error":"#N/A"}},{"$f":"VLOOKUP(CommandeFacturation[[#This Row],[No client]],Clients[#All],10,FALSE)","v":{"$error":"#N/A"}},42519.752012152778,"6 - À l'Improviste","2016-05-29","2016-06-02",1,"1101 - Mini-croissant (x 12) (30 gr.)",2]
[null,null,null,null,null,null,null,null,{"$f":"VLOOKUP(CommandeFacturation[[#This Row],[Code et nom produit]],Produits[[Code et nom produit]:[Catégorie]],3,FALSE)","v":{"$error":"#N/A"}},{"$f":"VLOOKUP(CommandeFacturation[[#This Row],[NoNomClient]],Clients[[#All],[No et nom client]:[No client2]],2,FALSE)","v":{"$error":"#N/A"}},{"$f":"VLOOKUP(CommandeFacturation[[#This Row],[No client]],Clients[[#All],[No Client]:[Téléphone]],4,FALSE)","v":{"$error":"#N/A"}},{"$f":"VLOOKUP(CommandeFacturation[[#This Row],[No client]],Clients[[#All],[No Client]:[Téléphone]],3,FALSE)","v":{"$error":"#N/A"}},{"$f":"VLOOKUP(CommandeFacturation[[#This Row],[No client]],Clients[[#All],[No Client]:[Téléphone]],7,FALSE)","v":{"$error":"#N/A"}},{"$f":"VLOOKUP(CommandeFacturation[[#This Row],[No client]],Clients[#All],10,FALSE)","v":{"$error":"#N/A"}},42523.630969560189,"6 - À l'Improviste","2016-06-02","2016-06-03",2,"6000 - Baguette levain (x 25) (280 gr.)",2]
[null,null,null,null,null,null,null,null,{"$f":"VLOOKUP(CommandeFacturation[[#This Row],[Code et nom produit]],Produits[[Code et nom produit]:[Catégorie]],3,FALSE)","v":{"$error":"#N/A"}},{"$f":"VLOOKUP(CommandeFacturation[[#This Row],[NoNomClient]],Clients[[#All],[No et nom client]:[No client2]],2,FALSE)","v":{"$error":"#N/A"}},{"$f":"VLOOKUP(CommandeFacturation[[#This Row],[No client]],Clients[[#All],[No Client]:[Téléphone]],4,FALSE)","v":{"$error":"#N/A"}},{"$f":"VLOOKUP(CommandeFacturation[[#This Row],[No client]],Clients[[#All],[No Client]:[Téléphone]],3,FALSE)","v":{"$error":"#N/A"}},{"$f":"VLOOKUP(CommandeFacturation[[#This Row],[No client]],Clients[[#All],[No Client]:[Téléphone]],7,FALSE)","v":{"$error":"#N/A"}},{"$f":"VLOOKUP(CommandeFacturation[[#This Row],[No client]],Clients[#All],10,FALSE)","v":{"$error":"#N/A"}},42523.631040046297,"6 - À l'Improviste","2016-06-02","2016-06-03",1,"1101 - Mini-croissant (x 12) (30 gr.)",2]
[null,null,null,null,null,null,null,null,{"$f":"VLOOKUP(CommandeFacturation[[#This Row],[Code et nom produit]],Produits[[Code et nom produit]:[Catégorie]],3,FALSE)","v":{"$error":"#N/A"}},{"$f":"VLOOKUP(CommandeFacturation[[#This Row],[NoNomClient]],Clients[[#All],[No et nom client]:[No client2]],2,FALSE)","v":{"$error":"#N/A"}},{"$f":"VLOOKUP(CommandeFacturation[[#This Row],[No client]],Clients[[#All],[No Client]:[Téléphone]],4,FALSE)","v":{"$error":"#N/A"}},{"$f":"VLOOKUP(CommandeFacturation[[#This Row],[No client]],Clients[[#All],[No Client]:[Téléphone]],3,FALSE)","v":{"$error":"#N/A"}},{"$f":"VLOOKUP(CommandeFacturation[[#This Row],[No client]],Clients[[#All],[No Client]:[Téléphone]],7,FALSE)","v":{"$error":"#N/A"}},{"$f":"VLOOKUP(CommandeFacturation[[#This Row],[No client]],Clients[#All],10,FALSE)","v":{"$error":"#N/A"}},42519.724814699075,"13 - Cosmos Café inc. Grande-Allée","2016-05-29","2016-06-02",1,"2004 - Burger oignon (x 12) (65 gr.)",1,"Test 1"]
[null,null,null,null,null,null,null,null,{"$f":"VLOOKUP(CommandeFacturation[[#This Row],[Code et nom produit]],Produits[[Code et nom produit]:[Catégorie]],3,FALSE)","v":{"$error":"#N/A"}},{"$f":"VLOOKUP(CommandeFacturation[[#This Row],[NoNomClient]],Clients[[#All],[No et nom client]:[No client2]],2,FALSE)","v":{"$error":"#N/A"}},{"$f":"VLOOKUP(CommandeFacturation[[#This Row],[No client]],Clients[[#All],[No Client]:[Téléphone]],4,FALSE)","v":{"$error":"#N/A"}},{"$f":"VLOOKUP(CommandeFacturation[[#This Row],[No client]],Clients[[#All],[No Client]:[Téléphone]],3,FALSE)","v":{"$error":"#N/A"}},{"$f":"VLOOKUP(CommandeFacturation[[#This Row],[No client]],Clients[[#All],[No Client]:[Téléphone]],7,FALSE)","v":{"$error":"#N/A"}},{"$f":"VLOOKUP(CommandeFacturation[[#This Row],[No client]],Clients[#All],10,FALSE)","v":{"$error":"#N/A"}},42519.721177546293,"31 - L'Entrecôte Saint-Jean","2016-05-29","2016-05-30",1,"5000 - Baguette levain (unité) (280 gr.)",1,"Test 1"]
[null,null,null,null,null,null,null,null,{"$f":"VLOOKUP(CommandeFacturation[[#This Row],[Code et nom produit]],Produits[[Code et nom produit]:[Catégorie]],3,FALSE)","v":{"$error":"#N/A"}},{"$f":"VLOOKUP(CommandeFacturation[[#This Row],[NoNomClient]],Clients[[#All],[No et nom client]:[No client2]],2,FALSE)","v":{"$error":"#N/A"}},{"$f":"VLOOKUP(CommandeFacturation[[#This Row],[No client]],Clients[[#All],[No Client]:[Téléphone]],4,FALSE)","v":{"$error":"#N/A"}},{"$f":"VLOOKUP(CommandeFacturation[[#This Row],[No client]],Clients[[#All],[No Client]:[Téléphone]],3,FALSE)","v":{"$error":"#N/A"}},{"$f":"VLOOKUP(CommandeFacturation[[#This Row],[No client]],Clients[[#All],[No Client]:[Téléphone]],7,FALSE)","v":{"$error":"#N/A"}},{"$f":"VLOOKUP(CommandeFacturation[[#This Row],[No client]],Clients[#All],10,FALSE)","v":{"$error":"#N/A"}},42519.725201041663,"13 - Cosmos Café inc. Grande-Allée","2016-05-29","2016-06-02",1,"2004 - Burger oignon (x 12) (65 gr.)",1,"Test 1"]
[null,null,null,null,null,null,null,null,{"$f":"VLOOKUP(CommandeFacturation[[#This Row],[Code et nom produit]],Produits[[Code et nom produit]:[Catégorie]],3,FALSE)","v":{"$error":"#N/A"}},{"$f":"VLOOKUP(CommandeFacturation[[#This Row],[NoNomClient]],Clients[[#All],[No et nom client]:[No client2]],2,FALSE)","v":{"$error":"#N/A"}},{"$f":"VLOOKUP(CommandeFacturation[[#This Row],[No client]],Clients[[#All],[No Client]:[Téléphone]],4,FALSE)","v":{"$error":"#N/A"}},{"$f":"VLOOKUP(CommandeFacturation[[#This Row],[No client]],Clients[[#All],[No Client]:[Téléphone]],3,FALSE)","v":{"$error":"#N/A"}},{"$f":"VLOOKUP(CommandeFacturation[[#This Row],[No client]],Clients[[#All],[No Client]:[Téléphone]],7,FALSE)","v":{"$error":"#N/A"}},{"$f":"VLOOKUP(CommandeFacturation[[#This Row],[No client]],Clients[#All],10,FALSE)","v":{"$error":"#N/A"}},42519.72563414352,"13 - Cosmos Café inc. Grande-Allée","2016-05-29","2016-06-02",1,"2004 - Burger oignon (x 12) (65 gr.)",1,"Test 1"]
[null,null,null,null,null,null,null,null,{"$f":"VLOOKUP(CommandeFacturation[[#This Row],[Code et nom produit]],Produits[[Code et nom produit]:[Catégorie]],3,FALSE)","v":{"$error":"#N/A"}},{"$f":"VLOOKUP(CommandeFacturation[[#This Row],[NoNomClient]],Clients[[#All],[No et nom client]:[No client2]],2,FALSE)","v":{"$error":"#N/A"}},{"$f":"VLOOKUP(CommandeFacturation[[#This Row],[No client]],Clients[[#All],[No Client]:[Téléphone]],4,FALSE)","v":{"$error":"#N/A"}},{"$f":"VLOOKUP(CommandeFacturation[[#This Row],[No client]],Clients[[#All],[No Client]:[Téléphone]],3,FALSE)","v":{"$error":"#N/A"}},{"$f":"VLOOKUP(CommandeFacturation[[#This Row],[No client]],Clients[[#All],[No Client]:[Téléphone]],7,FALSE)","v":{"$error":"#N/A"}},{"$f":"VLOOKUP(CommandeFacturation[[#This Row],[No client]],Clients[#All],10,FALSE)","v":{"$error":"#N/A"}},42519.740017361109,"6 - À l'Improviste","2016-05-29","2016-06-02",1,"5000 - Baguette levain (unité) (280 gr.)",1,"Test 1"]
[null,null,null,null,null,null,null,null,{"$f":"VLOOKUP(CommandeFacturation[[#This Row],[Code et nom produit]],Produits[[Code et nom produit]:[Catégorie]],3,FALSE)","v":{"$error":"#N/A"}},{"$f":"VLOOKUP(CommandeFacturation[[#This Row],[NoNomClient]],Clients[[#All],[No et nom client]:[No client2]],2,FALSE)","v":{"$error":"#N/A"}},{"$f":"VLOOKUP(CommandeFacturation[[#This Row],[No client]],Clients[[#All],[No Client]:[Téléphone]],4,FALSE)","v":{"$error":"#N/A"}},{"$f":"VLOOKUP(CommandeFacturation[[#This Row],[No client]],Clients[[#All],[No Client]:[Téléphone]],3,FALSE)","v":{"$error":"#N/A"}},{"$f":"VLOOKUP(CommandeFacturation[[#This Row],[No client]],Clients[[#All],[No Client]:[Téléphone]],7,FALSE)","v":{"$error":"#N/A"}},{"$f":"VLOOKUP(CommandeFacturation[[#This Row],[No client]],Clients[#All],10,FALSE)","v":{"$error":"#N/A"}},42519.747226967593,"6 - À l'Improviste","2016-05-29","2016-06-02",1,"5000 - Baguette levain (unité) (280 gr.)",1,"Test 1"]
[null,null,null,null,null,null,null,null,{"$f":"VLOOKUP(CommandeFacturation[[#This Row],[Code et nom produit]],Produits[[Code et nom produit]:[Catégorie]],3,FALSE)","v":{"$error":"#N/A"}},{"$f":"VLOOKUP(CommandeFacturation[[#This Row],[NoNomClient]],Clients[[#All],[No et nom client]:[No client2]],2,FALSE)","v":{"$error":"#N/A"}},{"$f":"VLOOKUP(CommandeFacturation[[#This Row],[No client]],Clients[[#All],[No Client]:[Téléphone]],4,FALSE)","v":{"$error":"#N/A"}},{"$f":"VLOOKUP(CommandeFacturation[[#This Row],[No client]],Clients[[#All],[No Client]:[Téléphone]],3,FALSE)","v":{"$error":"#N/A"}},{"$f":"VLOOKUP(CommandeFacturation[[#This Row],[No client]],Clients[[#All],[No Client]:[Téléphone]],7,FALSE)","v":{"$error":"#N/A"}},{"$f":"VLOOKUP(CommandeFacturation[[#This Row],[No client]],Clients[#All],10,FALSE)","v":{"$error":"#N/A"}},42519.747836458337,"6 - À l'Improviste","2016-05-29","2016-06-02",1,"5000 - Baguette levain (unité) (280 gr.)",1,"Test 1"]
[null,null,null,null,null,null,null,null,{"$f":"VLOOKUP(CommandeFacturation[[#This Row],[Code et nom produit]],Produits[[Code et nom produit]:[Catégorie]],3,FALSE)","v":{"$error":"#N/A"}},{"$f":"VLOOKUP(CommandeFacturation[[#This Row],[NoNomClient]],Clients[[#All],[No et nom client]:[No client2]],2,FALSE)","v":{"$error":"#N/A"}},{"$f":"VLOOKUP(CommandeFacturation[[#This Row],[No client]],Clients[[#All],[No Client]:[Téléphone]],4,FALSE)","v":{"$error":"#N/A"}},{"$f":"VLOOKUP(CommandeFacturation[[#This Row],[No client]],Clients[[#All],[No Client]:[Téléphone]],3,FALSE)","v":{"$error":"#N/A"}},{"$f":"VLOOKUP(CommandeFacturation[[#This Row],[No client]],Clients[[#All],[No Client]:[Téléphone]],7,FALSE)","v":{"$error":"#N/A"}},{"$f":"VLOOKUP(CommandeFacturation[[#This Row],[No client]],Clients[#All],10,FALSE)","v":{"$error":"#N/A"}},42519.721177546293,"31 - L'Entrecôte Saint-Jean","2016-05-29","2016-05-30",1,"5000 - Baguette levain (unité) (280 gr.)",1,"Test 1"]
[null,null,null,null,null,null,null,null,{"$f":"VLOOKUP(CommandeFacturation[[#This Row],[Code et nom produit]],Produits[[Code et nom produit]:[Catégorie]],3,FALSE)","v":{"$error":"#N/A"}},{"$f":"VLOOKUP(CommandeFacturation[[#This Row],[NoNomClient]],Clients[[#All],[No et nom client]:[No client2]],2,FALSE)","v":{"$error":"#N/A"}},{"$f":"VLOOKUP(CommandeFacturation[[#This Row],[No client]],Clients[[#All],[No Client]:[Téléphone]],4,FALSE)","v":{"$error":"#N/A"}},{"$f":"VLOOKUP(CommandeFacturation[[#This Row],[No client]],Clients[[#All],[No Client]:[Téléphone]],3,FALSE)","v":{"$error":"#N/A"}},{"$f":"VLOOKUP(CommandeFacturation[[#This Row],[No client]],Clients[[#All],[No Client]:[Téléphone]],7,FALSE)","v":{"$error":"#N/A"}},{"$f":"VLOOKUP(CommandeFacturation[[#This Row],[No client]],Clients[#All],10,FALSE)","v":{"$error":"#N/A"}},42519.725201041663,"13 - Cosmos Café inc. Grande-Allée","2016-05-29","2016-06-02",1,"2004 - Burger oignon (x 12) (65 gr.)",1,"Test 1"]
[null,null,null,null,null,null,null,null,{"$f":"VLOOKUP(CommandeFacturation[[#This Row],[Code et nom produit]],Produits[[Code et nom produit]:[Catégorie]],3,FALSE)","v":{"$error":"#N/A"}},{"$f":"VLOOKUP(CommandeFacturation[[#This Row],[NoNomClient]],Clients[[#All],[No et nom client]:[No client2]],2,FALSE)","v":{"$error":"#N/A"}},{"$f":"VLOOKUP(CommandeFacturation[[#This Row],[No client]],Clients[[#All],[No Client]:[Téléphone]],4,FALSE)","v":{"$error":"#N/A"}},{"$f":"VLOOKUP(CommandeFacturation[[#This Row],[No client]],Clients[[#All],[No Client]:[Téléphone]],3,FALSE)","v":{"$error":"#N/A"}},{"$f":"VLOOKUP(CommandeFacturation[[#This Row],[No client]],Clients[[#All],[No Client]:[Téléphone]],7,FALSE)","v":{"$error":"#N/A"}},{"$f":"VLOOKUP(CommandeFacturation[[#This Row],[No client]],Clients[#All],10,FALSE)","v":{"$error":"#N/A"}},42519.72563414352,"13 - Cosmos Café inc. Grande-Allée","2016-05-29","2016-06-02",1,"2004 - Burger oignon (x 12) (65 gr.)",1,"Test 1"]
[null,null,null,null,null,null,null,null,{"$f":"VLOOKUP(CommandeFacturation[[#This Row],[Code et nom produit]],Produits[[Code et nom produit]:[Catégorie]],3,FALSE)","v":{"$error":"#N/A"}},{"$f":"VLOOKUP(CommandeFacturation[[#This Row],[NoNomClient]],Clients[[#All],[No et nom client]:[No client2]],2,FALSE)","v":{"$error":"#N/A"}},{"$f":"VLOOKUP(CommandeFacturation[[#This Row],[No client]],Clients[[#All],[No Client]:[Téléphone]],4,FALSE)","v":{"$error":"#N/A"}},{"$f":"VLOOKUP(CommandeFacturation[[#This Row],[No client]],Clients[[#All],[No Client]:[Téléphone]],3,FALSE)","v":{"$error":"#N/A"}},{"$f":"VLOOKUP(CommandeFacturation[[#This Row],[No client]],Clients[[#All],[No Client]:[Téléphone]],7,FALSE)","v":{"$error":"#N/A"}},{"$f":"VLOOKUP(CommandeFacturation[[#This Row],[No client]],Clients[#All],10,FALSE)","v":{"$error":"#N/A"}},42519.740017361109,"6 - À l'Improviste","2016-05-29","2016-06-02",1,"5000 - Baguette levain (unité) (280 gr.)",1,"Test 1"]
[null,null,null,null,null,null,null,null,{"$f":"VLOOKUP(CommandeFacturation[[#This Row],[Code et nom produit]],Produits[[Code et nom produit]:[Catégorie]],3,FALSE)","v":{"$error":"#N/A"}},{"$f":"VLOOKUP(CommandeFacturation[[#This Row],[NoNomClient]],Clients[[#All],[No et nom client]:[No client2]],2,FALSE)","v":{"$error":"#N/A"}},{"$f":"VLOOKUP(CommandeFacturation[[#This Row],[No client]],Clients[[#All],[No Client]:[Téléphone]],4,FALSE)","v":{"$error":"#N/A"}},{"$f":"VLOOKUP(CommandeFacturation[[#This Row],[No client]],Clients[[#All],[No Client]:[Téléphone]],3,FALSE)","v":{"$error":"#N/A"}},{"$f":"VLOOKUP(CommandeFacturation[[#This Row],[No client]],Clients[[#All],[No Client]:[Téléphone]],7,FALSE)","v":{"$error":"#N/A"}},{"$f":"VLOOKUP(CommandeFacturation[[#This Row],[No client]],Clients[#All],10,FALSE)","v":{"$error":"#N/A"}},42519.747226967593,"6 - À l'Improviste","2016-05-29","2016-06-02",1,"5000 - Baguette levain (unité) (280 gr.)",1,"Test 1"]
[null,null,null,null,null,null,null,null,{"$f":"VLOOKUP(CommandeFacturation[[#This Row],[Code et nom produit]],Produits[[Code et nom produit]:[Catégorie]],3,FALSE)","v":{"$error":"#N/A"}},{"$f":"VLOOKUP(CommandeFacturation[[#This Row],[NoNomClient]],Clients[[#All],[No et nom client]:[No client2]],2,FALSE)","v":{"$error":"#N/A"}},{"$f":"VLOOKUP(CommandeFacturation[[#This Row],[No client]],Clients[[#All],[No Client]:[Téléphone]],4,FALSE)","v":{"$error":"#N/A"}},{"$f":"VLOOKUP(CommandeFacturation[[#This Row],[No client]],Clients[[#All],[No Client]:[Téléphone]],3,FALSE)","v":{"$error":"#N/A"}},{"$f":"VLOOKUP(CommandeFacturation[[#This Row],[No client]],Clients[[#All],[No Client]:[Téléphone]],7,FALSE)","v":{"$error":"#N/A"}},{"$f":"VLOOKUP(CommandeFacturation[[#This Row],[No client]],Clients[#All],10,FALSE)","v":{"$error":"#N/A"}},42519.721177546293,"31 - L'Entrecôte Saint-Jean","2016-05-29","2016-05-30",1,"5000 - Baguette levain (unité) (280 gr.)",1,"Test 1"]
[null,null,null,null,null,null,null,null,{"$f":"VLOOKUP(CommandeFacturation[[#This Row],[Code et nom produit]],Produits[[Code et nom produit]:[Catégorie]],3,FALSE)","v":{"$error":"#N/A"}},{"$f":"VLOOKUP(CommandeFacturation[[#This Row],[NoNomClient]],Clients[[#All],[No et nom client]:[No client2]],2,FALSE)","v":{"$error":"#N/A"}},{"$f":"VLOOKUP(CommandeFacturation[[#This Row],[No client]],Clients[[#All],[No Client]:[Téléphone]],4,FALSE)","v":{"$error":"#N/A"}},{"$f":"VLOOKUP(CommandeFacturation[[#This Row],[No client]],Clients[[#All],[No Client]:[Téléphone]],3,FALSE)","v":{"$error":"#N/A"}},{"$f":"VLOOKUP(CommandeFacturation[[#This Row],[No client]],Clients[[#All],[No Client]:[Téléphone]],7,FALSE)","v":{"$error":"#N/A"}},{"$f":"VLOOKUP(CommandeFacturation[[#This Row],[No client]],Clients[#All],10,FALSE)","v":{"$error":"#N/A"}},42519.725201041663,"13 - Cosmos Café inc. Grande-Allée","2016-05-29","2016-06-02",1,"2004 - Burger oignon (x 12) (65 gr.)",1,"Test 1"]
[null,null,null,null,null,null,null,null,{"$f":"VLOOKUP(CommandeFacturation[[#This Row],[Code et nom produit]],Produits[[Code et nom produit]:[Catégorie]],3,FALSE)","v":{"$error":"#N/A"}},{"$f":"VLOOKUP(CommandeFacturation[[#This Row],[NoNomClient]],Clients[[#All],[No et nom client]:[No client2]],2,FALSE)","v":{"$error":"#N/A"}},{"$f":"VLOOKUP(CommandeFacturation[[#This Row],[No client]],Clients[[#All],[No Client]:[Téléphone]],4,FALSE)","v":{"$error":"#N/A"}},{"$f":"VLOOKUP(CommandeFacturation[[#This Row],[No client]],Clients[[#All],[No Client]:[Téléphone]],3,FALSE)","v":{"$error":"#N/A"}},{"$f":"VLOOKUP(CommandeFacturation[[#This Row],[No client]],Clients[[#All],[No Client]:[Téléphone]],7,FALSE)","v":{"$error":"#N/A"}},{"$f":"VLOOKUP(CommandeFacturation[[#This Row],[No client]],Clients[#All],10,FALSE)","v":{"$error":"#N/A"}},42519.72563414352,"13 - Cosmos Café inc. Grande-Allée","2016-05-29","2016-06-02",1,"2004 - Burger oignon (x 12) (65 gr.)",1,"Test 1"]
[null,null,null,null,null,null,null,null,{"$f":"VLOOKUP(CommandeFacturation[[#This Row],[Code et nom produit]],Produits[[Code et nom produit]:[Catégorie]],3,FALSE)","v":{"$error":"#N/A"}},{"$f":"VLOOKUP(CommandeFacturation[[#This Row],[NoNomClient]],Clients[[#All],[No et nom client]:[No client2]],2,FALSE)","v":{"$error":"#N/A"}},{"$f":"VLOOKUP(CommandeFacturation[[#This Row],[No client]],Clients[[#All],[No Client]:[Téléphone]],4,FALSE)","v":{"$error":"#N/A"}},{"$f":"VLOOKUP(CommandeFacturation[[#This Row],[No client]],Clients[[#All],[No Client]:[Téléphone]],3,FALSE)","v":{"$error":"#N/A"}},{"$f":"VLOOKUP(CommandeFacturation[[#This Row],[No client]],Clients[[#All],[No Client]:[Téléphone]],7,FALSE)","v":{"$error":"#N/A"}},{"$f":"VLOOKUP(CommandeFacturation[[#This Row],[No client]],Clients[#All],10,FALSE)","v":{"$error":"#N/A"}},42519.740017361109,"6 - À l'Improviste","2016-05-29","2016-06-02",1,"5000 - Baguette levain (unité) (280 gr.)",1,"Test 1"]
[null,null,null,null,null,null,null,null,{"$f":"VLOOKUP(CommandeFacturation[[#This Row],[Code et nom produit]],Produits[[Code et nom produit]:[Catégorie]],3,FALSE)","v":{"$error":"#N/A"}},{"$f":"VLOOKUP(CommandeFacturation[[#This Row],[NoNomClient]],Clients[[#All],[No et nom client]:[No client2]],2,FALSE)","v":{"$error":"#N/A"}},{"$f":"VLOOKUP(CommandeFacturation[[#This Row],[No client]],Clients[[#All],[No Client]:[Téléphone]],4,FALSE)","v":{"$error":"#N/A"}},{"$f":"VLOOKUP(CommandeFacturation[[#This Row],[No client]],Clients[[#All],[No Client]:[Téléphone]],3,FALSE)","v":{"$error":"#N/A"}},{"$f":"VLOOKUP(CommandeFacturation[[#This Row],[No client]],Clients[[#All],[No Client]:[Téléphone]],7,FALSE)","v":{"$error":"#N/A"}},{"$f":"VLOOKUP(CommandeFacturation[[#This Row],[No client]],Clients[#All],10,FALSE)","v":{"$error":"#N/A"}},42519.747226967593,"6 - À l'Improviste","2016-05-29","2016-06-02",1,"5000 - Baguette levain (unité) (280 gr.)",1,"Test 1"]
[null,null,null,null,null,null,null,null,{"$f":"VLOOKUP(CommandeFacturation[[#This Row],[Code et nom produit]],Produits[[Code et nom produit]:[Catégorie]],3,FALSE)","v":{"$error":"#N/A"}},{"$f":"VLOOKUP(CommandeFacturation[[#This Row],[NoNomClient]],Clients[[#All],[No et nom client]:[No client2]],2,FALSE)","v":{"$error":"#N/A"}},{"$f":"VLOOKUP(CommandeFacturation[[#This Row],[No client]],Clients[[#All],[No Client]:[Téléphone]],4,FALSE)","v":{"$error":"#N/A"}},{"$f":"VLOOKUP(CommandeFacturation[[#This Row],[No client]],Clients[[#All],[No Client]:[Téléphone]],3,FALSE)","v":{"$error":"#N/A"}},{"$f":"VLOOKUP(CommandeFacturation[[#This Row],[No client]],Clients[[#All],[No Client]:[Téléphone]],7,FALSE)","v":{"$error":"#N/A"}},{"$f":"VLOOKUP(CommandeFacturation[[#This Row],[No client]],Clients[#All],10,FALSE)","v":{"$error":"#N/A"}},42519.721177546293,"31 - L'Entrecôte Saint-Jean","2016-05-29","2016-05-30",1,"5000 - Baguette levain (unité) (280 gr.)",1,"Test 1"]
[null,null,null,null,null,null,null,null,{"$f":"VLOOKUP(CommandeFacturation[[#This Row],[Code et nom produit]],Produits[[Code et nom produit]:[Catégorie]],3,FALSE)","v":{"$error":"#N/A"}},{"$f":"VLOOKUP(CommandeFacturation[[#This Row],[NoNomClient]],Clients[[#All],[No et nom client]:[No client2]],2,FALSE)","v":{"$error":"#N/A"}},{"$f":"VLOOKUP(CommandeFacturation[[#This Row],[No client]],Clients[[#All],[No Client]:[Téléphone]],4,FALSE)","v":{"$error":"#N/A"}},{"$f":"VLOOKUP(CommandeFacturation[[#This Row],[No client]],Clients[[#All],[No Client]:[Téléphone]],3,FALSE)","v":{"$error":"#N/A"}},{"$f":"VLOOKUP(CommandeFacturation[[#This Row],[No client]],Clients[[#All],[No Client]:[Téléphone]],7,FALSE)","v":{"$error":"#N/A"}},{"$f":"VLOOKUP(CommandeFacturation[[#This Row],[No client]],Clients[#All],10,FALSE)","v":{"$error":"#N/A"}},42519.725201041663,"13 - Cosmos Café inc. Grande-Allée","2016-05-29","2016-06-02",1,"2004 - Burger oignon (x 12) (65 gr.)",1,"Test 1"]
[null,null,null,null,null,null,null,null,{"$f":"VLOOKUP(CommandeFacturation[[#This Row],[Code et nom produit]],Produits[[Code et nom produit]:[Catégorie]],3,FALSE)","v":{"$error":"#N/A"}},{"$f":"VLOOKUP(CommandeFacturation[[#This Row],[NoNomClient]],Clients[[#All],[No et nom client]:[No client2]],2,FALSE)","v":{"$error":"#N/A"}},{"$f":"VLOOKUP(CommandeFacturation[[#This Row],[No client]],Clients[[#All],[No Client]:[Téléphone]],4,FALSE)","v":{"$error":"#N/A"}},{"$f":"VLOOKUP(CommandeFacturation[[#This Row],[No client]],Clients[[#All],[No Client]:[Téléphone]],3,FALSE)","v":{"$error":"#N/A"}},{"$f":"VLOOKUP(CommandeFacturation[[#This Row],[No client]],Clients[[#All],[No Client]:[Téléphone]],7,FALSE)","v":{"$error":"#N/A"}},{"$f":"VLOOKUP(CommandeFacturation[[#This Row],[No client]],Clients[#All],10,FALSE)","v":{"$error":"#N/A"}},42519.72563414352,"13 - Cosmos Café inc. Grande-Allée","2016-05-29","2016-06-02",1,"2004 - Burger oignon (x 12) (65 gr.)",1,"Test 1"]
[null,null,null,null,null,null,null,null,{"$f":"VLOOKUP(CommandeFacturation[[#This Row],[Code et nom produit]],Produits[[Code et nom produit]:[Catégorie]],3,FALSE)","v":{"$error":"#N/A"}},{"$f":"VLOOKUP(CommandeFacturation[[#This Row],[NoNomClient]],Clients[[#All],[No et nom client]:[No client2]],2,FALSE)","v":{"$error":"#N/A"}},{"$f":"VLOOKUP(CommandeFacturation[[#This Row],[No client]],Clients[[#All],[No Client]:[Téléphone]],4,FALSE)","v":{"$error":"#N/A"}},{"$f":"VLOOKUP(CommandeFacturation[[#This Row],[No client]],Clients[[#All],[No Client]:[Téléphone]],3,FALSE)","v":{"$error":"#N/A"}},{"$f":"VLOOKUP(CommandeFacturation[[#This Row],[No client]],Clients[[#All],[No Client]:[Téléphone]],7,FALSE)","v":{"$error":"#N/A"}},{"$f":"VLOOKUP(CommandeFacturation[[#This Row],[No client]],Clients[#All],10,FALSE)","v":{"$error":"#N/A"}},42519.740017361109,"6 - À l'Improviste","2016-05-29","2016-06-02",1,"5000 - Baguette levain (unité) (280 gr.)",1,"Test 1"]
[null,null,null,null,null,null,null,null,{"$f":"VLOOKUP(CommandeFacturation[[#This Row],[Code et nom produit]],Produits[[Code et nom produit]:[Catégorie]],3,FALSE)","v":{"$error":"#N/A"}},{"$f":"VLOOKUP(CommandeFacturation[[#This Row],[NoNomClient]],Clients[[#All],[No et nom client]:[No client2]],2,FALSE)","v":{"$error":"#N/A"}},{"$f":"VLOOKUP(CommandeFacturation[[#This Row],[No client]],Clients[[#All],[No Client]:[Téléphone]],4,FALSE)","v":{"$error":"#N/A"}},{"$f":"VLOOKUP(CommandeFacturation[[#This Row],[No client]],Clients[[#All],[No Client]:[Téléphone]],3,FALSE)","v":{"$error":"#N/A"}},{"$f":"VLOOKUP(CommandeFacturation[[#This Row],[No client]],Clients[[#All],[No Client]:[Téléphone]],7,FALSE)","v":{"$error":"#N/A"}},{"$f":"VLOOKUP(CommandeFacturation[[#This Row],[No client]],Clients[#All],10,FALSE)","v":{"$error":"#N/A"}},42519.747226967593,"6 - À l'Improviste","2016-05-29","2016-06-02",1,"5000 - Baguette levain (unité) (280 gr.)",1,"Test 1"]
[null,null,null,null,null,null,null,null,{"$f":"VLOOKUP(CommandeFacturation[[#This Row],[Code et nom produit]],Produits[[Code et nom produit]:[Catégorie]],3,FALSE)","v":{"$error":"#N/A"}},{"$f":"VLOOKUP(CommandeFacturation[[#This Row],[NoNomClient]],Clients[[#All],[No et nom client]:[No client2]],2,FALSE)","v":{"$error":"#N/A"}},{"$f":"VLOOKUP(CommandeFacturation[[#This Row],[No client]],Clients[[#All],[No Client]:[Téléphone]],4,FALSE)","v":{"$error":"#N/A"}},{"$f":"VLOOKUP(CommandeFacturation[[#This Row],[No client]],Clients[[#All],[No Client]:[Téléphone]],3,FALSE)","v":{"$error":"#N/A"}},{"$f":"VLOOKUP(CommandeFacturation[[#This Row],[No client]],Clients[[#All],[No Client]:[Téléphone]],7,FALSE)","v":{"$error":"#N/A"}},{"$f":"VLOOKUP(CommandeFacturation[[#This Row],[No client]],Clients[#All],10,FALSE)","v":{"$error":"#N/A"}},42519.721177546293,"31 - L'Entrecôte Saint-Jean","2016-05-29","2016-05-30",1,"5000 - Baguette levain (unité) (280 gr.)",1,"Test 1"]
[null,null,null,null,null,null,null,null,{"$f":"VLOOKUP(CommandeFacturation[[#This Row],[Code et nom produit]],Produits[[Code et nom produit]:[Catégorie]],3,FALSE)","v":{"$error":"#N/A"}},{"$f":"VLOOKUP(CommandeFacturation[[#This Row],[NoNomClient]],Clients[[#All],[No et nom client]:[No client2]],2,FALSE)","v":{"$error":"#N/A"}},{"$f":"VLOOKUP(CommandeFacturation[[#This Row],[No client]],Clients[[#All],[No Client]:[Téléphone]],4,FALSE)","v":{"$error":"#N/A"}},{"$f":"VLOOKUP(CommandeFacturation[[#This Row],[No client]],Clients[[#All],[No Client]:[Téléphone]],3,FALSE)","v":{"$error":"#N/A"}},{"$f":"VLOOKUP(CommandeFacturation[[#This Row],[No client]],Clients[[#All],[No Client]:[Téléphone]],7,FALSE)","v":{"$error":"#N/A"}},{"$f":"VLOOKUP(CommandeFacturation[[#This Row],[No client]],Clients[#All],10,FALSE)","v":{"$error":"#N/A"}},42519.725201041663,"13 - Cosmos Café inc. Grande-Allée","2016-05-29","2016-06-02",1,"2004 - Burger oignon (x 12) (65 gr.)",1,"Test 1"]
[null,null,null,null,null,null,null,null,{"$f":"VLOOKUP(CommandeFacturation[[#This Row],[Code et nom produit]],Produits[[Code et nom produit]:[Catégorie]],3,FALSE)","v":{"$error":"#N/A"}},{"$f":"VLOOKUP(CommandeFacturation[[#This Row],[NoNomClient]],Clients[[#All],[No et nom client]:[No client2]],2,FALSE)","v":{"$error":"#N/A"}},{"$f":"VLOOKUP(CommandeFacturation[[#This Row],[No client]],Clients[[#All],[No Client]:[Téléphone]],4,FALSE)","v":{"$error":"#N/A"}},{"$f":"VLOOKUP(CommandeFacturation[[#This Row],[No client]],Clients[[#All],[No Client]:[Téléphone]],3,FALSE)","v":{"$error":"#N/A"}},{"$f":"VLOOKUP(CommandeFacturation[[#This Row],[No client]],Clients[[#All],[No Client]:[Téléphone]],7,FALSE)","v":{"$error":"#N/A"}},{"$f":"VLOOKUP(CommandeFacturation[[#This Row],[No client]],Clients[#All],10,FALSE)","v":{"$error":"#N/A"}},42519.72563414352,"13 - Cosmos Café inc. Grande-Allée","2016-05-29","2016-06-02",1,"2004 - Burger oignon (x 12) (65 gr.)",1,"Test 1"]
[null,null,null,null,null,null,null,null,{"$f":"VLOOKUP(CommandeFacturation[[#This Row],[Code et nom produit]],Produits[[Code et nom produit]:[Catégorie]],3,FALSE)","v":{"$error":"#N/A"}},{"$f":"VLOOKUP(CommandeFacturation[[#This Row],[NoNomClient]],Clients[[#All],[No et nom client]:[No client2]],2,FALSE)","v":{"$error":"#N/A"}},{"$f":"VLOOKUP(CommandeFacturation[[#This Row],[No client]],Clients[[#All],[No Client]:[Téléphone]],4,FALSE)","v":{"$error":"#N/A"}},{"$f":"VLOOKUP(CommandeFacturation[[#This Row],[No client]],Clients[[#All],[No Client]:[Téléphone]],3,FALSE)","v":{"$error":"#N/A"}},{"$f":"VLOOKUP(CommandeFacturation[[#This Row],[No client]],Clients[[#All],[No Client]:[Téléphone]],7,FALSE)","v":{"$error":"#N/A"}},{"$f":"VLOOKUP(CommandeFacturation[[#This Row],[No client]],Clients[#All],10,FALSE)","v":{"$error":"#N/A"}},42519.740017361109,"6 - À l'Improviste","2016-05-29","2016-06-02",1,"5000 - Baguette levain (unité) (280 gr.)",1,"Test 1"]
[null,null,null,null,null,null,null,null,{"$f":"VLOOKUP(CommandeFacturation[[#This Row],[Code et nom produit]],Produits[[Code et nom produit]:[Catégorie]],3,FALSE)","v":{"$error":"#N/A"}},{"$f":"VLOOKUP(CommandeFacturation[[#This Row],[NoNomClient]],Clients[[#All],[No et nom client]:[No client2]],2,FALSE)","v":{"$error":"#N/A"}},{"$f":"VLOOKUP(CommandeFacturation[[#This Row],[No client]],Clients[[#All],[No Client]:[Téléphone]],4,FALSE)","v":{"$error":"#N/A"}},{"$f":"VLOOKUP(CommandeFacturation[[#This Row],[No client]],Clients[[#All],[No Client]:[Téléphone]],3,FALSE)","v":{"$error":"#N/A"}},{"$f":"VLOOKUP(CommandeFacturation[[#This Row],[No client]],Clients[[#All],[No Client]:[Téléphone]],7,FALSE)","v":{"$error":"#N/A"}},{"$f":"VLOOKUP(CommandeFacturation[[#This Row],[No client]],Clients[#All],10,FALSE)","v":{"$error":"#N/A"}},42519.747226967593,"6 - À l'Improviste","2016-05-29","2016-06-02",1,"5000 - Baguette levain (unité) (280 gr.)",1,"Test 1"]
[null,null,null,null,null,null,null,null,{"$f":"VLOOKUP(CommandeFacturation[[#This Row],[Code et nom produit]],Produits[[Code et nom produit]:[Catégorie]],3,FALSE)","v":{"$error":"#N/A"}},{"$f":"VLOOKUP(CommandeFacturation[[#This Row],[NoNomClient]],Clients[[#All],[No et nom client]:[No client2]],2,FALSE)","v":{"$error":"#N/A"}},{"$f":"VLOOKUP(CommandeFacturation[[#This Row],[No client]],Clients[[#All],[No Client]:[Téléphone]],4,FALSE)","v":{"$error":"#N/A"}},{"$f":"VLOOKUP(CommandeFacturation[[#This Row],[No client]],Clients[[#All],[No Client]:[Téléphone]],3,FALSE)","v":{"$error":"#N/A"}},{"$f":"VLOOKUP(CommandeFacturation[[#This Row],[No client]],Clients[[#All],[No Client]:[Téléphone]],7,FALSE)","v":{"$error":"#N/A"}},{"$f":"VLOOKUP(CommandeFacturation[[#This Row],[No client]],Clients[#All],10,FALSE)","v":{"$error":"#N/A"}},42519.751426967596,"6 - À l'Improviste","2016-05-29","2016-06-02",1,"5000 - Baguette levain (unité) (280 gr.)",1,"Test 1"]
[null,null,null,null,null,null,null,null,{"$f":"VLOOKUP(CommandeFacturation[[#This Row],[Code et nom produit]],Produits[[Code et nom produit]:[Catégorie]],3,FALSE)","v":{"$error":"#N/A"}},{"$f":"VLOOKUP(CommandeFacturation[[#This Row],[NoNomClient]],Clients[[#All],[No et nom client]:[No client2]],2,FALSE)","v":{"$error":"#N/A"}},{"$f":"VLOOKUP(CommandeFacturation[[#This Row],[No client]],Clients[[#All],[No Client]:[Téléphone]],4,FALSE)","v":{"$error":"#N/A"}},{"$f":"VLOOKUP(CommandeFacturation[[#This Row],[No client]],Clients[[#All],[No Client]:[Téléphone]],3,FALSE)","v":{"$error":"#N/A"}},{"$f":"VLOOKUP(CommandeFacturation[[#This Row],[No client]],Clients[[#All],[No Client]:[Téléphone]],7,FALSE)","v":{"$error":"#N/A"}},{"$f":"VLOOKUP(CommandeFacturation[[#This Row],[No client]],Clients[#All],10,FALSE)","v":{"$error":"#N/A"}},42519.75176712963,"6 - À l'Improviste","2016-05-29","2016-06-02",1,"5000 - Baguette levain (unité) (280 gr.)",1,"Test 1"]
[null,null,null,null,null,null,null,null,{"$f":"VLOOKUP(CommandeFacturation[[#This Row],[Code et nom produit]],Produits[[Code et nom produit]:[Catégorie]],3,FALSE)","v":{"$error":"#N/A"}},{"$f":"VLOOKUP(CommandeFacturation[[#This Row],[NoNomClient]],Clients[[#All],[No et nom client]:[No client2]],2,FALSE)","v":{"$error":"#N/A"}},{"$f":"VLOOKUP(CommandeFacturation[[#This Row],[No client]],Clients[[#All],[No Client]:[Téléphone]],4,FALSE)","v":{"$error":"#N/A"}},{"$f":"VLOOKUP(CommandeFacturation[[#This Row],[No client]],Clients[[#All],[No Client]:[Téléphone]],3,FALSE)","v":{"$error":"#N/A"}},{"$f":"VLOOKUP(CommandeFacturation[[#This Row],[No client]],Clients[[#All],[No Client]:[Téléphone]],7,FALSE)","v":{"$error":"#N/A"}},{"$f":"VLOOKUP(CommandeFacturation[[#This Row],[No client]],Clients[#All],10,FALSE)","v":{"$error":"#N/A"}},42519.751834027775,"6 - À l'Improviste","2016-05-29","2016-06-02",1,"5000 - Baguette levain (unité) (280 gr.)",1,"Test 1"]
[null,null,null,null,null,null,null,null,{"$f":"VLOOKUP(CommandeFacturation[[#This Row],[Code et nom produit]],Produits[[Code et nom produit]:[Catégorie]],3,FALSE)","v":{"$error":"#N/A"}},{"$f":"VLOOKUP(CommandeFacturation[[#This Row],[NoNomClient]],Clients[[#All],[No et nom client]:[No client2]],2,FALSE)","v":{"$error":"#N/A"}},{"$f":"VLOOKUP(CommandeFacturation[[#This Row],[No client]],Clients[[#All],[No Client]:[Téléphone]],4,FALSE)","v":{"$error":"#N/A"}},{"$f":"VLOOKUP(CommandeFacturation[[#This Row],[No client]],Clients[[#All],[No Client]:[Téléphone]],3,FALSE)","v":{"$error":"#N/A"}},{"$f":"VLOOKUP(CommandeFacturation[[#This Row],[No client]],Clients[[#All],[No Client]:[Téléphone]],7,FALSE)","v":{"$error":"#N/A"}},{"$f":"VLOOKUP(CommandeFacturation[[#This Row],[No client]],Clients[#All],10,FALSE)","v":{"$error":"#N/A"}},42519.751886458333,"6 - À l'Improviste","2016-05-29","2016-06-02",1,"5000 - Baguette levain (unité) (280 gr.)",1,"Test 1"]
[null,null,null,null,null,null,null,null,{"$f":"VLOOKUP(CommandeFacturation[[#This Row],[Code et nom produit]],Produits[[Code et nom produit]:[Catégorie]],3,FALSE)","v":{"$error":"#N/A"}},{"$f":"VLOOKUP(CommandeFacturation[[#This Row],[NoNomClient]],Clients[[#All],[No et nom client]:[No client2]],2,FALSE)","v":{"$error":"#N/A"}},{"$f":"VLOOKUP(CommandeFacturation[[#This Row],[No client]],Clients[[#All],[No Client]:[Téléphone]],4,FALSE)","v":{"$error":"#N/A"}},{"$f":"VLOOKUP(CommandeFacturation[[#This Row],[No client]],Clients[[#All],[No Client]:[Téléphone]],3,FALSE)","v":{"$error":"#N/A"}},{"$f":"VLOOKUP(CommandeFacturation[[#This Row],[No client]],Clients[[#All],[No Client]:[Téléphone]],7,FALSE)","v":{"$error":"#N/A"}},{"$f":"VLOOKUP(CommandeFacturation[[#This Row],[No client]],Clients[#All],10,FALSE)","v":{"$error":"#N/A"}},42519.751933101848,"6 - À l'Improviste","2016-05-29","2016-06-02",1,"5000 - Baguette levain (unité) (280 gr.)",1,"Test 1"]
[null,null,null,null,null,null,null,null,{"$f":"VLOOKUP(CommandeFacturation[[#This Row],[Code et nom produit]],Produits[[Code et nom produit]:[Catégorie]],3,FALSE)","v":{"$error":"#N/A"}},{"$f":"VLOOKUP(CommandeFacturation[[#This Row],[NoNomClient]],Clients[[#All],[No et nom client]:[No client2]],2,FALSE)","v":{"$error":"#N/A"}},{"$f":"VLOOKUP(CommandeFacturation[[#This Row],[No client]],Clients[[#All],[No Client]:[Téléphone]],4,FALSE)","v":{"$error":"#N/A"}},{"$f":"VLOOKUP(CommandeFacturation[[#This Row],[No client]],Clients[[#All],[No Client]:[Téléphone]],3,FALSE)","v":{"$error":"#N/A"}},{"$f":"VLOOKUP(CommandeFacturation[[#This Row],[No client]],Clients[[#All],[No Client]:[Téléphone]],7,FALSE)","v":{"$error":"#N/A"}},{"$f":"VLOOKUP(CommandeFacturation[[#This Row],[No client]],Clients[#All],10,FALSE)","v":{"$error":"#N/A"}},42519.751970138888,"6 - À l'Improviste","2016-05-29","2016-06-02",1,"5000 - Baguette levain (unité) (280 gr.)",1,"Test 1"]
[null,null,null,null,null,null,null,null,{"$f":"VLOOKUP(CommandeFacturation[[#This Row],[Code et nom produit]],Produits[[Code et nom produit]:[Catégorie]],3,FALSE)","v":{"$error":"#N/A"}},{"$f":"VLOOKUP(CommandeFacturation[[#This Row],[NoNomClient]],Clients[[#All],[No et nom client]:[No client2]],2,FALSE)","v":{"$error":"#N/A"}},{"$f":"VLOOKUP(CommandeFacturation[[#This Row],[No client]],Clients[[#All],[No Client]:[Téléphone]],4,FALSE)","v":{"$error":"#N/A"}},{"$f":"VLOOKUP(CommandeFacturation[[#This Row],[No client]],Clients[[#All],[No Client]:[Téléphone]],3,FALSE)","v":{"$error":"#N/A"}},{"$f":"VLOOKUP(CommandeFacturation[[#This Row],[No client]],Clients[[#All],[No Client]:[Téléphone]],7,FALSE)","v":{"$error":"#N/A"}},{"$f":"VLOOKUP(CommandeFacturation[[#This Row],[No client]],Clients[#All],10,FALSE)","v":{"$error":"#N/A"}},42523.630969560189,"6 - À l'Improviste","2016-06-02","2016-06-03",1,"5000 - Baguette levain (unité) (280 gr.)",1,"Test 1"]
[null,null,null,null,null,null,null,null,{"$f":"VLOOKUP(CommandeFacturation[[#This Row],[Code et nom produit]],Produits[[Code et nom produit]:[Catégorie]],3,FALSE)","v":{"$error":"#N/A"}},{"$f":"VLOOKUP(CommandeFacturation[[#This Row],[NoNomClient]],Clients[[#All],[No et nom client]:[No client2]],2,FALSE)","v":{"$error":"#N/A"}},{"$f":"VLOOKUP(CommandeFacturation[[#This Row],[No client]],Clients[[#All],[No Client]:[Téléphone]],4,FALSE)","v":{"$error":"#N/A"}},{"$f":"VLOOKUP(CommandeFacturation[[#This Row],[No client]],Clients[[#All],[No Client]:[Téléphone]],3,FALSE)","v":{"$error":"#N/A"}},{"$f":"VLOOKUP(CommandeFacturation[[#This Row],[No client]],Clients[[#All],[No Client]:[Téléphone]],7,FALSE)","v":{"$error":"#N/A"}},{"$f":"VLOOKUP(CommandeFacturation[[#This Row],[No client]],Clients[#All],10,FALSE)","v":{"$error":"#N/A"}},42519.72563414352,"13 - Cosmos Café inc. Grande-Allée","2016-05-29","2016-06-02",1,"2004 - Burger oignon (x 12) (65 gr.)",1,"Test 1"]
[null,null,null,null,null,null,null,null,{"$f":"VLOOKUP(CommandeFacturation[[#This Row],[Code et nom produit]],Produits[[Code et nom produit]:[Catégorie]],3,FALSE)","v":{"$error":"#N/A"}},{"$f":"VLOOKUP(CommandeFacturation[[#This Row],[NoNomClient]],Clients[[#All],[No et nom client]:[No client2]],2,FALSE)","v":{"$error":"#N/A"}},{"$f":"VLOOKUP(CommandeFacturation[[#This Row],[No client]],Clients[[#All],[No Client]:[Téléphone]],4,FALSE)","v":{"$error":"#N/A"}},{"$f":"VLOOKUP(CommandeFacturation[[#This Row],[No client]],Clients[[#All],[No Client]:[Téléphone]],3,FALSE)","v":{"$error":"#N/A"}},{"$f":"VLOOKUP(CommandeFacturation[[#This Row],[No client]],Clients[[#All],[No Client]:[Téléphone]],7,FALSE)","v":{"$error":"#N/A"}},{"$f":"VLOOKUP(CommandeFacturation[[#This Row],[No client]],Clients[#All],10,FALSE)","v":{"$error":"#N/A"}},42519.740017361109,"6 - À l'Improviste","2016-05-29","2016-06-02",1,"5000 - Baguette levain (unité) (280 gr.)",1,"Test 1"]
[null,null,null,null,null,null,null,null,{"$f":"VLOOKUP(CommandeFacturation[[#This Row],[Code et nom produit]],Produits[[Code et nom produit]:[Catégorie]],3,FALSE)","v":{"$error":"#N/A"}},{"$f":"VLOOKUP(CommandeFacturation[[#This Row],[NoNomClient]],Clients[[#All],[No et nom client]:[No client2]],2,FALSE)","v":{"$error":"#N/A"}},{"$f":"VLOOKUP(CommandeFacturation[[#This Row],[No client]],Clients[[#All],[No Client]:[Téléphone]],4,FALSE)","v":{"$error":"#N/A"}},{"$f":"VLOOKUP(CommandeFacturation[[#This Row],[No client]],Clients[[#All],[No Client]:[Téléphone]],3,FALSE)","v":{"$error":"#N/A"}},{"$f":"VLOOKUP(CommandeFacturation[[#This Row],[No client]],Clients[[#All],[No Client]:[Téléphone]],7,FALSE)","v":{"$error":"#N/A"}},{"$f":"VLOOKUP(CommandeFacturation[[#This Row],[No client]],Clients[#All],10,FALSE)","v":{"$error":"#N/A"}},42519.747226967593,"6 - À l'Improviste","2016-05-29","2016-06-02",1,"5000 - Baguette levain (unité) (280 gr.)",1,"Test 1"]
[null,null,null,null,null,null,null,null,{"$f":"VLOOKUP(CommandeFacturation[[#This Row],[Code et nom produit]],Produits[[Code et nom produit]:[Catégorie]],3,FALSE)","v":{"$error":"#N/A"}},{"$f":"VLOOKUP(CommandeFacturation[[#This Row],[NoNomClient]],Clients[[#All],[No et nom client]:[No client2]],2,FALSE)","v":{"$error":"#N/A"}},{"$f":"VLOOKUP(CommandeFacturation[[#This Row],[No client]],Clients[[#All],[No Client]:[Téléphone]],4,FALSE)","v":{"$error":"#N/A"}},{"$f":"VLOOKUP(CommandeFacturation[[#This Row],[No client]],Clients[[#All],[No Client]:[Téléphone]],3,FALSE)","v":{"$error":"#N/A"}},{"$f":"VLOOKUP(CommandeFacturation[[#This Row],[No client]],Clients[[#All],[No Client]:[Téléphone]],7,FALSE)","v":{"$error":"#N/A"}},{"$f":"VLOOKUP(CommandeFacturation[[#This Row],[No client]],Clients[#All],10,FALSE)","v":{"$error":"#N/A"}},42519.721177546293,"31 - L'Entrecôte Saint-Jean","2016-05-29","2016-05-30",1,"5000 - Baguette levain (unité) (280 gr.)",1,"Test 1"]
[null,null,null,null,null,null,null,null,{"$f":"VLOOKUP(CommandeFacturation[[#This Row],[Code et nom produit]],Produits[[Code et nom produit]:[Catégorie]],3,FALSE)","v":{"$error":"#N/A"}},{"$f":"VLOOKUP(CommandeFacturation[[#This Row],[NoNomClient]],Clients[[#All],[No et nom client]:[No client2]],2,FALSE)","v":{"$error":"#N/A"}},{"$f":"VLOOKUP(CommandeFacturation[[#This Row],[No client]],Clients[[#All],[No Client]:[Téléphone]],4,FALSE)","v":{"$error":"#N/A"}},{"$f":"VLOOKUP(CommandeFacturation[[#This Row],[No client]],Clients[[#All],[No Client]:[Téléphone]],3,FALSE)","v":{"$error":"#N/A"}},{"$f":"VLOOKUP(CommandeFacturation[[#This Row],[No client]],Clients[[#All],[No Client]:[Téléphone]],7,FALSE)","v":{"$error":"#N/A"}},{"$f":"VLOOKUP(CommandeFacturation[[#This Row],[No client]],Clients[#All],10,FALSE)","v":{"$error":"#N/A"}},42519.725201041663,"13 - Cosmos Café inc. Grande-Allée","2016-05-29","2016-06-02",1,"2004 - Burger oignon (x 12) (65 gr.)",1,"Test 1"]
[null,null,null,null,null,null,null,null,{"$f":"VLOOKUP(CommandeFacturation[[#This Row],[Code et nom produit]],Produits[[Code et nom produit]:[Catégorie]],3,FALSE)","v":{"$error":"#N/A"}},{"$f":"VLOOKUP(CommandeFacturation[[#This Row],[NoNomClient]],Clients[[#All],[No et nom client]:[No client2]],2,FALSE)","v":{"$error":"#N/A"}},{"$f":"VLOOKUP(CommandeFacturation[[#This Row],[No client]],Clients[[#All],[No Client]:[Téléphone]],4,FALSE)","v":{"$error":"#N/A"}},{"$f":"VLOOKUP(CommandeFacturation[[#This Row],[No client]],Clients[[#All],[No Client]:[Téléphone]],3,FALSE)","v":{"$error":"#N/A"}},{"$f":"VLOOKUP(CommandeFacturation[[#This Row],[No client]],Clients[[#All],[No Client]:[Téléphone]],7,FALSE)","v":{"$error":"#N/A"}},{"$f":"VLOOKUP(CommandeFacturation[[#This Row],[No client]],Clients[#All],10,FALSE)","v":{"$error":"#N/A"}},42519.72563414352,"13 - Cosmos Café inc. Grande-Allée","2016-05-29","2016-06-02",1,"2004 - Burger oignon (x 12) (65 gr.)",1,"Test 1"]
[null,null,null,null,null,null,null,null,{"$f":"VLOOKUP(CommandeFacturation[[#This Row],[Code et nom produit]],Produits[[Code et nom produit]:[Catégorie]],3,FALSE)","v":{"$error":"#N/A"}},{"$f":"VLOOKUP(CommandeFacturation[[#This Row],[NoNomClient]],Clients[[#All],[No et nom client]:[No client2]],2,FALSE)","v":{"$error":"#N/A"}},{"$f":"VLOOKUP(CommandeFacturation[[#This Row],[No client]],Clients[[#All],[No Client]:[Téléphone]],4,FALSE)","v":{"$error":"#N/A"}},{"$f":"VLOOKUP(CommandeFacturation[[#This Row],[No client]],Clients[[#All],[No Client]:[Téléphone]],3,FALSE)","v":{"$error":"#N/A"}},{"$f":"VLOOKUP(CommandeFacturation[[#This Row],[No client]],Clients[[#All],[No Client]:[Téléphone]],7,FALSE)","v":{"$error":"#N/A"}},{"$f":"VLOOKUP(CommandeFacturation[[#This Row],[No client]],Clients[#All],10,FALSE)","v":{"$error":"#N/A"}},42519.740017361109,"6 - À l'Improviste","2016-05-29","2016-06-02",1,"5000 - Baguette levain (unité) (280 gr.)",1,"Test 1"]
[null,null,null,null,null,null,null,null,{"$f":"VLOOKUP(CommandeFacturation[[#This Row],[Code et nom produit]],Produits[[Code et nom produit]:[Catégorie]],3,FALSE)","v":{"$error":"#N/A"}},{"$f":"VLOOKUP(CommandeFacturation[[#This Row],[NoNomClient]],Clients[[#All],[No et nom client]:[No client2]],2,FALSE)","v":{"$error":"#N/A"}},{"$f":"VLOOKUP(CommandeFacturation[[#This Row],[No client]],Clients[[#All],[No Client]:[Téléphone]],4,FALSE)","v":{"$error":"#N/A"}},{"$f":"VLOOKUP(CommandeFacturation[[#This Row],[No client]],Clients[[#All],[No Client]:[Téléphone]],3,FALSE)","v":{"$error":"#N/A"}},{"$f":"VLOOKUP(CommandeFacturation[[#This Row],[No client]],Clients[[#All],[No Client]:[Téléphone]],7,FALSE)","v":{"$error":"#N/A"}},{"$f":"VLOOKUP(CommandeFacturation[[#This Row],[No client]],Clients[#All],10,FALSE)","v":{"$error":"#N/A"}},42519.747226967593,"6 - À l'Improviste","2016-05-29","2016-06-02",1,"5000 - Baguette levain (unité) (280 gr.)",1,"Test 1"]
[null,null,null,null,null,null,null,null,{"$f":"VLOOKUP(CommandeFacturation[[#This Row],[Code et nom produit]],Produits[[Code et nom produit]:[Catégorie]],3,FALSE)","v":{"$error":"#N/A"}},{"$f":"VLOOKUP(CommandeFacturation[[#This Row],[NoNomClient]],Clients[[#All],[No et nom client]:[No client2]],2,FALSE)","v":{"$error":"#N/A"}},{"$f":"VLOOKUP(CommandeFacturation[[#This Row],[No client]],Clients[[#All],[No Client]:[Téléphone]],4,FALSE)","v":{"$error":"#N/A"}},{"$f":"VLOOKUP(CommandeFacturation[[#This Row],[No client]],Clients[[#All],[No Client]:[Téléphone]],3,FALSE)","v":{"$error":"#N/A"}},{"$f":"VLOOKUP(CommandeFacturation[[#This Row],[No client]],Clients[[#All],[No Client]:[Téléphone]],7,FALSE)","v":{"$error":"#N/A"}},{"$f":"VLOOKUP(CommandeFacturation[[#This Row],[No client]],Clients[#All],10,FALSE)","v":{"$error":"#N/A"}},42519.751426967596,"6 - À l'Improviste","2016-05-29","2016-06-02",1,"5000 - Baguette levain (unité) (280 gr.)",1,"Test 1"]
[null,null,null,null,null,null,null,null,{"$f":"VLOOKUP(CommandeFacturation[[#This Row],[Code et nom produit]],Produits[[Code et nom produit]:[Catégorie]],3,FALSE)","v":{"$error":"#N/A"}},{"$f":"VLOOKUP(CommandeFacturation[[#This Row],[NoNomClient]],Clients[[#All],[No et nom client]:[No client2]],2,FALSE)","v":{"$error":"#N/A"}},{"$f":"VLOOKUP(CommandeFacturation[[#This Row],[No client]],Clients[[#All],[No Client]:[Téléphone]],4,FALSE)","v":{"$error":"#N/A"}},{"$f":"VLOOKUP(CommandeFacturation[[#This Row],[No client]],Clients[[#All],[No Client]:[Téléphone]],3,FALSE)","v":{"$error":"#N/A"}},{"$f":"VLOOKUP(CommandeFacturation[[#This Row],[No client]],Clients[[#All],[No Client]:[Téléphone]],7,FALSE)","v":{"$error":"#N/A"}},{"$f":"VLOOKUP(CommandeFacturation[[#This Row],[No client]],Clients[#All],10,FALSE)","v":{"$error":"#N/A"}},42519.75176712963,"6 - À l'Improviste","2016-05-29","2016-06-02",1,"5000 - Baguette levain (unité) (280 gr.)",1,"Test 1"]
[null,null,null,null,null,null,null,null,{"$f":"VLOOKUP(CommandeFacturation[[#This Row],[Code et nom produit]],Produits[[Code et nom produit]:[Catégorie]],3,FALSE)","v":{"$error":"#N/A"}},{"$f":"VLOOKUP(CommandeFacturation[[#This Row],[NoNomClient]],Clients[[#All],[No et nom client]:[No client2]],2,FALSE)","v":{"$error":"#N/A"}},{"$f":"VLOOKUP(CommandeFacturation[[#This Row],[No client]],Clients[[#All],[No Client]:[Téléphone]],4,FALSE)","v":{"$error":"#N/A"}},{"$f":"VLOOKUP(CommandeFacturation[[#This Row],[No client]],Clients[[#All],[No Client]:[Téléphone]],3,FALSE)","v":{"$error":"#N/A"}},{"$f":"VLOOKUP(CommandeFacturation[[#This Row],[No client]],Clients[[#All],[No Client]:[Téléphone]],7,FALSE)","v":{"$error":"#N/A"}},{"$f":"VLOOKUP(CommandeFacturation[[#This Row],[No client]],Clients[#All],10,FALSE)","v":{"$error":"#N/A"}},42519.751834027775,"6 - À l'Improviste","2016-05-29","2016-06-02",1,"5000 - Baguette levain (unité) (280 gr.)",1,"Test 1"]
[null,null,null,null,null,null,null,null,{"$f":"VLOOKUP(CommandeFacturation[[#This Row],[Code et nom produit]],Produits[[Code et nom produit]:[Catégorie]],3,FALSE)","v":{"$error":"#N/A"}},{"$f":"VLOOKUP(CommandeFacturation[[#This Row],[NoNomClient]],Clients[[#All],[No et nom client]:[No client2]],2,FALSE)","v":{"$error":"#N/A"}},{"$f":"VLOOKUP(CommandeFacturation[[#This Row],[No client]],Clients[[#All],[No Client]:[Téléphone]],4,FALSE)","v":{"$error":"#N/A"}},{"$f":"VLOOKUP(CommandeFacturation[[#This Row],[No client]],Clients[[#All],[No Client]:[Téléphone]],3,FALSE)","v":{"$error":"#N/A"}},{"$f":"VLOOKUP(CommandeFacturation[[#This Row],[No client]],Clients[[#All],[No Client]:[Téléphone]],7,FALSE)","v":{"$error":"#N/A"}},{"$f":"VLOOKUP(CommandeFacturation[[#This Row],[No client]],Clients[#All],10,FALSE)","v":{"$error":"#N/A"}},42519.751886458333,"6 - À l'Improviste","2016-05-29","2016-06-02",1,"5000 - Baguette levain (unité) (280 gr.)",1,"Test 1"]
[null,null,null,null,null,null,null,null,{"$f":"VLOOKUP(CommandeFacturation[[#This Row],[Code et nom produit]],Produits[[Code et nom produit]:[Catégorie]],3,FALSE)","v":{"$error":"#N/A"}},{"$f":"VLOOKUP(CommandeFacturation[[#This Row],[NoNomClient]],Clients[[#All],[No et nom client]:[No client2]],2,FALSE)","v":{"$error":"#N/A"}},{"$f":"VLOOKUP(CommandeFacturation[[#This Row],[No client]],Clients[[#All],[No Client]:[Téléphone]],4,FALSE)","v":{"$error":"#N/A"}},{"$f":"VLOOKUP(CommandeFacturation[[#This Row],[No client]],Clients[[#All],[No Client]:[Téléphone]],3,FALSE)","v":{"$error":"#N/A"}},{"$f":"VLOOKUP(CommandeFacturation[[#This Row],[No client]],Clients[[#All],[No Client]:[Téléphone]],7,FALSE)","v":{"$error":"#N/A"}},{"$f":"VLOOKUP(CommandeFacturation[[#This Row],[No client]],Clients[#All],10,FALSE)","v":{"$error":"#N/A"}},42519.751933101848,"6 - À l'Improviste","2016-05-29","2016-06-02",1,"5000 - Baguette levain (unité) (280 gr.)",1,"Test 1"]
[null,null,null,null,null,null,null,null,{"$f":"VLOOKUP(CommandeFacturation[[#This Row],[Code et nom produit]],Produits[[Code et nom produit]:[Catégorie]],3,FALSE)","v":{"$error":"#N/A"}},{"$f":"VLOOKUP(CommandeFacturation[[#This Row],[NoNomClient]],Clients[[#All],[No et nom client]:[No client2]],2,FALSE)","v":{"$error":"#N/A"}},{"$f":"VLOOKUP(CommandeFacturation[[#This Row],[No client]],Clients[[#All],[No Client]:[Téléphone]],4,FALSE)","v":{"$error":"#N/A"}},{"$f":"VLOOKUP(CommandeFacturation[[#This Row],[No client]],Clients[[#All],[No Client]:[Téléphone]],3,FALSE)","v":{"$error":"#N/A"}},{"$f":"VLOOKUP(CommandeFacturation[[#This Row],[No client]],Clients[[#All],[No Client]:[Téléphone]],7,FALSE)","v":{"$error":"#N/A"}},{"$f":"VLOOKUP(CommandeFacturation[[#This Row],[No client]],Clients[#All],10,FALSE)","v":{"$error":"#N/A"}},42519.751970138888,"6 - À l'Improviste","2016-05-29","2016-06-02",1,"5000 - Baguette levain (unité) (280 gr.)",1,"Test 1"]
[null,null,null,null,null,null,null,null,{"$f":"VLOOKUP(CommandeFacturation[[#This Row],[Code et nom produit]],Produits[[Code et nom produit]:[Catégorie]],3,FALSE)","v":{"$error":"#N/A"}},{"$f":"VLOOKUP(CommandeFacturation[[#This Row],[NoNomClient]],Clients[[#All],[No et nom client]:[No client2]],2,FALSE)","v":{"$error":"#N/A"}},{"$f":"VLOOKUP(CommandeFacturation[[#This Row],[No client]],Clients[[#All],[No Client]:[Téléphone]],4,FALSE)","v":{"$error":"#N/A"}},{"$f":"VLOOKUP(CommandeFacturation[[#This Row],[No client]],Clients[[#All],[No Client]:[Téléphone]],3,FALSE)","v":{"$error":"#N/A"}},{"$f":"VLOOKUP(CommandeFacturation[[#This Row],[No client]],Clients[[#All],[No Client]:[Téléphone]],7,FALSE)","v":{"$error":"#N/A"}},{"$f":"VLOOKUP(CommandeFacturation[[#This Row],[No client]],Clients[#All],10,FALSE)","v":{"$error":"#N/A"}},42523.630969560189,"6 - À l'Improviste","2016-06-02","2016-06-03",1,"5000 - Baguette levain (unité) (280 gr.)",1,"Test 1"]
[null,null,null,null,null,null,null,null,{"$f":"VLOOKUP(CommandeFacturation[[#This Row],[Code et nom produit]],Produits[[Code et nom produit]:[Catégorie]],3,FALSE)","v":{"$error":"#N/A"}},{"$f":"VLOOKUP(CommandeFacturation[[#This Row],[NoNomClient]],Clients[[#All],[No et nom client]:[No client2]],2,FALSE)","v":{"$error":"#N/A"}},{"$f":"VLOOKUP(CommandeFacturation[[#This Row],[No client]],Clients[[#All],[No Client]:[Téléphone]],4,FALSE)","v":{"$error":"#N/A"}},{"$f":"VLOOKUP(CommandeFacturation[[#This Row],[No client]],Clients[[#All],[No Client]:[Téléphone]],3,FALSE)","v":{"$error":"#N/A"}},{"$f":"VLOOKUP(CommandeFacturation[[#This Row],[No client]],Clients[[#All],[No Client]:[Téléphone]],7,FALSE)","v":{"$error":"#N/A"}},{"$f":"VLOOKUP(CommandeFacturation[[#This Row],[No client]],Clients[#All],10,FALSE)","v":{"$error":"#N/A"}}]
[null,null,null,null,null,null,null,null,{"$f":"VLOOKUP(CommandeFacturation[[#This Row],[Code et nom produit]],Produits[[Code et nom produit]:[Catégorie]],3,FALSE)","v":{"$error":"#N/A"}},{"$f":"VLOOKUP(CommandeFacturation[[#This Row],[NoNomClient]],Clients[[#All],[No et nom client]:[No client2]],2,FALSE)","v":{"$error":"#N/A"}},{"$f":"VLOOKUP(CommandeFacturation[[#This Row],[No client]],Clients[[#All],[No Client]:[Téléphone]],4,FALSE)","v":{"$error":"#N/A"}},{"$f":"VLOOKUP(CommandeFacturation[[#This Row],[No client]],Clients[[#All],[No Client]:[Téléphone]],3,FALSE)","v":{"$error":"#N/A"}},{"$f":"VLOOKUP(CommandeFacturation[[#This Row],[No client]],Clients[[#All],[No Client]:[Téléphone]],7,FALSE)","v":{"$error":"#N/A"}},{"$f":"VLOOKUP(CommandeFacturation[[#This Row],[No client]],Clients[#All],10,FALSE)","v":{"$error":"#N/A"}}]
[null,null,null,null,null,null,null,null,{"$f":"VLOOKUP(CommandeFacturation[[#This Row],[Code et nom produit]],Produits[[Code et nom produit]:[Catégorie]],3,FALSE)","v":{"$error":"#N/A"}},{"$f":"VLOOKUP(CommandeFacturation[[#This Row],[NoNomClient]],Clients[[#All],[No et nom client]:[No client2]],2,FALSE)","v":{"$error":"#N/A"}},{"$f":"VLOOKUP(CommandeFacturation[[#This Row],[No client]],Clients[[#All],[No Client]:[Téléphone]],4,FALSE)","v":{"$error":"#N/A"}},{"$f":"VLOOKUP(CommandeFacturation[[#This Row],[No client]],Clients[[#All],[No Client]:[Téléphone]],3,FALSE)","v":{"$error":"#N/A"}},{"$f":"VLOOKUP(CommandeFacturation[[#This Row],[No client]],Clients[[#All],[No Client]:[Téléphone]],7,FALSE)","v":{"$error":"#N/A"}},{"$f":"VLOOKUP(CommandeFacturation[[#This Row],[No client]],Clients[#All],10,FALSE)","v":{"$error":"#N/A"}}]
[null,null,null,null,null,null,null,null,{"$f":"VLOOKUP(CommandeFacturation[[#This Row],[Code et nom produit]],Produits[[Code et nom produit]:[Catégorie]],3,FALSE)","v":{"$error":"#N/A"}},{"$f":"VLOOKUP(CommandeFacturation[[#This Row],[NoNomClient]],Clients[[#All],[No et nom client]:[No client2]],2,FALSE)","v":{"$error":"#N/A"}},{"$f":"VLOOKUP(CommandeFacturation[[#This Row],[No client]],Clients[[#All],[No Client]:[Téléphone]],4,FALSE)","v":{"$error":"#N/A"}},{"$f":"VLOOKUP(CommandeFacturation[[#This Row],[No client]],Clients[[#All],[No Client]:[Téléphone]],3,FALSE)","v":{"$error":"#N/A"}},{"$f":"VLOOKUP(CommandeFacturation[[#This Row],[No client]],Clients[[#All],[No Client]:[Téléphone]],7,FALSE)","v":{"$error":"#N/A"}},{"$f":"VLOOKUP(CommandeFacturation[[#This Row],[No client]],Clients[#All],10,FALSE)","v":{"$error":"#N/A"}}]
[null,null,null,null,null,null,null,null,{"$f":"VLOOKUP(CommandeFacturation[[#This Row],[Code et nom produit]],Produits[[Code et nom produit]:[Catégorie]],3,FALSE)","v":{"$error":"#N/A"}},{"$f":"VLOOKUP(CommandeFacturation[[#This Row],[NoNomClient]],Clients[[#All],[No et nom client]:[No client2]],2,FALSE)","v":{"$error":"#N/A"}},{"$f":"VLOOKUP(CommandeFacturation[[#This Row],[No client]],Clients[[#All],[No Client]:[Téléphone]],4,FALSE)","v":{"$error":"#N/A"}},{"$f":"VLOOKUP(CommandeFacturation[[#This Row],[No client]],Clients[[#All],[No Client]:[Téléphone]],3,FALSE)","v":{"$error":"#N/A"}},{"$f":"VLOOKUP(CommandeFacturation[[#This Row],[No client]],Clients[[#All],[No Client]:[Téléphone]],7,FALSE)","v":{"$error":"#N/A"}},{"$f":"VLOOKUP(CommandeFacturation[[#This Row],[No client]],Clients[#All],10,FALSE)","v":{"$error":"#N/A"}}]
[null,null,null,null,null,null,null,null,{"$f":"VLOOKUP(CommandeFacturation[[#This Row],[Code et nom produit]],Produits[[Code et nom produit]:[Catégorie]],3,FALSE)","v":{"$error":"#N/A"}},{"$f":"VLOOKUP(CommandeFacturation[[#This Row],[NoNomClient]],Clients[[#All],[No et nom client]:[No client2]],2,FALSE)","v":{"$error":"#N/A"}},{"$f":"VLOOKUP(CommandeFacturation[[#This Row],[No client]],Clients[[#All],[No Client]:[Téléphone]],4,FALSE)","v":{"$error":"#N/A"}},{"$f":"VLOOKUP(CommandeFacturation[[#This Row],[No client]],Clients[[#All],[No Client]:[Téléphone]],3,FALSE)","v":{"$error":"#N/A"}},{"$f":"VLOOKUP(CommandeFacturation[[#This Row],[No client]],Clients[[#All],[No Client]:[Téléphone]],7,FALSE)","v":{"$error":"#N/A"}},{"$f":"VLOOKUP(CommandeFacturation[[#This Row],[No client]],Clients[#All],10,FALSE)","v":{"$error":"#N/A"}}]
[null,null,null,null,null,null,null,null,{"$f":"VLOOKUP(CommandeFacturation[[#This Row],[Code et nom produit]],Produits[[Code et nom produit]:[Catégorie]],3,FALSE)","v":{"$error":"#N/A"}},{"$f":"VLOOKUP(CommandeFacturation[[#This Row],[NoNomClient]],Clients[[#All],[No et nom client]:[No client2]],2,FALSE)","v":{"$error":"#N/A"}},{"$f":"VLOOKUP(CommandeFacturation[[#This Row],[No client]],Clients[[#All],[No Client]:[Téléphone]],4,FALSE)","v":{"$error":"#N/A"}},{"$f":"VLOOKUP(CommandeFacturation[[#This Row],[No client]],Clients[[#All],[No Client]:[Téléphone]],3,FALSE)","v":{"$error":"#N/A"}},{"$f":"VLOOKUP(CommandeFacturation[[#This Row],[No client]],Clients[[#All],[No Client]:[Téléphone]],7,FALSE)","v":{"$error":"#N/A"}},{"$f":"VLOOKUP(CommandeFacturation[[#This Row],[No client]],Clients[#All],10,FALSE)","v":{"$error":"#N/A"}}]
[null,null,null,null,null,null,null,null,{"$f":"VLOOKUP(CommandeFacturation[[#This Row],[Code et nom produit]],Produits[[Code et nom produit]:[Catégorie]],3,FALSE)","v":{"$error":"#N/A"}},{"$f":"VLOOKUP(CommandeFacturation[[#This Row],[NoNomClient]],Clients[[#All],[No et nom client]:[No client2]],2,FALSE)","v":{"$error":"#N/A"}},{"$f":"VLOOKUP(CommandeFacturation[[#This Row],[No client]],Clients[[#All],[No Client]:[Téléphone]],4,FALSE)","v":{"$error":"#N/A"}},{"$f":"VLOOKUP(CommandeFacturation[[#This Row],[No client]],Clients[[#All],[No Client]:[Téléphone]],3,FALSE)","v":{"$error":"#N/A"}},{"$f":"VLOOKUP(CommandeFacturation[[#This Row],[No client]],Clients[[#All],[No Client]:[Téléphone]],7,FALSE)","v":{"$error":"#N/A"}},{"$f":"VLOOKUP(CommandeFacturation[[#This Row],[No client]],Clients[#All],10,FALSE)","v":{"$error":"#N/A"}}]
[null,null,null,null,null,null,null,null,{"$f":"VLOOKUP(CommandeFacturation[[#This Row],[Code et nom produit]],Produits[[Code et nom produit]:[Catégorie]],3,FALSE)","v":{"$error":"#N/A"}},{"$f":"VLOOKUP(CommandeFacturation[[#This Row],[NoNomClient]],Clients[[#All],[No et nom client]:[No client2]],2,FALSE)","v":{"$error":"#N/A"}},{"$f":"VLOOKUP(CommandeFacturation[[#This Row],[No client]],Clients[[#All],[No Client]:[Téléphone]],4,FALSE)","v":{"$error":"#N/A"}},{"$f":"VLOOKUP(CommandeFacturation[[#This Row],[No client]],Clients[[#All],[No Client]:[Téléphone]],3,FALSE)","v":{"$error":"#N/A"}},{"$f":"VLOOKUP(CommandeFacturation[[#This Row],[No client]],Clients[[#All],[No Client]:[Téléphone]],7,FALSE)","v":{"$error":"#N/A"}},{"$f":"VLOOKUP(CommandeFacturation[[#This Row],[No client]],Clients[#All],10,FALSE)","v":{"$error":"#N/A"}}]

{"sheet":"Liste des produits","index":3,"n_rows":183,"n_cols":6,"rows_kept":183,"cut":false,"hidden":false,"merged":[]}
["Code Produit","Nom Produit","Unités","Code et nom produit","Code Produit2","Catégorie"]
[1000,"Croissant (unité) (90 gr.)",1,{"$f":"CONCATENATE(Produits[[#This Row],[Code Produit]],\" - \",Produits[[#This Row],[Nom Produit]])","v":"1000 - Croissant (unité) (90 gr.)"},{"$f":"Produits[[#This Row],[Code Produit]]","v":1000},"Frais"]
[1001,"Chocolatine (unité) (100 gr.)",1,{"$f":"CONCATENATE(Produits[[#This Row],[Code Produit]],\" - \",Produits[[#This Row],[Nom Produit]])","v":"1001 - Chocolatine (unité) (100 gr.)"},{"$f":"Produits[[#This Row],[Code Produit]]","v":1001},"Frais"]
[1002,"Danoise (unité) (130 gr.)",1,{"$f":"CONCATENATE(Produits[[#This Row],[Code Produit]],\" - \",Produits[[#This Row],[Nom Produit]])","v":"1002 - Danoise (unité) (130 gr.)"},{"$f":"Produits[[#This Row],[Code Produit]]","v":1002},"Frais"]
[1003,"Carré feuilleté (x 12) (70 gr.)",12,{"$f":"CONCATENATE(Produits[[#This Row],[Code Produit]],\" - \",Produits[[#This Row],[Nom Produit]])","v":"1003 - Carré feuilleté (x 12) (70 gr.)"},{"$f":"Produits[[#This Row],[Code Produit]]","v":1003},"Frais"]
[1004,"Croissant Jambon-Fromage (unité) (145 gr.)",1,{"$f":"CONCATENATE(Produits[[#This Row],[Code Produit]],\" - \",Produits[[#This Row],[Nom Produit]])","v":"1004 - Croissant Jambon-Fromage (unité) (145 gr.)"},{"$f":"Produits[[#This Row],[Code Produit]]","v":1004},"Frais"]
[1100,"Mini-chocolatine (x 12) (30 gr.)",12,{"$f":"CONCATENATE(Produits[[#This Row],[Code Produit]],\" - \",Produits[[#This Row],[Nom Produit]])","v":"1100 - Mini-chocolatine (x 12) (30 gr.)"},{"$f":"Produits[[#This Row],[Code Produit]]","v":1100},"Frais"]
[1101,"Mini-croissant (x 12) (30 gr.)",12,{"$f":"CONCATENATE(Produits[[#This Row],[Code Produit]],\" - \",Produits[[#This Row],[Nom Produit]])","v":"1101 - Mini-croissant (x 12) (30 gr.)"},{"$f":"Produits[[#This Row],[Code Produit]]","v":1101},"Frais"]
[1102,"Mini-danoise (x 12) (30 gr.)",12,{"$f":"CONCATENATE(Produits[[#This Row],[Code Produit]],\" - \",Produits[[#This Row],[Nom Produit]])","v":"1102 - Mini-danoise (x 12) (30 gr.)"},{"$f":"Produits[[#This Row],[Code Produit]]","v":1102},"Frais"]
[1103,"Mini-feuilleté (x 12) (30 gr.)",12,{"$f":"CONCATENATE(Produits[[#This Row],[Code Produit]],\" - \",Produits[[#This Row],[Nom Produit]])","v":"1103 - Mini-feuilleté (x 12) (30 gr.)"},{"$f":"Produits[[#This Row],[Code Produit]]","v":1103},"Frais"]
[1200,"Brioche vendéenne (unité) (45 gr.)",1,{"$f":"CONCATENATE(Produits[[#This Row],[Code Produit]],\" - \",Produits[[#This Row],[Nom Produit]])","v":"1200 - Brioche vendéenne (unité) (45 gr.)"},{"$f":"Produits[[#This Row],[Code Produit]]","v":1200},"Frais"]
[1201,"Chausson aux pommes (unité) (145 gr.)",1,{"$f":"CONCATENATE(Produits[[#This Row],[Code Produit]],\" - \",Produits[[#This Row],[Nom Produit]])","v":"1201 - Chausson aux pommes (unité) (145 gr.)"},{"$f":"Produits[[#This Row],[Code Produit]]","v":1201},"Frais"]
[1202,"Palmier (unité) (65 gr.)",1,{"$f":"CONCATENATE(Produits[[#This Row],[Code Produit]],\" - \",Produits[[#This Row],[Nom Produit]])","v":"1202 - Palmier (unité) (65 gr.)"},{"$f":"Produits[[#This Row],[Code Produit]]","v":1202},"Frais"]
[1203,"Amandine (unité) (160 gr.)",1,{"$f":"CONCATENATE(Produits[[#This Row],[Code Produit]],\" - \",Produits[[#This Row],[Nom Produit]])","v":"1203 - Amandine (unité) (160 gr.)"},{"$f":"Produits[[#This Row],[Code Produit]]","v":1203},"Réfrigéré"]
[1204,"Pain brioché Victor (x 12) (60 gr.)",12,{"$f":"CONCATENATE(Produits[[#This Row],[Code Produit]],\" - \",Produits[[#This Row],[Nom Produit]])","v":"1204 - Pain brioché Victor (x 12) (60 gr.)"},{"$f":"Produits[[#This Row],[Code Produit]]","v":1204},"Réfrigéré"]
[1300,"Gros muffin aux petits fruits (unité) (130 gr.)",1,{"$f":"CONCATENATE(Produits[[#This Row],[Code Produit]],\" - \",Produits[[#This Row],[Nom Produit]])","v":"1300 - Gros muffin aux petits fruits (unité) (130 gr.)"},{"$f":"Produits[[#This Row],[Code Produit]]","v":1300},"Frais"]
[1301,"Gros muffin trois chocolats (unité) (130 gr.)",1,{"$f":"CONCATENATE(Produits[[#This Row],[Code Produit]],\" - \",Produits[[#This Row],[Nom Produit]])","v":"1301 - Gros muffin trois chocolats (unité) (130 gr.)"},{"$f":"Produits[[#This Row],[Code Produit]]","v":1301},"Frais"]
[1302,"Gros muffin aux agrumes (unité) (130 gr.)",1,{"$f":"CONCATENATE(Produits[[#This Row],[Code Produit]],\" - \",Produits[[#This Row],[Nom Produit]])","v":"1302 - Gros muffin aux agrumes (unité) (130 gr.)"},{"$f":"Produits[[#This Row],[Code Produit]]","v":1302},"Frais"]
[1303,"Mini-muffins assortis (x 12) (65 gr.)",12,{"$f":"CONCATENATE(Produits[[#This Row],[Code Produit]],\" - \",Produits[[#This Row],[Nom Produit]])","v":"1303 - Mini-muffins assortis (x 12) (65 gr.)"},{"$f":"Produits[[#This Row],[Code Produit]]","v":1303},"Frais"]
[1999,"Échantillon viennoiserie",1,{"$f":"CONCATENATE(Produits[[#This Row],[Code Produit]],\" - \",Produits[[#This Row],[Nom Produit]])","v":"1999 - Échantillon viennoiserie"},{"$f":"Produits[[#This Row],[Code Produit]]","v":1999},"Frais"]
[2000,"Burger brioché nature (x 12) (65 gr.)",12,{"$f":"CONCATENATE(Produits[[#This Row],[Code Produit]],\" - \",Produits[[#This Row],[Nom Produit]])","v":"2000 - Burger brioché nature (x 12) (65 gr.)"},{"$f":"Produits[[#This Row],[Code Produit]]","v":2000},"Fait"]
[2001,"Burger brioché semoule (x 12) (65 gr.)",12,{"$f":"CONCATENATE(Produits[[#This Row],[Code Produit]],\" - \",Produits[[#This Row],[Nom Produit]])","v":"2001 - Burger brioché semoule (x 12) (65 gr.)"},{"$f":"Produits[[#This Row],[Code Produit]]","v":2001},"Fait"]
[2002,"Burger brioché fleur de sel (x 12) (65 gr.)",12,{"$f":"CONCATENATE(Produits[[#This Row],[Code Produit]],\" - \",Produits[[#This Row],[Nom Produit]])","v":"2002 - Burger brioché fleur de sel (x 12) (65 gr.)"},{"$f":"Produits[[#This Row],[Code Produit]]","v":2002},"Fait"]
[2003,"Burger nature (x 12) (50 gr.)",12,{"$f":"CONCATENATE(Produits[[#This Row],[Code Produit]],\" - \",Produits[[#This Row],[Nom Produit]])","v":"2003 - Burger nature (x 12) (50 gr.)"},{"$f":"Produits[[#This Row],[Code Produit]]","v":2003},"Fait"]
[2004,"Burger oignon (x 12) (65 gr.)",12,{"$f":"CONCATENATE(Produits[[#This Row],[Code Produit]],\" - \",Produits[[#This Row],[Nom Produit]])","v":"2004 - Burger oignon (x 12) (65 gr.)"},{"$f":"Produits[[#This Row],[Code Produit]]","v":2004},"Fait"]
[2005,"Burger sésame (x 12) (65 gr.)",12,{"$f":"CONCATENATE(Produits[[#This Row],[Code Produit]],\" - \",Produits[[#This Row],[Nom Produit]])","v":"2005 - Burger sésame (x 12) (65 gr.)"},{"$f":"Produits[[#This Row],[Code Produit]]","v":2005},"Fait"]
[2006,"Burger sésame noir (x 12) (60 gr.)",12,{"$f":"CONCATENATE(Produits[[#This Row],[Code Produit]],\" - \",Produits[[#This Row],[Nom Produit]])","v":"2006 - Burger sésame noir (x 12) (60 gr.)"},{"$f":"Produits[[#This Row],[Code Produit]]","v":2006},"Fait"]
[2007,"Burger pavot (x 12) (65 gr.)",12,{"$f":"CONCATENATE(Produits[[#This Row],[Code Produit]],\" - \",Produits[[#This Row],[Nom Produit]])","v":"2007 - Burger pavot (x 12) (65 gr.)"},{"$f":"Produits[[#This Row],[Code Produit]]","v":2007},"Fait"]
[2008,"Burger semoule (x 12) (65 gr.)",12,{"$f":"CONCATENATE(Produits[[#This Row],[Code Produit]],\" - \",Produits[[#This Row],[Nom Produit]])","v":"2008 - Burger semoule (x 12) (65 gr.)"},{"$f":"Produits[[#This Row],[Code Produit]]","v":2008},"Fait"]
[2009,"Burger origan (x 12) ( 65 gr.)",12,{"$f":"CONCATENATE(Produits[[#This Row],[Code Produit]],\" - \",Produits[[#This Row],[Nom Produit]])","v":"2009 - Burger origan (x 12) ( 65 gr.)"},{"$f":"Produits[[#This Row],[Code Produit]]","v":2009},"Fait"]
[2010,"Petit burger semoule-pavot midi Victor (x 12) (50 gr.)",12,{"$f":"CONCATENATE(Produits[[#This Row],[Code Produit]],\" - \",Produits[[#This Row],[Nom Produit]])","v":"2010 - Petit burger semoule-pavot midi Victor (x 12) (50 gr.)"},{"$f":"Produits[[#This Row],[Code Produit]]","v":2010},"Fait"]
[2011,"Gros burger semoule-pavot soir Victor (x 12) (75 gr.)",12,{"$f":"CONCATENATE(Produits[[#This Row],[Code Produit]],\" - \",Produits[[#This Row],[Nom Produit]])","v":"2011 - Gros burger semoule-pavot soir Victor (x 12) (75 gr.)"},{"$f":"Produits[[#This Row],[Code Produit]]","v":2011},"Fait"]
[2012,"Burger semaine Victor (x12) (65 gr.)",12,{"$f":"CONCATENATE(Produits[[#This Row],[Code Produit]],\" - \",Produits[[#This Row],[Nom Produit]])","v":"2012 - Burger semaine Victor (x12) (65 gr.)"},{"$f":"Produits[[#This Row],[Code Produit]]","v":2012},"Fait"]
[2013,"Burger semoule pavot (x12) (65 gr.)",12,{"$f":"CONCATENATE(Produits[[#This Row],[Code Produit]],\" - \",Produits[[#This Row],[Nom Produit]])","v":"2013 - Burger semoule pavot (x12) (65 gr.)"},{"$f":"Produits[[#This Row],[Code Produit]]","v":2013},"Fait"]
[2014,"Burger Shaker (x12) (80 gr.)",12,{"$f":"CONCATENATE(Produits[[#This Row],[Code Produit]],\" - \",Produits[[#This Row],[Nom Produit]])","v":"2014 - Burger Shaker (x12) (80 gr.)"},{"$f":"Produits[[#This Row],[Code Produit]]","v":2014},"Fait"]
[2100,"Mini-burger oignons (x 24) (35 gr.)",24,{"$f":"CONCATENATE(Produits[[#This Row],[Code Produit]],\" - \",Produits[[#This Row],[Nom Produit]])","v":"2100 - Mini-burger oignons (x 24) (35 gr.)"},{"$f":"Produits[[#This Row],[Code Produit]]","v":2100},"Fait"]
[2101,"Mini-burger pavot (x 24) (35 gr.)",24,{"$f":"CONCATENATE(Produits[[#This Row],[Code Produit]],\" - \",Produits[[#This Row],[Nom Produit]])","v":"2101 - Mini-burger pavot (x 24) (35 gr.)"},{"$f":"Produits[[#This Row],[Code Produit]]","v":2101},"Fait"]
[2102,"Mini-burger semoule (x 24) (35 gr.)",24,{"$f":"CONCATENATE(Produits[[#This Row],[Code Produit]],\" - \",Produits[[#This Row],[Nom Produit]])","v":"2102 - Mini-burger semoule (x 24) (35 gr.)"},{"$f":"Produits[[#This Row],[Code Produit]]","v":2102},"Fait"]
[2103,"Mini-burger brioché (x 24) (35 gr.)",24,{"$f":"CONCATENATE(Produits[[#This Row],[Code Produit]],\" - \",Produits[[#This Row],[Nom Produit]])","v":"2103 - Mini-burger brioché (x 24) (35 gr.)"},{"$f":"Produits[[#This Row],[Code Produit]]","v":2103},"Fait"]
[2104,"Mini-burger brioché Shaker (x24) (35 gr.)",24,{"$f":"CONCATENATE(Produits[[#This Row],[Code Produit]],\" - \",Produits[[#This Row],[Nom Produit]])","v":"2104 - Mini-burger brioché Shaker (x24) (35 gr.)"},{"$f":"Produits[[#This Row],[Code Produit]]","v":2104},"Fait"]
[2105,"Mini-burger brioché fleur de sel (x24) (35gr.)",24,{"$f":"CONCATENATE(Produits[[#This Row],[Code Produit]],\" - \",Produits[[#This Row],[Nom Produit]])","v":"2105 - Mini-burger brioché fleur de sel (x24) (35gr.)"},{"$f":"Produits[[#This Row],[Code Produit]]","v":2105},"Fait"]
[2999,"Échantillon burger",1,{"$f":"CONCATENATE(Produits[[#This Row],[Code Produit]],\" - \",Produits[[#This Row],[Nom Produit]])","v":"2999 - Échantillon burger"},{"$f":"Produits[[#This Row],[Code Produit]]","v":2999},"Frais"]
[3000,"Panini roquette (x 12) (100 gr.)",12,{"$f":"CONCATENATE(Produits[[#This Row],[Code Produit]],\" - \",Produits[[#This Row],[Nom Produit]])","v":"3000 - Panini roquette (x 12) (100 gr.)"},{"$f":"Produits[[#This Row],[Code Produit]]","v":3000},"Frais"]
[3001,"Panini carré tomate-olive (unité) (100 gr.)",1,{"$f":"CONCATENATE(Produits[[#This Row],[Code Produit]],\" - \",Produits[[#This Row],[Nom Produit]])","v":"3001 - Panini carré tomate-olive (unité) (100 gr.)"},{"$f":"Produits[[#This Row],[Code Produit]]","v":3001},"Congelé"]
[3002,"Panini carré roquette (unité) (75 gr.)",1,{"$f":"CONCATENATE(Produits[[#This Row],[Code Produit]],\" - \",Produits[[#This Row],[Nom Produit]])","v":"3002 - Panini carré roquette (unité) (75 gr.)"},{"$f":"Produits[[#This Row],[Code Produit]]","v":3002},"Congelé"]
[3003,"Panini carré fariné gros (x 10) (100 gr.)",10,{"$f":"CONCATENATE(Produits[[#This Row],[Code Produit]],\" - \",Produits[[#This Row],[Nom Produit]])","v":"3003 - Panini carré fariné gros (x 10) (100 gr.)"},{"$f":"Produits[[#This Row],[Code Produit]]","v":3003},"Congelé"]
[3004,"Panini carré fariné petit (x 10) (80 gr.)",10,{"$f":"CONCATENATE(Produits[[#This Row],[Code Produit]],\" - \",Produits[[#This Row],[Nom Produit]])","v":"3004 - Panini carré fariné petit (x 10) (80 gr.)"},{"$f":"Produits[[#This Row],[Code Produit]]","v":3004},"Congelé"]
[3005,"Panini carré graines autrichiennes gros (x 10) (100 gr.)",10,{"$f":"CONCATENATE(Produits[[#This Row],[Code Produit]],\" - \",Produits[[#This Row],[Nom Produit]])","v":"3005 - Panini carré graines autrichiennes gros (x 10) (100 gr.)"},{"$f":"Produits[[#This Row],[Code Produit]]","v":3005},"Congelé"]
[3006,"Panini carré graines autrichiennes petit (x 10) (80 gr.)",10,{"$f":"CONCATENATE(Produits[[#This Row],[Code Produit]],\" - \",Produits[[#This Row],[Nom Produit]])","v":"3006 - Panini carré graines autrichiennes petit (x 10) (80 gr.)"},{"$f":"Produits[[#This Row],[Code Produit]]","v":3006},"Congelé"]
[3007,"Panini carré blé-avoine gros (x 10) (100 gr.)",10,{"$f":"CONCATENATE(Produits[[#This Row],[Code Produit]],\" - \",Produits[[#This Row],[Nom Produit]])","v":"3007 - Panini carré blé-avoine gros (x 10) (100 gr.)"},{"$f":"Produits[[#This Row],[Code Produit]]","v":3007},"Congelé"]
[3008,"Panini carré blé-avoine petit (x 10) (80 gr.)",10,{"$f":"CONCATENATE(Produits[[#This Row],[Code Produit]],\" - \",Produits[[#This Row],[Nom Produit]])","v":"3008 - Panini carré blé-avoine petit (x 10) (80 gr.)"},{"$f":"Produits[[#This Row],[Code Produit]]","v":3008},"Congelé"]
[3009,"Panini carré carotte petit (x 10) (80 gr.)",10,{"$f":"CONCATENATE(Produits[[#This Row],[Code Produit]],\" - \",Produits[[#This Row],[Nom Produit]])","v":"3009 - Panini carré carotte petit (x 10) (80 gr.)"},{"$f":"Produits[[#This Row],[Code Produit]]","v":3009},"Congelé"]
[3010,"Panini pumpernickel petit (x 10) (80 gr.)",10,{"$f":"CONCATENATE(Produits[[#This Row],[Code Produit]],\" - \",Produits[[#This Row],[Nom Produit]])","v":"3010 - Panini pumpernickel petit (x 10) (80 gr.)"},{"$f":"Produits[[#This Row],[Code Produit]]","v":3010},"Frais"]
[3011,"Panini pumpernickel gros (x 10) (100 gr.)",10,{"$f":"CONCATENATE(Produits[[#This Row],[Code Produit]],\" - \",Produits[[#This Row],[Nom Produit]])","v":"3011 - Panini pumpernickel gros (x 10) (100 gr.)"},{"$f":"Produits[[#This Row],[Code Produit]]","v":3011},"Frais"]
[3012,"Panini carré aux piments (x10) (65 gr.)",10,{"$f":"CONCATENATE(Produits[[#This Row],[Code Produit]],\" - \",Produits[[#This Row],[Nom Produit]])","v":"3012 - Panini carré aux piments (x10) (65 gr.)"},{"$f":"Produits[[#This Row],[Code Produit]]","v":3012},"Frais"]
[3013,"Panini carré tomates et olives (x10) (65gr.)",10,{"$f":"CONCATENATE(Produits[[#This Row],[Code Produit]],\" - \",Produits[[#This Row],[Nom Produit]])","v":"3013 - Panini carré tomates et olives (x10) (65gr.)"},{"$f":"Produits[[#This Row],[Code Produit]]","v":3013},"Congelé"]
[3014,"Panini triangle aux fines herbes (x10) (65gr.)",10,{"$f":"CONCATENATE(Produits[[#This Row],[Code Produit]],\" - \",Produits[[#This Row],[Nom Produit]])","v":"3014 - Panini triangle aux fines herbes (x10) (65gr.)"},{"$f":"Produits[[#This Row],[Code Produit]]","v":3014},"Frais"]
[3100,"Plaque foccacia nature (unité) (2 kg.)",1,{"$f":"CONCATENATE(Produits[[#This Row],[Code Produit]],\" - \",Produits[[#This Row],[Nom Produit]])","v":"3100 - Plaque foccacia nature (unité) (2 kg.)"},{"$f":"Produits[[#This Row],[Code Produit]]","v":3100},"Frais"]
[3101,"Plaque foccacia curi (unité) (2 kg.)",1,{"$f":"CONCATENATE(Produits[[#This Row],[Code Produit]],\" - \",Produits[[#This Row],[Nom Produit]])","v":"3101 - Plaque foccacia curi (unité) (2 kg.)"},{"$f":"Produits[[#This Row],[Code Produit]]","v":3101},"Frais"]
[3102,"Plaque foccacia aux herbes (unité) (2 kg.)",1,{"$f":"CONCATENATE(Produits[[#This Row],[Code Produit]],\" - \",Produits[[#This Row],[Nom Produit]])","v":"3102 - Plaque foccacia aux herbes (unité) (2 kg.)"},{"$f":"Produits[[#This Row],[Code Produit]]","v":3102},"Frais"]
[3103,"Plaque foccacia aux olives (unité) (2 kg.)",1,{"$f":"CONCATENATE(Produits[[#This Row],[Code Produit]],\" - \",Produits[[#This Row],[Nom Produit]])","v":"3103 - Plaque foccacia aux olives (unité) (2 kg.)"},{"$f":"Produits[[#This Row],[Code Produit]]","v":3103},"Frais"]
[3104,"Plaque pain grilled-cheese (x 2) (1 kg.)",2,{"$f":"CONCATENATE(Produits[[#This Row],[Code Produit]],\" - \",Produits[[#This Row],[Nom Produit]])","v":"3104 - Plaque pain grilled-cheese (x 2) (1 kg.)"},{"$f":"Produits[[#This Row],[Code Produit]]","v":3104},"Frais"]
[3105,"Plaque foccacia au maïs (unité) (2 kg.)",1,{"$f":"CONCATENATE(Produits[[#This Row],[Code Produit]],\" - \",Produits[[#This Row],[Nom Produit]])","v":"3105 - Plaque foccacia au maïs (unité) (2 kg.)"},{"$f":"Produits[[#This Row],[Code Produit]]","v":3105},"Frais"]
[3106,"Plaque foccacia nature (unité) (1,8 kg.)",1,{"$f":"CONCATENATE(Produits[[#This Row],[Code Produit]],\" - \",Produits[[#This Row],[Nom Produit]])","v":"3106 - Plaque foccacia nature (unité) (1,8 kg.)"},{"$f":"Produits[[#This Row],[Code Produit]]","v":3106},"Frais"]
[3107,"Plaque foccacia au paprika (unité) (1,8 kg.)",1,{"$f":"CONCATENATE(Produits[[#This Row],[Code Produit]],\" - \",Produits[[#This Row],[Nom Produit]])","v":"3107 - Plaque foccacia au paprika (unité) (1,8 kg.)"},{"$f":"Produits[[#This Row],[Code Produit]]","v":3107},"Frais"]
[3108,"Plaque foccacia roquette (unité) (1,8 kg.)",1,{"$f":"CONCATENATE(Produits[[#This Row],[Code Produit]],\" - \",Produits[[#This Row],[Nom Produit]])","v":"3108 - Plaque foccacia roquette (unité) (1,8 kg.)"},{"$f":"Produits[[#This Row],[Code Produit]]","v":3108},"Frais"]
[3200,"Trottoir semoule (x 5) (430 gr.)",5,{"$f":"CONCATENATE(Produits[[#This Row],[Code Produit]],\" - \",Produits[[#This Row],[Nom Produit]])","v":"3200 - Trottoir semoule (x 5) (430 gr.)"},{"$f":"Produits[[#This Row],[Code Produit]]","v":3200},"Frais"]
[3201,"Trottoir graines autrichiennes (x 5) (430 gr.)",5,{"$f":"CONCATENATE(Produits[[#This Row],[Code Produit]],\" - \",Produits[[#This Row],[Nom Produit]])","v":"3201 - Trottoir graines autrichiennes (x 5) (430 gr.)"},{"$f":"Produits[[#This Row],[Code Produit]]","v":3201},"Frais"]
[3202,"Trottoir pavot (x5) (430 gr.)",5,{"$f":"CONCATENATE(Produits[[#This Row],[Code Produit]],\" - \",Produits[[#This Row],[Nom Produit]])","v":"3202 - Trottoir pavot (x5) (430 gr.)"},{"$f":"Produits[[#This Row],[Code Produit]]","v":3202},"Frais"]
[3300,"Sous-marin nature (x 12) (75 gr.)",12,{"$f":"CONCATENATE(Produits[[#This Row],[Code Produit]],\" - \",Produits[[#This Row],[Nom Produit]])","v":"3300 - Sous-marin nature (x 12) (75 gr.)"},{"$f":"Produits[[#This Row],[Code Produit]]","v":3300},"Frais"]
[3301,"Sous-marin aux fines herbes (x 12) (75 gr.)",12,{"$f":"CONCATENATE(Produits[[#This Row],[Code Produit]],\" - \",Produits[[#This Row],[Nom Produit]])","v":"3301 - Sous-marin aux fines herbes (x 12) (75 gr.)"},{"$f":"Produits[[#This Row],[Code Produit]]","v":3301},"Frais"]
[3302,"Sous-marin blé-avoine (x 12) (75 gr.)",12,{"$f":"CONCATENATE(Produits[[#This Row],[Code Produit]],\" - \",Produits[[#This Row],[Nom Produit]])","v":"3302 - Sous-marin blé-avoine (x 12) (75 gr.)"},{"$f":"Produits[[#This Row],[Code Produit]]","v":3302},"Frais"]
[3303,"Navette Shaker (x18) (60 gr.)",18,{"$f":"CONCATENATE(Produits[[#This Row],[Code Produit]],\" - \",Produits[[#This Row],[Nom Produit]])","v":"3303 - Navette Shaker (x18) (60 gr.)"},{"$f":"Produits[[#This Row],[Code Produit]]","v":3303}]
[3400,"Pain naan végétalien Victor (x 12) (60 gr.)",12,{"$f":"CONCATENATE(Produits[[#This Row],[Code Produit]],\" - \",Produits[[#This Row],[Nom Produit]])","v":"3400 - Pain naan végétalien Victor (x 12) (60 gr.)"},{"$f":"Produits[[#This Row],[Code Produit]]","v":3400},"Fait"]
[3401,"Pain déjeuner style ciabatta (x 15) (45 gr.)",15,{"$f":"CONCATENATE(Produits[[#This Row],[Code Produit]],\" - \",Produits[[#This Row],[Nom Produit]])","v":"3401 - Pain déjeuner style ciabatta (x 15) (45 gr.)"},{"$f":"Produits[[#This Row],[Code Produit]]","v":3401},"Congelé"]
[3402,"Pain plat pavot (x12) (80 gr.)",12,{"$f":"CONCATENATE(Produits[[#This Row],[Code Produit]],\" - \",Produits[[#This Row],[Nom Produit]])","v":"3402 - Pain plat pavot (x12) (80 gr.)"},{"$f":"Produits[[#This Row],[Code Produit]]","v":3402},"Congelé"]
[3500,"Baguette de blé Casa (unité) (400 gr.)",1,{"$f":"CONCATENATE(Produits[[#This Row],[Code Produit]],\" - \",Produits[[#This Row],[Nom Produit]])","v":"3500 - Baguette de blé Casa (unité) (400 gr.)"},{"$f":"Produits[[#This Row],[Code Produit]]","v":3500},"Frais"]
[3501,"Baguette de blé Vieux-Duluth (unité) (400 gr.)",1,{"$f":"CONCATENATE(Produits[[#This Row],[Code Produit]],\" - \",Produits[[#This Row],[Nom Produit]])","v":"3501 - Baguette de blé Vieux-Duluth (unité) (400 gr.)"},{"$f":"Produits[[#This Row],[Code Produit]]","v":3501},"Frais"]
[3502,"Baguette de blé sans sésame Vieux-Duluth (unité) (400 gr.)",1,{"$f":"CONCATENATE(Produits[[#This Row],[Code Produit]],\" - \",Produits[[#This Row],[Nom Produit]])","v":"3502 - Baguette de blé sans sésame Vieux-Duluth (unité) (400 gr.)"},{"$f":"Produits[[#This Row],[Code Produit]]","v":3502},"Frais"]
[3999,"Échantillon pain à sandwich",1,{"$f":"CONCATENATE(Produits[[#This Row],[Code Produit]],\" - \",Produits[[#This Row],[Nom Produit]])","v":"3999 - Échantillon pain à sandwich"},{"$f":"Produits[[#This Row],[Code Produit]]","v":3999},"Frais"]
[4000,"Pain blanc tranché (unité) (500 gr.)",1,{"$f":"CONCATENATE(Produits[[#This Row],[Code Produit]],\" - \",Produits[[#This Row],[Nom Produit]])","v":"4000 - Pain blanc tranché (unité) (500 gr.)"},{"$f":"Produits[[#This Row],[Code Produit]]","v":4000},"Fait"]
[4001,"Pain blé tranché (unité) (500 gr.)",1,{"$f":"CONCATENATE(Produits[[#This Row],[Code Produit]],\" - \",Produits[[#This Row],[Nom Produit]])","v":"4001 - Pain blé tranché (unité) (500 gr.)"},{"$f":"Produits[[#This Row],[Code Produit]]","v":4001},"Fait"]
[4002,"Pain céréales tranché large (unité) (500 gr.)",1,{"$f":"CONCATENATE(Produits[[#This Row],[Code Produit]],\" - \",Produits[[#This Row],[Nom Produit]])","v":"4002 - Pain céréales tranché large (unité) (500 gr.)"},{"$f":"Produits[[#This Row],[Code Produit]]","v":4002},"Fait"]
[4003,"Pain multigrains la Cohue tranché (unité) (500 gr.)",1,{"$f":"CONCATENATE(Produits[[#This Row],[Code Produit]],\" - \",Produits[[#This Row],[Nom Produit]])","v":"4003 - Pain multigrains la Cohue tranché (unité) (500 gr.)"},{"$f":"Produits[[#This Row],[Code Produit]]","v":4003},"Fait"]
[4004,"Pain ménage blanc tranché (unité) (900 gr.)",1,{"$f":"CONCATENATE(Produits[[#This Row],[Code Produit]],\" - \",Produits[[#This Row],[Nom Produit]])","v":"4004 - Pain ménage blanc tranché (unité) (900 gr.)"},{"$f":"Produits[[#This Row],[Code Produit]]","v":4004},"Fait"]
[4005,"Pain ménage blé tranché (unité) (900 gr.)",1,{"$f":"CONCATENATE(Produits[[#This Row],[Code Produit]],\" - \",Produits[[#This Row],[Nom Produit]])","v":"4005 - Pain ménage blé tranché (unité) (900 gr.)"},{"$f":"Produits[[#This Row],[Code Produit]]","v":4005},"Fait"]
[4006,"Pain ménage graines autrichiennes tranché large  (unité) (90",1,{"$f":"CONCATENATE(Produits[[#This Row],[Code Produit]],\" - \",Produits[[#This Row],[Nom Produit]])","v":"4006 - Pain ménage graines autrichiennes tranché large  (unité) (90"},{"$f":"Produits[[#This Row],[Code Produit]]","v":4006},"Fait"]
[4100,"Petit belge blanc tranché (unité) (500 gr.)",1,{"$f":"CONCATENATE(Produits[[#This Row],[Code Produit]],\" - \",Produits[[#This Row],[Nom Produit]])","v":"4100 - Petit belge blanc tranché (unité) (500 gr.)"},{"$f":"Produits[[#This Row],[Code Produit]]","v":4100},"Fait"]
[4101,"Petit belge blé tranché (unité) (500 gr.)",1,{"$f":"CONCATENATE(Produits[[#This Row],[Code Produit]],\" - \",Produits[[#This Row],[Nom Produit]])","v":"4101 - Petit belge blé tranché (unité) (500 gr.)"},{"$f":"Produits[[#This Row],[Code Produit]]","v":4101},"Fait"]
[4102,"Gros belge blanc tranché (unité) (800 gr.)",1,{"$f":"CONCATENATE(Produits[[#This Row],[Code Produit]],\" - \",Produits[[#This Row],[Nom Produit]])","v":"4102 - Gros belge blanc tranché (unité) (800 gr.)"},{"$f":"Produits[[#This Row],[Code Produit]]","v":4102},"Fait"]
[4103,"Gros belge blé tranché (unité) (800 gr.)",1,{"$f":"CONCATENATE(Produits[[#This Row],[Code Produit]],\" - \",Produits[[#This Row],[Nom Produit]])","v":"4103 - Gros belge blé tranché (unité) (800 gr.)"},{"$f":"Produits[[#This Row],[Code Produit]]","v":4103},"Fait"]
[4104,"Moulé Hot-dog non-tranché (unité) (225 gr.)",1,{"$f":"CONCATENATE(Produits[[#This Row],[Code Produit]],\" - \",Produits[[#This Row],[Nom Produit]])","v":"4104 - Moulé Hot-dog non-tranché (unité) (225 gr.)"},{"$f":"Produits[[#This Row],[Code Produit]]","v":4104},"Fait"]
[4200,"Pain aux noix de Grenoble tranché (unité) (500 gr.)",1,{"$f":"CONCATENATE(Produits[[#This Row],[Code Produit]],\" - \",Produits[[#This Row],[Nom Produit]])","v":"4200 - Pain aux noix de Grenoble tranché (unité) (500 gr.)"},{"$f":"Produits[[#This Row],[Code Produit]]","v":4200},"Fait"]
[4201,"Pain pumpernickel tranché (unité) (500 gr.)",1,{"$f":"CONCATENATE(Produits[[#This Row],[Code Produit]],\" - \",Produits[[#This Row],[Nom Produit]])","v":"4201 - Pain pumpernickel tranché (unité) (500 gr.)"},{"$f":"Produits[[#This Row],[Code Produit]]","v":4201},"Fait"]
[4202,"Pain banique tranché  (unité) (500 gr.)",1,{"$f":"CONCATENATE(Produits[[#This Row],[Code Produit]],\" - \",Produits[[#This Row],[Nom Produit]])","v":"4202 - Pain banique tranché  (unité) (500 gr.)"},{"$f":"Produits[[#This Row],[Code Produit]]","v":4202},"Fait"]
[4203,"Pain banique non tranché (unité) (500 gr.)",1,{"$f":"CONCATENATE(Produits[[#This Row],[Code Produit]],\" - \",Produits[[#This Row],[Nom Produit]])","v":"4203 - Pain banique non tranché (unité) (500 gr.)"},{"$f":"Produits[[#This Row],[Code Produit]]","v":4203},"Fait"]
[4204,"Pain brioché tranché (unité) (500 gr.)",1,{"$f":"CONCATENATE(Produits[[#This Row],[Code Produit]],\" - \",Produits[[#This Row],[Nom Produit]])","v":"4204 - Pain brioché tranché (unité) (500 gr.)"},{"$f":"Produits[[#This Row],[Code Produit]]","v":4204},"Fait"]
[4205,"Pain brioché non tranché (unité) (500 gr.)",1,{"$f":"CONCATENATE(Produits[[#This Row],[Code Produit]],\" - \",Produits[[#This Row],[Nom Produit]])","v":"4205 - Pain brioché non tranché (unité) (500 gr.)"},{"$f":"Produits[[#This Row],[Code Produit]]","v":4205},"Fait"]
[4206,"Bâtard noix de grenoble et raisins non tranché (unité) (600",1,{"$f":"CONCATENATE(Produits[[#This Row],[Code Produit]],\" - \",Produits[[#This Row],[Nom Produit]])","v":"4206 - Bâtard noix de grenoble et raisins non tranché (unité) (600"},{"$f":"Produits[[#This Row],[Code Produit]]","v":4206},"Fait"]
[4999,"Échantillon pain tranché",1,{"$f":"CONCATENATE(Produits[[#This Row],[Code Produit]],\" - \",Produits[[#This Row],[Nom Produit]])","v":"4999 - Échantillon pain tranché"},{"$f":"Produits[[#This Row],[Code Produit]]","v":4999},"Fait"]
[5000,"Baguette levain (unité) (280 gr.)",1,{"$f":"CONCATENATE(Produits[[#This Row],[Code Produit]],\" - \",Produits[[#This Row],[Nom Produit]])","v":"5000 - Baguette levain (unité) (280 gr.)"},{"$f":"Produits[[#This Row],[Code Produit]]","v":5000},"Frais"]
[5001,"Parisien (unité) (480 gr.)",1,{"$f":"CONCATENATE(Produits[[#This Row],[Code Produit]],\" - \",Produits[[#This Row],[Nom Produit]])","v":"5001 - Parisien (unité) (480 gr.)"},{"$f":"Produits[[#This Row],[Code Produit]]","v":5001},"Frais"]
[5002,"Ficelle pavot (unité) (175 gr.)",1,{"$f":"CONCATENATE(Produits[[#This Row],[Code Produit]],\" - \",Produits[[#This Row],[Nom Produit]])","v":"5002 - Ficelle pavot (unité) (175 gr.)"},{"$f":"Produits[[#This Row],[Code Produit]]","v":5002},"Frais"]
[5003,"Ficelle sésame (unité) (175 gr.)",1,{"$f":"CONCATENATE(Produits[[#This Row],[Code Produit]],\" - \",Produits[[#This Row],[Nom Produit]])","v":"5003 - Ficelle sésame (unité) (175 gr.)"},{"$f":"Produits[[#This Row],[Code Produit]]","v":5003},"Frais"]
[5004,"Ficelle nature (unité) (175 gr.)",1,{"$f":"CONCATENATE(Produits[[#This Row],[Code Produit]],\" - \",Produits[[#This Row],[Nom Produit]])","v":"5004 - Ficelle nature (unité) (175 gr.)"},{"$f":"Produits[[#This Row],[Code Produit]]","v":5004},"Frais"]
[5005,"Grosse baguettine nature (unité) (175 gr.)",1,{"$f":"CONCATENATE(Produits[[#This Row],[Code Produit]],\" - \",Produits[[#This Row],[Nom Produit]])","v":"5005 - Grosse baguettine nature (unité) (175 gr.)"},{"$f":"Produits[[#This Row],[Code Produit]]","v":5005},"Frais"]
[5100,"Demie-baguette canneberge (x 40) (135 gr.)",40,{"$f":"CONCATENATE(Produits[[#This Row],[Code Produit]],\" - \",Produits[[#This Row],[Nom Produit]])","v":"5100 - Demie-baguette canneberge (x 40) (135 gr.)"},{"$f":"Produits[[#This Row],[Code Produit]]","v":5100},"Frais"]
[5101,"Demie-baguette nature (unité) (135 gr.)",1,{"$f":"CONCATENATE(Produits[[#This Row],[Code Produit]],\" - \",Produits[[#This Row],[Nom Produit]])","v":"5101 - Demie-baguette nature (unité) (135 gr.)"},{"$f":"Produits[[#This Row],[Code Produit]]","v":5101},"Frais"]
[5102,"Demie-baguette citron-pavot (unité) (135 gr.)",1,{"$f":"CONCATENATE(Produits[[#This Row],[Code Produit]],\" - \",Produits[[#This Row],[Nom Produit]])","v":"5102 - Demie-baguette citron-pavot (unité) (135 gr.)"},{"$f":"Produits[[#This Row],[Code Produit]]","v":5102},"Frais"]
[5200,"Grosse miche tranchée (unité) (600 gr.)",1,{"$f":"CONCATENATE(Produits[[#This Row],[Code Produit]],\" - \",Produits[[#This Row],[Nom Produit]])","v":"5200 - Grosse miche tranchée (unité) (600 gr.)"},{"$f":"Produits[[#This Row],[Code Produit]]","v":5200},"Frais"]
[5201,"Grosse miche non tranchée (unité) (600 gr.)",1,{"$f":"CONCATENATE(Produits[[#This Row],[Code Produit]],\" - \",Produits[[#This Row],[Nom Produit]])","v":"5201 - Grosse miche non tranchée (unité) (600 gr.)"},{"$f":"Produits[[#This Row],[Code Produit]]","v":5201},"Frais"]
[5202,"Petite miche tranchée (unité) (425 gr.)",1,{"$f":"CONCATENATE(Produits[[#This Row],[Code Produit]],\" - \",Produits[[#This Row],[Nom Produit]])","v":"5202 - Petite miche tranchée (unité) (425 gr.)"},{"$f":"Produits[[#This Row],[Code Produit]]","v":5202},"Frais"]
[5203,"Petite miche non tranchée (unité) (425 gr.)",1,{"$f":"CONCATENATE(Produits[[#This Row],[Code Produit]],\" - \",Produits[[#This Row],[Nom Produit]])","v":"5203 - Petite miche non tranchée (unité) (425 gr.)"},{"$f":"Produits[[#This Row],[Code Produit]]","v":5203},"Frais"]
[5204,"Miche multigrains autrichiens tranchée (unité) (425 gr.)",1,{"$f":"CONCATENATE(Produits[[#This Row],[Code Produit]],\" - \",Produits[[#This Row],[Nom Produit]])","v":"5204 - Miche multigrains autrichiens tranchée (unité) (425 gr.)"},{"$f":"Produits[[#This Row],[Code Produit]]","v":5204},"Frais"]
[5205,"Miche multigrains autrichiens non tranchée (unité) (425 gr.)",1,{"$f":"CONCATENATE(Produits[[#This Row],[Code Produit]],\" - \",Produits[[#This Row],[Nom Produit]])","v":"5205 - Miche multigrains autrichiens non tranchée (unité) (425 gr.)"},{"$f":"Produits[[#This Row],[Code Produit]]","v":5205},"Frais"]
[5206,"Petite miche bol à soupe (unité) (90 gr.)",1,{"$f":"CONCATENATE(Produits[[#This Row],[Code Produit]],\" - \",Produits[[#This Row],[Nom Produit]])","v":"5206 - Petite miche bol à soupe (unité) (90 gr.)"},{"$f":"Produits[[#This Row],[Code Produit]]","v":5206},"Frais"]
[5207,"Miche bol à soupe (unité) ( 200 gr.)",1,{"$f":"CONCATENATE(Produits[[#This Row],[Code Produit]],\" - \",Produits[[#This Row],[Nom Produit]])","v":"5207 - Miche bol à soupe (unité) ( 200 gr.)"},{"$f":"Produits[[#This Row],[Code Produit]]","v":5207},"Frais"]
[5300,"Pain tranché graines autrichiennes Victor (unité) (820 gr.)",1,{"$f":"CONCATENATE(Produits[[#This Row],[Code Produit]],\" - \",Produits[[#This Row],[Nom Produit]])","v":"5300 - Pain tranché graines autrichiennes Victor (unité) (820 gr.)"},{"$f":"Produits[[#This Row],[Code Produit]]","v":5300},"Frais"]
[5301,"Pain tranché au levain Victor (unité) (820 gr.)",1,{"$f":"CONCATENATE(Produits[[#This Row],[Code Produit]],\" - \",Produits[[#This Row],[Nom Produit]])","v":"5301 - Pain tranché au levain Victor (unité) (820 gr.)"},{"$f":"Produits[[#This Row],[Code Produit]]","v":5301},"Frais"]
[5999,"Échantillon four à sole",1,{"$f":"CONCATENATE(Produits[[#This Row],[Code Produit]],\" - \",Produits[[#This Row],[Nom Produit]])","v":"5999 - Échantillon four à sole"},{"$f":"Produits[[#This Row],[Code Produit]]","v":5999},"Frais"]
[6000,"Baguette levain (x 25) (280 gr.)",25,{"$f":"CONCATENATE(Produits[[#This Row],[Code Produit]],\" - \",Produits[[#This Row],[Nom Produit]])","v":"6000 - Baguette levain (x 25) (280 gr.)"},{"$f":"Produits[[#This Row],[Code Produit]]","v":6000},"Congelé"]
[6001,"Ficelles variées (x 50) (175 gr.)",50,{"$f":"CONCATENATE(Produits[[#This Row],[Code Produit]],\" - \",Produits[[#This Row],[Nom Produit]])","v":"6001 - Ficelles variées (x 50) (175 gr.)"},{"$f":"Produits[[#This Row],[Code Produit]]","v":6001},"Congelé"]
[6002,"Ficelles sésame/pavot (x 50) (175 gr.)",50,{"$f":"CONCATENATE(Produits[[#This Row],[Code Produit]],\" - \",Produits[[#This Row],[Nom Produit]])","v":"6002 - Ficelles sésame/pavot (x 50) (175 gr.)"},{"$f":"Produits[[#This Row],[Code Produit]]","v":6002},"Congelé"]
[6003,"Baguettine (x 100) (80 gr.)",100,{"$f":"CONCATENATE(Produits[[#This Row],[Code Produit]],\" - \",Produits[[#This Row],[Nom Produit]])","v":"6003 - Baguettine (x 100) (80 gr.)"},{"$f":"Produits[[#This Row],[Code Produit]]","v":6003},"Congelé"]
[6004,"Baguettine  Parvis (x 12) (80 gr.)",12,{"$f":"CONCATENATE(Produits[[#This Row],[Code Produit]],\" - \",Produits[[#This Row],[Nom Produit]])","v":"6004 - Baguettine  Parvis (x 12) (80 gr.)"},{"$f":"Produits[[#This Row],[Code Produit]]","v":6004},"Congelé"]
[6005,"Baguettine drêche (x 20) (80 gr.)",20,{"$f":"CONCATENATE(Produits[[#This Row],[Code Produit]],\" - \",Produits[[#This Row],[Nom Produit]])","v":"6005 - Baguettine drêche (x 20) (80 gr.)"},{"$f":"Produits[[#This Row],[Code Produit]]","v":6005},"Congelé"]
[6006,"Baguettines nature (x12) (80 gr.)",12,{"$f":"CONCATENATE(Produits[[#This Row],[Code Produit]],\" - \",Produits[[#This Row],[Nom Produit]])","v":"6006 - Baguettines nature (x12) (80 gr.)"},{"$f":"Produits[[#This Row],[Code Produit]]","v":6006},"Congelé"]
[6007,"Demie-baguette canneberge (x 40) (135 gr.)",40,{"$f":"CONCATENATE(Produits[[#This Row],[Code Produit]],\" - \",Produits[[#This Row],[Nom Produit]])","v":"6007 - Demie-baguette canneberge (x 40) (135 gr.)"},{"$f":"Produits[[#This Row],[Code Produit]]","v":6007},"Congelé"]
[6008,"Miches carrées (x30) (200 gr.)",30,{"$f":"CONCATENATE(Produits[[#This Row],[Code Produit]],\" - \",Produits[[#This Row],[Nom Produit]])","v":"6008 - Miches carrées (x30) (200 gr.)"},{"$f":"Produits[[#This Row],[Code Produit]]","v":6008},"Congelé"]
[6009,"Grosses baguettines nature (x 50) (175 gr.)",50,{"$f":"CONCATENATE(Produits[[#This Row],[Code Produit]],\" - \",Produits[[#This Row],[Nom Produit]])","v":"6009 - Grosses baguettines nature (x 50) (175 gr.)"},{"$f":"Produits[[#This Row],[Code Produit]]","v":6009},"Congelé"]
[6010,"Panini naan végétalien surgelés (x 12) (80 gr.)",12,{"$f":"CONCATENATE(Produits[[#This Row],[Code Produit]],\" - \",Produits[[#This Row],[Nom Produit]])","v":"6010 - Panini naan végétalien surgelés (x 12) (80 gr.)"},{"$f":"Produits[[#This Row],[Code Produit]]","v":6010},"Congelé"]
[6100,"Mini-ciabatta (x 144) (50 gr.)",144,{"$f":"CONCATENATE(Produits[[#This Row],[Code Produit]],\" - \",Produits[[#This Row],[Nom Produit]])","v":"6100 - Mini-ciabatta (x 144) (50 gr.)"},{"$f":"Produits[[#This Row],[Code Produit]]","v":6100},"Congelé"]
[6101,"Mini-levain (x 144) (45 gr.)",144,{"$f":"CONCATENATE(Produits[[#This Row],[Code Produit]],\" - \",Produits[[#This Row],[Nom Produit]])","v":"6101 - Mini-levain (x 144) (45 gr.)"},{"$f":"Produits[[#This Row],[Code Produit]]","v":6101},"Congelé"]
[6102,"Mini-levain graines autrichiennes (x 144) (45gr.)",144,{"$f":"CONCATENATE(Produits[[#This Row],[Code Produit]],\" - \",Produits[[#This Row],[Nom Produit]])","v":"6102 - Mini-levain graines autrichiennes (x 144) (45gr.)"},{"$f":"Produits[[#This Row],[Code Produit]]","v":6102},"Congelé"]
[6103,"Mini-levain canneberge-citron (x 144) (40 gr.)",144,{"$f":"CONCATENATE(Produits[[#This Row],[Code Produit]],\" - \",Produits[[#This Row],[Nom Produit]])","v":"6103 - Mini-levain canneberge-citron (x 144) (40 gr.)"},{"$f":"Produits[[#This Row],[Code Produit]]","v":6103},"Congelé"]
[6104,"Mini-levain au sésame (x144) (45 gr.)",144,{"$f":"CONCATENATE(Produits[[#This Row],[Code Produit]],\" - \",Produits[[#This Row],[Nom Produit]])","v":"6104 - Mini-levain au sésame (x144) (45 gr.)"},{"$f":"Produits[[#This Row],[Code Produit]]","v":6104},"Congelé"]
[6200,"Burger brioché (8x12) (65 gr.)",72,{"$f":"CONCATENATE(Produits[[#This Row],[Code Produit]],\" - \",Produits[[#This Row],[Nom Produit]])","v":"6200 - Burger brioché (8x12) (65 gr.)"},{"$f":"Produits[[#This Row],[Code Produit]]","v":6200},"Congelé"]
[6201,"Burger drêche (8x12) (60 gr.)",72,{"$f":"CONCATENATE(Produits[[#This Row],[Code Produit]],\" - \",Produits[[#This Row],[Nom Produit]])","v":"6201 - Burger drêche (8x12) (60 gr.)"},{"$f":"Produits[[#This Row],[Code Produit]]","v":6201},"Congelé"]
[6202,"Mini-burger drêche (2x36) (35 gr.)",72,{"$f":"CONCATENATE(Produits[[#This Row],[Code Produit]],\" - \",Produits[[#This Row],[Nom Produit]])","v":"6202 - Mini-burger drêche (2x36) (35 gr.)"},{"$f":"Produits[[#This Row],[Code Produit]]","v":6202},"Congelé"]
[6203,"Pains à smoked meat (5 x 15) (50 gr.)",60,{"$f":"CONCATENATE(Produits[[#This Row],[Code Produit]],\" - \",Produits[[#This Row],[Nom Produit]])","v":"6203 - Pains à smoked meat (5 x 15) (50 gr.)"},{"$f":"Produits[[#This Row],[Code Produit]]","v":6203},"Congelé"]
[6300,"Ménage autrichien tranché large  (x 6) (800 gr.)",6,{"$f":"CONCATENATE(Produits[[#This Row],[Code Produit]],\" - \",Produits[[#This Row],[Nom Produit]])","v":"6300 - Ménage autrichien tranché large  (x 6) (800 gr.)"},{"$f":"Produits[[#This Row],[Code Produit]]","v":6300},"Congelé"]
[6301,"Pain de seigle tranché (x 9) (600 gr.)",9,{"$f":"CONCATENATE(Produits[[#This Row],[Code Produit]],\" - \",Produits[[#This Row],[Nom Produit]])","v":"6301 - Pain de seigle tranché (x 9) (600 gr.)"},{"$f":"Produits[[#This Row],[Code Produit]]","v":6301},"Congelé"]
[6400,"Foccacia drêche (x 11) (330 gr.)",11,{"$f":"CONCATENATE(Produits[[#This Row],[Code Produit]],\" - \",Produits[[#This Row],[Nom Produit]])","v":"6400 - Foccacia drêche (x 11) (330 gr.)"},{"$f":"Produits[[#This Row],[Code Produit]]","v":6400},"Congelé"]
[6401,"Pain plat à la drêche (x 36) (70 gr.)",36,{"$f":"CONCATENATE(Produits[[#This Row],[Code Produit]],\" - \",Produits[[#This Row],[Nom Produit]])","v":"6401 - Pain plat à la drêche (x 36) (70 gr.)"},{"$f":"Produits[[#This Row],[Code Produit]]","v":6401},"Congelé"]
[6500,"Mini-chocolatine crue (x 150) (35 gr.)",150,{"$f":"CONCATENATE(Produits[[#This Row],[Code Produit]],\" - \",Produits[[#This Row],[Nom Produit]])","v":"6500 - Mini-chocolatine crue (x 150) (35 gr.)"},{"$f":"Produits[[#This Row],[Code Produit]]","v":6500},"Congelé"]
[6501,"Mini-croissant cru (x 150) (35 gr.)",150,{"$f":"CONCATENATE(Produits[[#This Row],[Code Produit]],\" - \",Produits[[#This Row],[Nom Produit]])","v":"6501 - Mini-croissant cru (x 150) (35 gr.)"},{"$f":"Produits[[#This Row],[Code Produit]]","v":6501},"Congelé"]
[6502,"Chocolatine crue (x 75) (110 gr.)",75,{"$f":"CONCATENATE(Produits[[#This Row],[Code Produit]],\" - \",Produits[[#This Row],[Nom Produit]])","v":"6502 - Chocolatine crue (x 75) (110 gr.)"},{"$f":"Produits[[#This Row],[Code Produit]]","v":6502},"Congelé"]
[6503,"Croissant cru (x 75) (100 gr.)",75,{"$f":"CONCATENATE(Produits[[#This Row],[Code Produit]],\" - \",Produits[[#This Row],[Nom Produit]])","v":"6503 - Croissant cru (x 75) (100 gr.)"},{"$f":"Produits[[#This Row],[Code Produit]]","v":6503},"Congelé"]
[6999,"Échantillon produit congelé",1,{"$f":"CONCATENATE(Produits[[#This Row],[Code Produit]],\" - \",Produits[[#This Row],[Nom Produit]])","v":"6999 - Échantillon produit congelé"},{"$f":"Produits[[#This Row],[Code Produit]]","v":6999},"Congelé"]
[9000,"Mini-brioche fleur de sel (x 12) (15 gr.)",12,{"$f":"CONCATENATE(Produits[[#This Row],[Code Produit]],\" - \",Produits[[#This Row],[Nom Produit]])","v":"9000 - Mini-brioche fleur de sel (x 12) (15 gr.)"},{"$f":"Produits[[#This Row],[Code Produit]]","v":9000},"Frais"]
[9001,"Pain moulé noix-drêche tranché  (unité) (450 gr.)",1,{"$f":"CONCATENATE(Produits[[#This Row],[Code Produit]],\" - \",Produits[[#This Row],[Nom Produit]])","v":"9001 - Pain moulé noix-drêche tranché  (unité) (450 gr.)"},{"$f":"Produits[[#This Row],[Code Produit]]","v":9001},"Frais"]
[9002,"Boule de pâte à pizza nature (x 36) (200 gr.)",36,{"$f":"CONCATENATE(Produits[[#This Row],[Code Produit]],\" - \",Produits[[#This Row],[Nom Produit]])","v":"9002 - Boule de pâte à pizza nature (x 36) (200 gr.)"},{"$f":"Produits[[#This Row],[Code Produit]]","v":9002},"Frais"]
[9003,"Boule de pâte à pizza drêche (x 36) (85 gr.)",36,{"$f":"CONCATENATE(Produits[[#This Row],[Code Produit]],\" - \",Produits[[#This Row],[Nom Produit]])","v":"9003 - Boule de pâte à pizza drêche (x 36) (85 gr.)"},{"$f":"Produits[[#This Row],[Code Produit]]","v":9003},"Frais"]
[9004,"Fond de quîche (unité) (75 gr.)",1,{"$f":"CONCATENATE(Produits[[#This Row],[Code Produit]],\" - \",Produits[[#This Row],[Nom Produit]])","v":"9004 - Fond de quîche (unité) (75 gr.)"},{"$f":"Produits[[#This Row],[Code Produit]]","v":9004},"Fait"]
[9005,"Pâte à beigne maison (x 160) (60 gr.)",160,{"$f":"CONCATENATE(Produits[[#This Row],[Code Produit]],\" - \",Produits[[#This Row],[Nom Produit]])","v":"9005 - Pâte à beigne maison (x 160) (60 gr.)"},{"$f":"Produits[[#This Row],[Code Produit]]","v":9005},"Frais"]
[9006,"Pâton de feuilletage (unité) (4,8 kg.)",1,{"$f":"CONCATENATE(Produits[[#This Row],[Code Produit]],\" - \",Produits[[#This Row],[Nom Produit]])","v":"9006 - Pâton de feuilletage (unité) (4,8 kg.)"},{"$f":"Produits[[#This Row],[Code Produit]]","v":9006},"Frais"]
[9007,"Navette cosmos (unité) (10 gr.)",1,{"$f":"CONCATENATE(Produits[[#This Row],[Code Produit]],\" - \",Produits[[#This Row],[Nom Produit]])","v":"9007 - Navette cosmos (unité) (10 gr.)"},{"$f":"Produits[[#This Row],[Code Produit]]","v":9007},"Frais"]
[9999,"Échantillon divers",1,{"$f":"CONCATENATE(Produits[[#This Row],[Code Produit]],\" - \",Produits[[#This Row],[Nom Produit]])","v":"9999 - Échantillon divers"},{"$f":"Produits[[#This Row],[Code Produit]]","v":9999},"Frais"]
[null,"Nouveau 1",null,{"$f":"CONCATENATE(Produits[[#This Row],[Code Produit]],\" - \",Produits[[#This Row],[Nom Produit]])","v":" - Nouveau 1"},{"$f":"Produits[[#This Row],[Code Produit]]","v":0}]
[null,"Nouveau 2",null,{"$f":"CONCATENATE(Produits[[#This Row],[Code Produit]],\" - \",Produits[[#This Row],[Nom Produit]])","v":" - Nouveau 2"},{"$f":"Produits[[#This Row],[Code Produit]]","v":0}]
[null,"Nouveau 3",null,{"$f":"CONCATENATE(Produits[[#This Row],[Code Produit]],\" - \",Produits[[#This Row],[Nom Produit]])","v":" - Nouveau 3"},{"$f":"Produits[[#This Row],[Code Produit]]","v":0}]
[null,"Nouveau 4",null,{"$f":"CONCATENATE(Produits[[#This Row],[Code Produit]],\" - \",Produits[[#This Row],[Nom Produit]])","v":" - Nouveau 4"},{"$f":"Produits[[#This Row],[Code Produit]]","v":0}]
[null,"Nouveau 5",null,{"$f":"CONCATENATE(Produits[[#This Row],[Code Produit]],\" - \",Produits[[#This Row],[Nom Produit]])","v":" - Nouveau 5"},{"$f":"Produits[[#This Row],[Code Produit]]","v":0}]
[null,"Nouveau 6",null,{"$f":"CONCATENATE(Produits[[#This Row],[Code Produit]],\" - \",Produits[[#This Row],[Nom Produit]])","v":" - Nouveau 6"},{"$f":"Produits[[#This Row],[Code Produit]]","v":0}]
[null,"Nouveau 7",null,{"$f":"CONCATENATE(Produits[[#This Row],[Code Produit]],\" - \",Produits[[#This Row],[Nom Produit]])","v":" - Nouveau 7"},{"$f":"Produits[[#This Row],[Code Produit]]","v":0}]
[null,"Nouveau 8",null,{"$f":"CONCATENATE(Produits[[#This Row],[Code Produit]],\" - \",Produits[[#This Row],[Nom Produit]])","v":" - Nouveau 8"},{"$f":"Produits[[#This Row],[Code Produit]]","v":0}]
[null,"Nouveau 9",null,{"$f":"CONCATENATE(Produits[[#This Row],[Code Produit]],\" - \",Produits[[#This Row],[Nom Produit]])","v":" - Nouveau 9"},{"$f":"Produits[[#This Row],[Code Produit]]","v":0}]
[null,"Nouveau 10",null,{"$f":"CONCATENATE(Produits[[#This Row],[Code Produit]],\" - \",Produits[[#This Row],[Nom Produit]])","v":" - Nouveau 10"},{"$f":"Produits[[#This Row],[Code Produit]]","v":0}]
[null,"Nouveau 11",null,{"$f":"CONCATENATE(Produits[[#This Row],[Code Produit]],\" - \",Produits[[#This Row],[Nom Produit]])","v":" - Nouveau 11"},{"$f":"Produits[[#This Row],[Code Produit]]","v":0}]
[null,"Nouveau 12",null,{"$f":"CONCATENATE(Produits[[#This Row],[Code Produit]],\" - \",Produits[[#This Row],[Nom Produit]])","v":" - Nouveau 12"},{"$f":"Produits[[#This Row],[Code Produit]]","v":0}]
[null,"Nouveau 13",null,{"$f":"CONCATENATE(Produits[[#This Row],[Code Produit]],\" - \",Produits[[#This Row],[Nom Produit]])","v":" - Nouveau 13"},{"$f":"Produits[[#This Row],[Code Produit]]","v":0}]
[null,"Nouveau 14",null,{"$f":"CONCATENATE(Produits[[#This Row],[Code Produit]],\" - \",Produits[[#This Row],[Nom Produit]])","v":" - Nouveau 14"},{"$f":"Produits[[#This Row],[Code Produit]]","v":0}]
[null,"Nouveau 15",null,{"$f":"CONCATENATE(Produits[[#This Row],[Code Produit]],\" - \",Produits[[#This Row],[Nom Produit]])","v":" - Nouveau 15"},{"$f":"Produits[[#This Row],[Code Produit]]","v":0}]
[null,"Nouveau 16",null,{"$f":"CONCATENATE(Produits[[#This Row],[Code Produit]],\" - \",Produits[[#This Row],[Nom Produit]])","v":" - Nouveau 16"},{"$f":"Produits[[#This Row],[Code Produit]]","v":0}]
[null,"Nouveau 17",null,{"$f":"CONCATENATE(Produits[[#This Row],[Code Produit]],\" - \",Produits[[#This Row],[Nom Produit]])","v":" - Nouveau 17"},{"$f":"Produits[[#This Row],[Code Produit]]","v":0}]
[null,"Nouveau 18",null,{"$f":"CONCATENATE(Produits[[#This Row],[Code Produit]],\" - \",Produits[[#This Row],[Nom Produit]])","v":" - Nouveau 18"},{"$f":"Produits[[#This Row],[Code Produit]]","v":0}]
[null,"Nouveau 19",null,{"$f":"CONCATENATE(Produits[[#This Row],[Code Produit]],\" - \",Produits[[#This Row],[Nom Produit]])","v":" - Nouveau 19"},{"$f":"Produits[[#This Row],[Code Produit]]","v":0}]
[null,"Nouveau 20",null,{"$f":"CONCATENATE(Produits[[#This Row],[Code Produit]],\" - \",Produits[[#This Row],[Nom Produit]])","v":" - Nouveau 20"},{"$f":"Produits[[#This Row],[Code Produit]]","v":0}]
[null,"Nouveau 21",null,{"$f":"CONCATENATE(Produits[[#This Row],[Code Produit]],\" - \",Produits[[#This Row],[Nom Produit]])","v":" - Nouveau 21"},{"$f":"Produits[[#This Row],[Code Produit]]","v":0}]
[null,"Nouveau 22",null,{"$f":"CONCATENATE(Produits[[#This Row],[Code Produit]],\" - \",Produits[[#This Row],[Nom Produit]])","v":" - Nouveau 22"},{"$f":"Produits[[#This Row],[Code Produit]]","v":0}]
[null,"Nouveau 23",null,{"$f":"CONCATENATE(Produits[[#This Row],[Code Produit]],\" - \",Produits[[#This Row],[Nom Produit]])","v":" - Nouveau 23"},{"$f":"Produits[[#This Row],[Code Produit]]","v":0}]
[null,"Nouveau 24",null,{"$f":"CONCATENATE(Produits[[#This Row],[Code Produit]],\" - \",Produits[[#This Row],[Nom Produit]])","v":" - Nouveau 24"},{"$f":"Produits[[#This Row],[Code Produit]]","v":0}]
[null,"Nouveau 25",null,{"$f":"CONCATENATE(Produits[[#This Row],[Code Produit]],\" - \",Produits[[#This Row],[Nom Produit]])","v":" - Nouveau 25"},{"$f":"Produits[[#This Row],[Code Produit]]","v":0}]

{"sheet":"Liste des clients","index":4,"n_rows":133,"n_cols":11,"rows_kept":133,"cut":false,"hidden":false,"merged":[]}
["No Client","Nom du client","Personne ressource","Adresse","Ville","Code postal","Téléphone","No et nom client","No client2","Ordre de livraison","Client à téléphoner"]
[null,null,null,null,null,null,null,"Sélectionner un client",{"$f":"Clients[[#This Row],[No Client]]","v":0}]
[1,"a",null,null,"Lac-Beauport, Québec","G3B 0X1","418 841-2224",{"$f":"CONCATENATE(Clients[[#This Row],[No Client]],\" - \",Clients[[#This Row],[Nom du client]])","v":"1 - a"},{"$f":"Clients[[#This Row],[No Client]]","v":1}]
[2,"b",null,null,"Québec, Québec","G2G 2B5","418 877-0123",{"$f":"CONCATENATE(Clients[[#This Row],[No Client]],\" - \",Clients[[#This Row],[Nom du client]])","v":"2 - b"},{"$f":"Clients[[#This Row],[No Client]]","v":2}]
[5,"c",null,null,"Québec, Québec","G1V 2V5","418 527-9111",{"$f":"CONCATENATE(Clients[[#This Row],[No Client]],\" - \",Clients[[#This Row],[Nom du client]])","v":"5 - c"},{"$f":"Clients[[#This Row],[No Client]]","v":5},null,"oui"]
[6,"d",null,null,"Québec, Québec","G1R 4L7","418 692-1430",{"$f":"CONCATENATE(Clients[[#This Row],[No Client]],\" - \",Clients[[#This Row],[Nom du client]])","v":"6 - d"},{"$f":"Clients[[#This Row],[No Client]]","v":6}]
[10,"e",null,null,"Québec, Québec","G1X 3V2","418 656-6151",{"$f":"CONCATENATE(Clients[[#This Row],[No Client]],\" - \",Clients[[#This Row],[Nom du client]])","v":"10 - e"},{"$f":"Clients[[#This Row],[No Client]]","v":10}]
[12,"f",null,null,"Québec, Québec","G1R 4H8","418 694-1030",{"$f":"CONCATENATE(Clients[[#This Row],[No Client]],\" - \",Clients[[#This Row],[Nom du client]])","v":"12 - f"},{"$f":"Clients[[#This Row],[No Client]]","v":12},null,"oui"]
[13,"g",null,null,"Québec, Québec","G1R 2K4","418 640-0606",{"$f":"CONCATENATE(Clients[[#This Row],[No Client]],\" - \",Clients[[#This Row],[Nom du client]])","v":"13 - g"},{"$f":"Clients[[#This Row],[No Client]]","v":13}]
[14,"h",null,null,"Lévis, Québec","G6V 0B2","418 830-8888",{"$f":"CONCATENATE(Clients[[#This Row],[No Client]],\" - \",Clients[[#This Row],[Nom du client]])","v":"14 - h"},{"$f":"Clients[[#This Row],[No Client]]","v":14}]
[15,"i",null,null,"Québec, Québec","G1V 2L9","418 652-2001",{"$f":"CONCATENATE(Clients[[#This Row],[No Client]],\" - \",Clients[[#This Row],[Nom du client]])","v":"15 - i"},{"$f":"Clients[[#This Row],[No Client]]","v":15},null,"oui"]
[16,"j",null,null,"Québec, Québec","G1C 5R9","418 667-7311",{"$f":"CONCATENATE(Clients[[#This Row],[No Client]],\" - \",Clients[[#This Row],[Nom du client]])","v":"16 - j"},{"$f":"Clients[[#This Row],[No Client]]","v":16}]
[18,"a",null,null,"Lévis, Québec","G6V 8V6","418 835-6668",{"$f":"CONCATENATE(Clients[[#This Row],[No Client]],\" - \",Clients[[#This Row],[Nom du client]])","v":"18 - a"},{"$f":"Clients[[#This Row],[No Client]]","v":18}]
[19,"b",null,null,"Québec, Québec","G2E 5G3","418 871-7070",{"$f":"CONCATENATE(Clients[[#This Row],[No Client]],\" - \",Clients[[#This Row],[Nom du client]])","v":"19 - b"},{"$f":"Clients[[#This Row],[No Client]]","v":19}]
[20,"c",null,null,"Lévis, Québec","G6W 1G2","418 831-5551",{"$f":"CONCATENATE(Clients[[#This Row],[No Client]],\" - \",Clients[[#This Row],[Nom du client]])","v":"20 - c"},{"$f":"Clients[[#This Row],[No Client]]","v":20}]
[23,"d",null,null,"Québec, Québec","G1M 3R1","418 688-3888",{"$f":"CONCATENATE(Clients[[#This Row],[No Client]],\" - \",Clients[[#This Row],[Nom du client]])","v":"23 - d"},{"$f":"Clients[[#This Row],[No Client]]","v":23}]
[28,"e",null,null,"Québec, Québec","G1R 3Y9","418 694-9995",{"$f":"CONCATENATE(Clients[[#This Row],[No Client]],\" - \",Clients[[#This Row],[Nom du client]])","v":"28 - e"},{"$f":"Clients[[#This Row],[No Client]]","v":28}]
[29,"f",null,null,"Québec, Québec","G1K 7R1","418 522-0133",{"$f":"CONCATENATE(Clients[[#This Row],[No Client]],\" - \",Clients[[#This Row],[Nom du client]])","v":"29 - f"},{"$f":"Clients[[#This Row],[No Client]]","v":29}]
[31,"g",null,null,"Québec, Québec","G1R 1S5","418 694-0234",{"$f":"CONCATENATE(Clients[[#This Row],[No Client]],\" - \",Clients[[#This Row],[Nom du client]])","v":"31 - g"},{"$f":"Clients[[#This Row],[No Client]]","v":31}]
[32,"h",null,null,"Québec, Québec","G1C 5Y8","418 667-7761",{"$f":"CONCATENATE(Clients[[#This Row],[No Client]],\" - \",Clients[[#This Row],[Nom du client]])","v":"32 - h"},{"$f":"Clients[[#This Row],[No Client]]","v":32}]
[41,"i",null,null,"Québec, Québec","G1V 4H3","418 658-2583",{"$f":"CONCATENATE(Clients[[#This Row],[No Client]],\" - \",Clients[[#This Row],[Nom du client]])","v":"41 - i"},{"$f":"Clients[[#This Row],[No Client]]","v":41}]
[43,"j",null,null,"Charny, Québec","G6X 1X7","418 266-0709",{"$f":"CONCATENATE(Clients[[#This Row],[No Client]],\" - \",Clients[[#This Row],[Nom du client]])","v":"43 - j"},{"$f":"Clients[[#This Row],[No Client]]","v":43}]
[52,"a",null,null,"Québec, Quéebc","G1K 7R1","418 522-3555",{"$f":"CONCATENATE(Clients[[#This Row],[No Client]],\" - \",Clients[[#This Row],[Nom du client]])","v":"52 - a"},{"$f":"Clients[[#This Row],[No Client]]","v":52}]
[62,"b",null,null,"Québec, Québec","G1R 2S9","418 948-3773",{"$f":"CONCATENATE(Clients[[#This Row],[No Client]],\" - \",Clients[[#This Row],[Nom du client]])","v":"62 - b"},{"$f":"Clients[[#This Row],[No Client]]","v":62}]
[63,"c",null,null,"Québec, Québec","G1K 6E6","418 649-1919",{"$f":"CONCATENATE(Clients[[#This Row],[No Client]],\" - \",Clients[[#This Row],[Nom du client]])","v":"63 - c"},{"$f":"Clients[[#This Row],[No Client]]","v":63}]
[67,"d",null,null,"Québec, Québec","G1W 4T3","418 659-1322",{"$f":"CONCATENATE(Clients[[#This Row],[No Client]],\" - \",Clients[[#This Row],[Nom du client]])","v":"67 - d"},{"$f":"Clients[[#This Row],[No Client]]","v":67}]
[69,"e",null,null,"Québec, Québec","G1K 6M7","418 264-4615",{"$f":"CONCATENATE(Clients[[#This Row],[No Client]],\" - \",Clients[[#This Row],[Nom du client]])","v":"69 - e"},{"$f":"Clients[[#This Row],[No Client]]","v":69}]
[72,"f",null,null,"Québec, Québec","G1K 3Y2","418 692-2517",{"$f":"CONCATENATE(Clients[[#This Row],[No Client]],\" - \",Clients[[#This Row],[Nom du client]])","v":"72 - f"},{"$f":"Clients[[#This Row],[No Client]]","v":72}]
[73,"g",null,null,"Québec, Québec","G1B 1B7","581 742-9969",{"$f":"CONCATENATE(Clients[[#This Row],[No Client]],\" - \",Clients[[#This Row],[Nom du client]])","v":"73 - g"},{"$f":"Clients[[#This Row],[No Client]]","v":73}]
[75,"h",null,null,"Québec, Québec","G1M 3H1","418 683-5558",{"$f":"CONCATENATE(Clients[[#This Row],[No Client]],\" - \",Clients[[#This Row],[Nom du client]])","v":"75 - h"},{"$f":"Clients[[#This Row],[No Client]]","v":75}]
[76,"i",null,null,"Québec, Québec","G2C 2E2","418 840-5634",{"$f":"CONCATENATE(Clients[[#This Row],[No Client]],\" - \",Clients[[#This Row],[Nom du client]])","v":"76 - i"},{"$f":"Clients[[#This Row],[No Client]]","v":76}]
[78,"j",null,null,"Québec, Québec","G1C 5S7","418 661-2510",{"$f":"CONCATENATE(Clients[[#This Row],[No Client]],\" - \",Clients[[#This Row],[Nom du client]])","v":"78 - j"},{"$f":"Clients[[#This Row],[No Client]]","v":78}]
[79,"a",null,null,"Québec, Québec","G1V 2M2","418 977-9123",{"$f":"CONCATENATE(Clients[[#This Row],[No Client]],\" - \",Clients[[#This Row],[Nom du client]])","v":"79 - a"},{"$f":"Clients[[#This Row],[No Client]]","v":79}]
[80,"b",null,null,"Lévis, Québec","G6V 0H1","418 903-9898",{"$f":"CONCATENATE(Clients[[#This Row],[No Client]],\" - \",Clients[[#This Row],[Nom du client]])","v":"80 - b"},{"$f":"Clients[[#This Row],[No Client]]","v":80}]
[81,"c",null,null,"Québec, Québec","G1R 1N4","418 529-7702",{"$f":"CONCATENATE(Clients[[#This Row],[No Client]],\" - \",Clients[[#This Row],[Nom du client]])","v":"81 - c"},{"$f":"Clients[[#This Row],[No Client]]","v":81}]
[82,"d",null,null,"Lévis, Québec","G6W 5M6","418 839-3409",{"$f":"CONCATENATE(Clients[[#This Row],[No Client]],\" - \",Clients[[#This Row],[Nom du client]])","v":"82 - d"},{"$f":"Clients[[#This Row],[No Client]]","v":82}]
[83,"e",null,null,"Québec, Québec","G1Y 1X5","418 204-3101",{"$f":"CONCATENATE(Clients[[#This Row],[No Client]],\" - \",Clients[[#This Row],[Nom du client]])","v":"83 - e"},{"$f":"Clients[[#This Row],[No Client]]","v":83}]
[84,"f",null,null,"Québec, Québec","G2J 1C3","418 977-1306",{"$f":"CONCATENATE(Clients[[#This Row],[No Client]],\" - \",Clients[[#This Row],[Nom du client]])","v":"84 - f"},{"$f":"Clients[[#This Row],[No Client]]","v":84}]
[85,"g",null,null,"Québec, Québec","G1V 4H2","418 353-0905",{"$f":"CONCATENATE(Clients[[#This Row],[No Client]],\" - \",Clients[[#This Row],[Nom du client]])","v":"85 - g"},{"$f":"Clients[[#This Row],[No Client]]","v":85}]
[86,"h",null,null,"Québec, Québec","G1K 7R1","418 781-2511",{"$f":"CONCATENATE(Clients[[#This Row],[No Client]],\" - \",Clients[[#This Row],[Nom du client]])","v":"86 - h"},{"$f":"Clients[[#This Row],[No Client]]","v":86}]
[87,"i",null,null,"Québec, Québec","G1X 1T1","418 651-8187",{"$f":"CONCATENATE(Clients[[#This Row],[No Client]],\" - \",Clients[[#This Row],[Nom du client]])","v":"87 - i"},{"$f":"Clients[[#This Row],[No Client]]","v":87}]
[88,"j",null,null,"Québec, Québec","G1R 4L7","418 692-1207",{"$f":"CONCATENATE(Clients[[#This Row],[No Client]],\" - \",Clients[[#This Row],[Nom du client]])","v":"88 - j"},{"$f":"Clients[[#This Row],[No Client]]","v":88}]
[92,"a",null,null,"Québec, Québec","G1R 1P7","418 522-0685",{"$f":"CONCATENATE(Clients[[#This Row],[No Client]],\" - \",Clients[[#This Row],[Nom du client]])","v":"92 - a"},{"$f":"Clients[[#This Row],[No Client]]","v":92}]
[93,"b",null,null,"Québec, Québec","G2K 0H5","418 628-2013",{"$f":"CONCATENATE(Clients[[#This Row],[No Client]],\" - \",Clients[[#This Row],[Nom du client]])","v":"93 - b"},{"$f":"Clients[[#This Row],[No Client]]","v":93}]
[94,"c",null,null,"Québec, Québec","G1K 1J9","418 648-1954",{"$f":"CONCATENATE(Clients[[#This Row],[No Client]],\" - \",Clients[[#This Row],[Nom du client]])","v":"94 - c"},{"$f":"Clients[[#This Row],[No Client]]","v":94}]
[95,"d",null,null,"st-nicolas, qc","G7A 5H9","418 831-8200",{"$f":"CONCATENATE(Clients[[#This Row],[No Client]],\" - \",Clients[[#This Row],[Nom du client]])","v":"95 - d"},{"$f":"Clients[[#This Row],[No Client]]","v":95}]
[96,"e",null,null,"St-Pierre, Île d'Orléans, Québ","G0A 4E0","418 828-2287",{"$f":"CONCATENATE(Clients[[#This Row],[No Client]],\" - \",Clients[[#This Row],[Nom du client]])","v":"96 - e"},{"$f":"Clients[[#This Row],[No Client]]","v":96}]
[98,"f",null,null,"Québec, Québec","G1R 2S5","418 525-5981",{"$f":"CONCATENATE(Clients[[#This Row],[No Client]],\" - \",Clients[[#This Row],[Nom du client]])","v":"98 - f"},{"$f":"Clients[[#This Row],[No Client]]","v":98}]
[102,"g",null,null,"Ste-Famille, Ile d'Orléans, Qu","G0A 3P0","418 829-2590",{"$f":"CONCATENATE(Clients[[#This Row],[No Client]],\" - \",Clients[[#This Row],[Nom du client]])","v":"102 - g"},{"$f":"Clients[[#This Row],[No Client]]","v":102}]
[106,"h",null,null,"Québec, Québec","G2K 1M1","418 929-7195",{"$f":"CONCATENATE(Clients[[#This Row],[No Client]],\" - \",Clients[[#This Row],[Nom du client]])","v":"106 - h"},{"$f":"Clients[[#This Row],[No Client]]","v":106}]
[107,"i",null,null,"Québec, QC","G1R 1P1",null,{"$f":"CONCATENATE(Clients[[#This Row],[No Client]],\" - \",Clients[[#This Row],[Nom du client]])","v":"107 - i"},{"$f":"Clients[[#This Row],[No Client]]","v":107}]
[108,"j",null,null,"Québec, QC","G1V 0B9","418 651-4040",{"$f":"CONCATENATE(Clients[[#This Row],[No Client]],\" - \",Clients[[#This Row],[Nom du client]])","v":"108 - j"},{"$f":"Clients[[#This Row],[No Client]]","v":108}]
[109,"a",null,null,"Dorval, Québec","H4Y 1H1",null,{"$f":"CONCATENATE(Clients[[#This Row],[No Client]],\" - \",Clients[[#This Row],[Nom du client]])","v":"109 - a"},{"$f":"Clients[[#This Row],[No Client]]","v":109}]
[110,"b",null,null,"Trois-Rivieres, Québec","G9A 6K8",null,{"$f":"CONCATENATE(Clients[[#This Row],[No Client]],\" - \",Clients[[#This Row],[Nom du client]])","v":"110 - b"},{"$f":"Clients[[#This Row],[No Client]]","v":110}]
[113,"c",null,null,"Québec, QC","G1S 3E3","418 649-1720",{"$f":"CONCATENATE(Clients[[#This Row],[No Client]],\" - \",Clients[[#This Row],[Nom du client]])","v":"113 - c"},{"$f":"Clients[[#This Row],[No Client]]","v":113}]
[116,"d",null,null,"Québec, (QC)","G2B 1B6",null,{"$f":"CONCATENATE(Clients[[#This Row],[No Client]],\" - \",Clients[[#This Row],[Nom du client]])","v":"116 - d"},{"$f":"Clients[[#This Row],[No Client]]","v":116}]
[117,"e",null,null,"Québec, (QC)","G1J 2E3","418 476-5691",{"$f":"CONCATENATE(Clients[[#This Row],[No Client]],\" - \",Clients[[#This Row],[Nom du client]])","v":"117 - e"},{"$f":"Clients[[#This Row],[No Client]]","v":117}]
[119,"f",null,null,"Lévis, QC","G6V 0B5",null,{"$f":"CONCATENATE(Clients[[#This Row],[No Client]],\" - \",Clients[[#This Row],[Nom du client]])","v":"119 - f"},{"$f":"Clients[[#This Row],[No Client]]","v":119}]
[120,"g",null,null,"Québec, Québec","G1K 3B6","581 982-8568",{"$f":"CONCATENATE(Clients[[#This Row],[No Client]],\" - \",Clients[[#This Row],[Nom du client]])","v":"120 - g"},{"$f":"Clients[[#This Row],[No Client]]","v":120}]
[121,"h",null,null,"Québec, QC","G1R 1S8","418 694-0618",{"$f":"CONCATENATE(Clients[[#This Row],[No Client]],\" - \",Clients[[#This Row],[Nom du client]])","v":"121 - h"},{"$f":"Clients[[#This Row],[No Client]]","v":121}]
[122,"i",null,null,"Québec, QC",null,"418 653-1925",{"$f":"CONCATENATE(Clients[[#This Row],[No Client]],\" - \",Clients[[#This Row],[Nom du client]])","v":"122 - i"},{"$f":"Clients[[#This Row],[No Client]]","v":122}]
[123,"j",null,null,"Québec, Québec","G1L 2W4",null,{"$f":"CONCATENATE(Clients[[#This Row],[No Client]],\" - \",Clients[[#This Row],[Nom du client]])","v":"123 - j"},{"$f":"Clients[[#This Row],[No Client]]","v":123}]
[125,"a",null,null,"Qubec, Québec","G1M 1T1",null,{"$f":"CONCATENATE(Clients[[#This Row],[No Client]],\" - \",Clients[[#This Row],[Nom du client]])","v":"125 - a"},{"$f":"Clients[[#This Row],[No Client]]","v":125}]
[126,"b",null,null,"Québec, Québec","G1R 1S8","418 694-0618",{"$f":"CONCATENATE(Clients[[#This Row],[No Client]],\" - \",Clients[[#This Row],[Nom du client]])","v":"126 - b"},{"$f":"Clients[[#This Row],[No Client]]","v":126}]
[128,"c",null,null,"Québec, QC","G1S 3E3","418 208-3405",{"$f":"CONCATENATE(Clients[[#This Row],[No Client]],\" - \",Clients[[#This Row],[Nom du client]])","v":"128 - c"},{"$f":"Clients[[#This Row],[No Client]]","v":128}]
[129,"d",null,null,"Québec, QC","G2B 2X4","418 570-4925",{"$f":"CONCATENATE(Clients[[#This Row],[No Client]],\" - \",Clients[[#This Row],[Nom du client]])","v":"129 - d"},{"$f":"Clients[[#This Row],[No Client]]","v":129}]
[130,"e",null,null,"Québec, QC","G1V 0B4","418 554-4831",{"$f":"CONCATENATE(Clients[[#This Row],[No Client]],\" - \",Clients[[#This Row],[Nom du client]])","v":"130 - e"},{"$f":"Clients[[#This Row],[No Client]]","v":130}]
[132,"f",null,null,"Québec, Québec","G1C 5R9","418 663-1000",{"$f":"CONCATENATE(Clients[[#This Row],[No Client]],\" - \",Clients[[#This Row],[Nom du client]])","v":"132 - f"},{"$f":"Clients[[#This Row],[No Client]]","v":132}]
[133,"g",null,null,"Château-Richer, Québec",null,null,{"$f":"CONCATENATE(Clients[[#This Row],[No Client]],\" - \",Clients[[#This Row],[Nom du client]])","v":"133 - g"},{"$f":"Clients[[#This Row],[No Client]]","v":133}]
[135,"h",null,null,"Québec, QC","G1K 3N9",null,{"$f":"CONCATENATE(Clients[[#This Row],[No Client]],\" - \",Clients[[#This Row],[Nom du client]])","v":"135 - h"},{"$f":"Clients[[#This Row],[No Client]]","v":135}]
[136,"i",null,null,"Ste-Catherine-de-la-Jacques-Ca","G3N 1S7","418 441-8558",{"$f":"CONCATENATE(Clients[[#This Row],[No Client]],\" - \",Clients[[#This Row],[Nom du client]])","v":"136 - i"},{"$f":"Clients[[#This Row],[No Client]]","v":136}]
[138,"j",null,null,"Québec, Québec","G2B 2X4",null,{"$f":"CONCATENATE(Clients[[#This Row],[No Client]],\" - \",Clients[[#This Row],[Nom du client]])","v":"138 - j"},{"$f":"Clients[[#This Row],[No Client]]","v":138}]
[139,"a",null,null,"Québec,","G2E 5X5","418 651-8187",{"$f":"CONCATENATE(Clients[[#This Row],[No Client]],\" - \",Clients[[#This Row],[Nom du client]])","v":"139 - a"},{"$f":"Clients[[#This Row],[No Client]]","v":139}]
[141,"b",null,null,"Québec, Québec","G1L 1N7","418 681-2482",{"$f":"CONCATENATE(Clients[[#This Row],[No Client]],\" - \",Clients[[#This Row],[Nom du client]])","v":"141 - b"},{"$f":"Clients[[#This Row],[No Client]]","v":141}]
[142,"c",null,null,"Québec, Québec","G2A 2M6","418 951-3558",{"$f":"CONCATENATE(Clients[[#This Row],[No Client]],\" - \",Clients[[#This Row],[Nom du client]])","v":"142 - c"},{"$f":"Clients[[#This Row],[No Client]]","v":142}]
[143,"d",null,null,"Québec, Québec","G1H 3B1","418 919-5991",{"$f":"CONCATENATE(Clients[[#This Row],[No Client]],\" - \",Clients[[#This Row],[Nom du client]])","v":"143 - d"},{"$f":"Clients[[#This Row],[No Client]]","v":143}]
[144,"e",null,null,"Québec, Québec","G1V 4H2","418 650-7665",{"$f":"CONCATENATE(Clients[[#This Row],[No Client]],\" - \",Clients[[#This Row],[Nom du client]])","v":"144 - e"},{"$f":"Clients[[#This Row],[No Client]]","v":144}]
[145,"f",null,null,"Québec","G1K 6A7",null,{"$f":"CONCATENATE(Clients[[#This Row],[No Client]],\" - \",Clients[[#This Row],[Nom du client]])","v":"145 - f"},{"$f":"Clients[[#This Row],[No Client]]","v":145}]
[146,"g",null,null,"St-Augustin-de-Desmaures (QC)","G3A 1X1","418 686-0069",{"$f":"CONCATENATE(Clients[[#This Row],[No Client]],\" - \",Clients[[#This Row],[Nom du client]])","v":"146 - g"},{"$f":"Clients[[#This Row],[No Client]]","v":146}]
[147,"h",null,null,null,null,null,{"$f":"CONCATENATE(Clients[[#This Row],[No Client]],\" - \",Clients[[#This Row],[Nom du client]])","v":"147 - h"},{"$f":"Clients[[#This Row],[No Client]]","v":147}]
[148,"i",null,null,"Québec, (QC)","G1V 4H2",null,{"$f":"CONCATENATE(Clients[[#This Row],[No Client]],\" - \",Clients[[#This Row],[Nom du client]])","v":"148 - i"},{"$f":"Clients[[#This Row],[No Client]]","v":148}]
[149,"j",null,null,"Québec (QC)","G1L 2P1",null,{"$f":"CONCATENATE(Clients[[#This Row],[No Client]],\" - \",Clients[[#This Row],[Nom du client]])","v":"149 - j"},{"$f":"Clients[[#This Row],[No Client]]","v":149}]
["OCCASIONNEL","a",null,null,"Ville",null,null,{"$f":"CONCATENATE(Clients[[#This Row],[No Client]],\" - \",Clients[[#This Row],[Nom du client]])","v":"OCCASIONNEL - a"},{"$f":"Clients[[#This Row],[No Client]]","v":"OCCASIONNEL"}]
["130-1","b",null,null,null,null,null,{"$f":"CONCATENATE(Clients[[#This Row],[No Client]],\" - \",Clients[[#This Row],[Nom du client]])","v":"130-1 - b"},{"$f":"Clients[[#This Row],[No Client]]","v":"130-1"}]
["130-2","c",null,null,null,null,null,{"$f":"CONCATENATE(Clients[[#This Row],[No Client]],\" - \",Clients[[#This Row],[Nom du client]])","v":"130-2 - c"},{"$f":"Clients[[#This Row],[No Client]]","v":"130-2"}]
["130-3","d",null,null,null,null,null,{"$f":"CONCATENATE(Clients[[#This Row],[No Client]],\" - \",Clients[[#This Row],[Nom du client]])","v":"130-3 - d"},{"$f":"Clients[[#This Row],[No Client]]","v":"130-3"}]
["130-4","e",null,null,null,null,null,{"$f":"CONCATENATE(Clients[[#This Row],[No Client]],\" - \",Clients[[#This Row],[Nom du client]])","v":"130-4 - e"},{"$f":"Clients[[#This Row],[No Client]]","v":"130-4"}]
["Nouv 5","f",null,null,null,null,null,{"$f":"CONCATENATE(Clients[[#This Row],[No Client]],\" - \",Clients[[#This Row],[Nom du client]])","v":"Nouv 5 - f"},{"$f":"Clients[[#This Row],[No Client]]","v":"Nouv 5"}]
["Nouv 6","g",null,null,null,null,null,{"$f":"CONCATENATE(Clients[[#This Row],[No Client]],\" - \",Clients[[#This Row],[Nom du client]])","v":"Nouv 6 - g"},{"$f":"Clients[[#This Row],[No Client]]","v":"Nouv 6"}]
["Nouv 7","h",null,null,null,null,null,{"$f":"CONCATENATE(Clients[[#This Row],[No Client]],\" - \",Clients[[#This Row],[Nom du client]])","v":"Nouv 7 - h"},{"$f":"Clients[[#This Row],[No Client]]","v":"Nouv 7"}]
["Nouv 8","i",null,null,null,null,null,{"$f":"CONCATENATE(Clients[[#This Row],[No Client]],\" - \",Clients[[#This Row],[Nom du client]])","v":"Nouv 8 - i"},{"$f":"Clients[[#This Row],[No Client]]","v":"Nouv 8"}]
["Nouv 9","j",null,null,null,null,null,{"$f":"CONCATENATE(Clients[[#This Row],[No Client]],\" - \",Clients[[#This Row],[Nom du client]])","v":"Nouv 9 - j"},{"$f":"Clients[[#This Row],[No Client]]","v":"Nouv 9"}]
["Nouv 10","a",null,null,null,null,null,{"$f":"CONCATENATE(Clients[[#This Row],[No Client]],\" - \",Clients[[#This Row],[Nom du client]])","v":"Nouv 10 - a"},{"$f":"Clients[[#This Row],[No Client]]","v":"Nouv 10"}]
["Nouv 11","b",null,null,null,null,null,{"$f":"CONCATENATE(Clients[[#This Row],[No Client]],\" - \",Clients[[#This Row],[Nom du client]])","v":"Nouv 11 - b"},{"$f":"Clients[[#This Row],[No Client]]","v":"Nouv 11"}]
["Nouv 12","c",null,null,null,null,null,{"$f":"CONCATENATE(Clients[[#This Row],[No Client]],\" - \",Clients[[#This Row],[Nom du client]])","v":"Nouv 12 - c"},{"$f":"Clients[[#This Row],[No Client]]","v":"Nouv 12"}]
["Nouv 13","d",null,null,null,null,null,{"$f":"CONCATENATE(Clients[[#This Row],[No Client]],\" - \",Clients[[#This Row],[Nom du client]])","v":"Nouv 13 - d"},{"$f":"Clients[[#This Row],[No Client]]","v":"Nouv 13"}]
["Nouv 14","e",null,null,null,null,null,{"$f":"CONCATENATE(Clients[[#This Row],[No Client]],\" - \",Clients[[#This Row],[Nom du client]])","v":"Nouv 14 - e"},{"$f":"Clients[[#This Row],[No Client]]","v":"Nouv 14"}]
["Nouv 15","f",null,null,null,null,null,{"$f":"CONCATENATE(Clients[[#This Row],[No Client]],\" - \",Clients[[#This Row],[Nom du client]])","v":"Nouv 15 - f"},{"$f":"Clients[[#This Row],[No Client]]","v":"Nouv 15"}]
["Nouv 16","g",null,null,null,null,null,{"$f":"CONCATENATE(Clients[[#This Row],[No Client]],\" - \",Clients[[#This Row],[Nom du client]])","v":"Nouv 16 - g"},{"$f":"Clients[[#This Row],[No Client]]","v":"Nouv 16"}]
["Nouv 17","h",null,null,null,null,null,{"$f":"CONCATENATE(Clients[[#This Row],[No Client]],\" - \",Clients[[#This Row],[Nom du client]])","v":"Nouv 17 - h"},{"$f":"Clients[[#This Row],[No Client]]","v":"Nouv 17"}]
["Nouv 18","i",null,null,null,null,null,{"$f":"CONCATENATE(Clients[[#This Row],[No Client]],\" - \",Clients[[#This Row],[Nom du client]])","v":"Nouv 18 - i"},{"$f":"Clients[[#This Row],[No Client]]","v":"Nouv 18"}]
["Nouv 19","j",null,null,null,null,null,{"$f":"CONCATENATE(Clients[[#This Row],[No Client]],\" - \",Clients[[#This Row],[Nom du client]])","v":"Nouv 19 - j"},{"$f":"Clients[[#This Row],[No Client]]","v":"Nouv 19"}]
["Nouv 20","a",null,null,null,null,null,{"$f":"CONCATENATE(Clients[[#This Row],[No Client]],\" - \",Clients[[#This Row],[Nom du client]])","v":"Nouv 20 - a"},{"$f":"Clients[[#This Row],[No Client]]","v":"Nouv 20"}]
["Nouv 21","b",null,null,null,null,null,{"$f":"CONCATENATE(Clients[[#This Row],[No Client]],\" - \",Clients[[#This Row],[Nom du client]])","v":"Nouv 21 - b"},{"$f":"Clients[[#This Row],[No Client]]","v":"Nouv 21"}]
["Nouv 22","c",null,null,null,null,null,{"$f":"CONCATENATE(Clients[[#This Row],[No Client]],\" - \",Clients[[#This Row],[Nom du client]])","v":"Nouv 22 - c"},{"$f":"Clients[[#This Row],[No Client]]","v":"Nouv 22"}]
["Nouv 23","d",null,null,null,null,null,{"$f":"CONCATENATE(Clients[[#This Row],[No Client]],\" - \",Clients[[#This Row],[Nom du client]])","v":"Nouv 23 - d"},{"$f":"Clients[[#This Row],[No Client]]","v":"Nouv 23"}]
["Nouv 24","e",null,null,null,null,null,{"$f":"CONCATENATE(Clients[[#This Row],[No Client]],\" - \",Clients[[#This Row],[Nom du client]])","v":"Nouv 24 - e"},{"$f":"Clients[[#This Row],[No Client]]","v":"Nouv 24"}]
["Nouv 25","f",null,null,null,null,null,{"$f":"CONCATENATE(Clients[[#This Row],[No Client]],\" - \",Clients[[#This Row],[Nom du client]])","v":"Nouv 25 - f"},{"$f":"Clients[[#This Row],[No Client]]","v":"Nouv 25"}]
["Nouv 26","g",null,null,null,null,null,{"$f":"CONCATENATE(Clients[[#This Row],[No Client]],\" - \",Clients[[#This Row],[Nom du client]])","v":"Nouv 26 - g"},{"$f":"Clients[[#This Row],[No Client]]","v":"Nouv 26"}]
["Nouv 27","h",null,null,null,null,null,{"$f":"CONCATENATE(Clients[[#This Row],[No Client]],\" - \",Clients[[#This Row],[Nom du client]])","v":"Nouv 27 - h"},{"$f":"Clients[[#This Row],[No Client]]","v":"Nouv 27"}]
["Nouv 28","i",null,null,null,null,null,{"$f":"CONCATENATE(Clients[[#This Row],[No Client]],\" - \",Clients[[#This Row],[Nom du client]])","v":"Nouv 28 - i"},{"$f":"Clients[[#This Row],[No Client]]","v":"Nouv 28"}]
["Nouv 29","j",null,null,null,null,null,{"$f":"CONCATENATE(Clients[[#This Row],[No Client]],\" - \",Clients[[#This Row],[Nom du client]])","v":"Nouv 29 - j"},{"$f":"Clients[[#This Row],[No Client]]","v":"Nouv 29"}]
["Nouv 30","a",null,null,null,null,null,{"$f":"CONCATENATE(Clients[[#This Row],[No Client]],\" - \",Clients[[#This Row],[Nom du client]])","v":"Nouv 30 - a"},{"$f":"Clients[[#This Row],[No Client]]","v":"Nouv 30"}]
["Nouv 31","b",null,null,null,null,null,{"$f":"CONCATENATE(Clients[[#This Row],[No Client]],\" - \",Clients[[#This Row],[Nom du client]])","v":"Nouv 31 - b"},{"$f":"Clients[[#This Row],[No Client]]","v":"Nouv 31"}]
["Nouv 32","c",null,null,null,null,null,{"$f":"CONCATENATE(Clients[[#This Row],[No Client]],\" - \",Clients[[#This Row],[Nom du client]])","v":"Nouv 32 - c"},{"$f":"Clients[[#This Row],[No Client]]","v":"Nouv 32"}]
["Nouv 33","d",null,null,null,null,null,{"$f":"CONCATENATE(Clients[[#This Row],[No Client]],\" - \",Clients[[#This Row],[Nom du client]])","v":"Nouv 33 - d"},{"$f":"Clients[[#This Row],[No Client]]","v":"Nouv 33"}]
["Nouv 34","e",null,null,null,null,null,{"$f":"CONCATENATE(Clients[[#This Row],[No Client]],\" - \",Clients[[#This Row],[Nom du client]])","v":"Nouv 34 - e"},{"$f":"Clients[[#This Row],[No Client]]","v":"Nouv 34"}]
["Nouv 35","f",null,null,null,null,null,{"$f":"CONCATENATE(Clients[[#This Row],[No Client]],\" - \",Clients[[#This Row],[Nom du client]])","v":"Nouv 35 - f"},{"$f":"Clients[[#This Row],[No Client]]","v":"Nouv 35"}]
["Nouv 36","g",null,null,null,null,null,{"$f":"CONCATENATE(Clients[[#This Row],[No Client]],\" - \",Clients[[#This Row],[Nom du client]])","v":"Nouv 36 - g"},{"$f":"Clients[[#This Row],[No Client]]","v":"Nouv 36"}]
["Nouv 37","h",null,null,null,null,null,{"$f":"CONCATENATE(Clients[[#This Row],[No Client]],\" - \",Clients[[#This Row],[Nom du client]])","v":"Nouv 37 - h"},{"$f":"Clients[[#This Row],[No Client]]","v":"Nouv 37"}]
["Nouv 38","i",null,null,null,null,null,{"$f":"CONCATENATE(Clients[[#This Row],[No Client]],\" - \",Clients[[#This Row],[Nom du client]])","v":"Nouv 38 - i"},{"$f":"Clients[[#This Row],[No Client]]","v":"Nouv 38"}]
["Nouv 39","j",null,null,null,null,null,{"$f":"CONCATENATE(Clients[[#This Row],[No Client]],\" - \",Clients[[#This Row],[Nom du client]])","v":"Nouv 39 - j"},{"$f":"Clients[[#This Row],[No Client]]","v":"Nouv 39"}]
["Nouv 40","a",null,null,null,null,null,{"$f":"CONCATENATE(Clients[[#This Row],[No Client]],\" - \",Clients[[#This Row],[Nom du client]])","v":"Nouv 40 - a"},{"$f":"Clients[[#This Row],[No Client]]","v":"Nouv 40"}]
["Nouv 41","b",null,null,null,null,null,{"$f":"CONCATENATE(Clients[[#This Row],[No Client]],\" - \",Clients[[#This Row],[Nom du client]])","v":"Nouv 41 - b"},{"$f":"Clients[[#This Row],[No Client]]","v":"Nouv 41"}]
["Nouv 42","c",null,null,null,null,null,{"$f":"CONCATENATE(Clients[[#This Row],[No Client]],\" - \",Clients[[#This Row],[Nom du client]])","v":"Nouv 42 - c"},{"$f":"Clients[[#This Row],[No Client]]","v":"Nouv 42"}]
["Nouv 43","d",null,null,null,null,null,{"$f":"CONCATENATE(Clients[[#This Row],[No Client]],\" - \",Clients[[#This Row],[Nom du client]])","v":"Nouv 43 - d"},{"$f":"Clients[[#This Row],[No Client]]","v":"Nouv 43"}]
["Nouv 44","e",null,null,null,null,null,{"$f":"CONCATENATE(Clients[[#This Row],[No Client]],\" - \",Clients[[#This Row],[Nom du client]])","v":"Nouv 44 - e"},{"$f":"Clients[[#This Row],[No Client]]","v":"Nouv 44"}]
["Nouv 45","f",null,null,null,null,null,{"$f":"CONCATENATE(Clients[[#This Row],[No Client]],\" - \",Clients[[#This Row],[Nom du client]])","v":"Nouv 45 - f"},{"$f":"Clients[[#This Row],[No Client]]","v":"Nouv 45"}]
["Nouv 46","g",null,null,null,null,null,{"$f":"CONCATENATE(Clients[[#This Row],[No Client]],\" - \",Clients[[#This Row],[Nom du client]])","v":"Nouv 46 - g"},{"$f":"Clients[[#This Row],[No Client]]","v":"Nouv 46"}]
["Nouv 47","h",null,null,null,null,null,{"$f":"CONCATENATE(Clients[[#This Row],[No Client]],\" - \",Clients[[#This Row],[Nom du client]])","v":"Nouv 47 - h"},{"$f":"Clients[[#This Row],[No Client]]","v":"Nouv 47"}]
["Nouv 48","i",null,null,null,null,null,{"$f":"CONCATENATE(Clients[[#This Row],[No Client]],\" - \",Clients[[#This Row],[Nom du client]])","v":"Nouv 48 - i"},{"$f":"Clients[[#This Row],[No Client]]","v":"Nouv 48"}]
["Nouv 49","j",null,null,null,null,null,{"$f":"CONCATENATE(Clients[[#This Row],[No Client]],\" - \",Clients[[#This Row],[Nom du client]])","v":"Nouv 49 - j"},{"$f":"Clients[[#This Row],[No Client]]","v":"Nouv 49"}]
["Nouv 50","a",null,null,null,null,null,{"$f":"CONCATENATE(Clients[[#This Row],[No Client]],\" - \",Clients[[#This Row],[Nom du client]])","v":"Nouv 50 - a"},{"$f":"Clients[[#This Row],[No Client]]","v":"Nouv 50"}]

{"sheet":"ClientsProduits","index":5,"n_rows":423,"n_cols":6,"rows_kept":423,"cut":false,"hidden":false,"merged":[]}
["No Client","No et nom client","Code Produit","Code et nom produit","CodeClPr","Quantité"]
[1,{"$f":"VLOOKUP(A2,Clients[],8,FALSE)","v":"1 - a"},6000,{"$f":"VLOOKUP(C2,Produits[],4,FALSE)","v":"6000 - Baguette levain (x 25) (280 gr.)"},{"$f":"CONCATENATE(A2,\"-\",C2)","v":"1-6000"}]
[1,{"$f":"VLOOKUP(A3,Clients[],8,FALSE)","v":"1 - a"},2000,{"$f":"VLOOKUP(C3,Produits[],4,FALSE)","v":"2000 - Burger brioché nature (x 12) (65 gr.)"},"1-2000"]
[1,{"$f":"VLOOKUP(A4,Clients[],8,FALSE)","v":"1 - a"},4006,{"$f":"VLOOKUP(C4,Produits[],4,FALSE)","v":"4006 - Pain ménage graines autrichiennes tranché large  (unité) (90"},"1-4006"]
[2,{"$f":"VLOOKUP(A5,Clients[],8,FALSE)","v":"2 - b"},6000,{"$f":"VLOOKUP(C5,Produits[],4,FALSE)","v":"6000 - Baguette levain (x 25) (280 gr.)"},"2-6000"]
[2,{"$f":"VLOOKUP(A6,Clients[],8,FALSE)","v":"2 - b"},2000,{"$f":"VLOOKUP(C6,Produits[],4,FALSE)","v":"2000 - Burger brioché nature (x 12) (65 gr.)"},"2-2000"]
[2,{"$f":"VLOOKUP(A7,Clients[],8,FALSE)","v":"2 - b"},4006,{"$f":"VLOOKUP(C7,Produits[],4,FALSE)","v":"4006 - Pain ménage graines autrichiennes tranché large  (unité) (90"},"2-4006"]
[2,{"$f":"VLOOKUP(A8,Clients[],8,FALSE)","v":"2 - b"},5207,{"$f":"VLOOKUP(C8,Produits[],4,FALSE)","v":"5207 - Miche bol à soupe (unité) ( 200 gr.)"},"2-5207"]
[5,{"$f":"VLOOKUP(A9,Clients[],8,FALSE)","v":"5 - c"},2007,{"$f":"VLOOKUP(C9,Produits[],4,FALSE)","v":"2007 - Burger pavot (x 12) (65 gr.)"},"5-2007"]
[5,{"$f":"VLOOKUP(A10,Clients[],8,FALSE)","v":"5 - c"},2101,{"$f":"VLOOKUP(C10,Produits[],4,FALSE)","v":"2101 - Mini-burger pavot (x 24) (35 gr.)"},"5-2101"]
[5,{"$f":"VLOOKUP(A11,Clients[],8,FALSE)","v":"5 - c"},4101,{"$f":"VLOOKUP(C11,Produits[],4,FALSE)","v":"4101 - Petit belge blé tranché (unité) (500 gr.)"},"5-4101"]
[6,{"$f":"VLOOKUP(A12,Clients[],8,FALSE)","v":"6 - d"},5000,{"$f":"VLOOKUP(C12,Produits[],4,FALSE)","v":"5000 - Baguette levain (unité) (280 gr.)"},"6-5000"]
[6,{"$f":"VLOOKUP(A13,Clients[],8,FALSE)","v":"6 - d"},6000,{"$f":"VLOOKUP(C13,Produits[],4,FALSE)","v":"6000 - Baguette levain (x 25) (280 gr.)"},"6-6000"]
[6,{"$f":"VLOOKUP(A14,Clients[],8,FALSE)","v":"6 - d"},4204,{"$f":"VLOOKUP(C14,Produits[],4,FALSE)","v":"4204 - Pain brioché tranché (unité) (500 gr.)"},"6-4204"]
[10,{"$f":"VLOOKUP(A15,Clients[],8,FALSE)","v":"10 - e"},3500,{"$f":"VLOOKUP(C15,Produits[],4,FALSE)","v":"3500 - Baguette de blé Casa (unité) (400 gr.)"},"10-3500"]
[12,{"$f":"VLOOKUP(A16,Clients[],8,FALSE)","v":"12 - f"},5000,{"$f":"VLOOKUP(C16,Produits[],4,FALSE)","v":"5000 - Baguette levain (unité) (280 gr.)"},"12-5000"]
[12,{"$f":"VLOOKUP(A17,Clients[],8,FALSE)","v":"12 - f"},4202,{"$f":"VLOOKUP(C17,Produits[],4,FALSE)","v":"4202 - Pain banique tranché  (unité) (500 gr.)"},"12-4202"]
[12,{"$f":"VLOOKUP(A18,Clients[],8,FALSE)","v":"12 - f"},4203,{"$f":"VLOOKUP(C18,Produits[],4,FALSE)","v":"4203 - Pain banique non tranché (unité) (500 gr.)"},"12-4203"]
[12,{"$f":"VLOOKUP(A19,Clients[],8,FALSE)","v":"12 - f"},6000,{"$f":"VLOOKUP(C19,Produits[],4,FALSE)","v":"6000 - Baguette levain (x 25) (280 gr.)"},"12-6000"]
[12,{"$f":"VLOOKUP(A20,Clients[],8,FALSE)","v":"12 - f"},5201,{"$f":"VLOOKUP(C20,Produits[],4,FALSE)","v":"5201 - Grosse miche non tranchée (unité) (600 gr.)"},"12-5201"]
[13,{"$f":"VLOOKUP(A21,Clients[],8,FALSE)","v":"13 - g"},2004,{"$f":"VLOOKUP(C21,Produits[],4,FALSE)","v":"2004 - Burger oignon (x 12) (65 gr.)"},"13-2004"]
[13,{"$f":"VLOOKUP(A22,Clients[],8,FALSE)","v":"13 - g"},1200,{"$f":"VLOOKUP(C22,Produits[],4,FALSE)","v":"1200 - Brioche vendéenne (unité) (45 gr.)"},"13-1200"]
[13,{"$f":"VLOOKUP(A23,Clients[],8,FALSE)","v":"13 - g"},3000,{"$f":"VLOOKUP(C23,Produits[],4,FALSE)","v":"3000 - Panini roquette (x 12) (100 gr.)"},"13-3000"]
[13,{"$f":"VLOOKUP(A24,Clients[],8,FALSE)","v":"13 - g"},4002,{"$f":"VLOOKUP(C24,Produits[],4,FALSE)","v":"4002 - Pain céréales tranché large (unité) (500 gr.)"},"13-4002"]
[13,{"$f":"VLOOKUP(A25,Clients[],8,FALSE)","v":"13 - g"},2100,{"$f":"VLOOKUP(C25,Produits[],4,FALSE)","v":"2100 - Mini-burger oignons (x 24) (35 gr.)"},"13-2100"]
[14,{"$f":"VLOOKUP(A26,Clients[],8,FALSE)","v":"14 - h"},2004,{"$f":"VLOOKUP(C26,Produits[],4,FALSE)","v":"2004 - Burger oignon (x 12) (65 gr.)"},"14-2004"]
[14,{"$f":"VLOOKUP(A27,Clients[],8,FALSE)","v":"14 - h"},1200,{"$f":"VLOOKUP(C27,Produits[],4,FALSE)","v":"1200 - Brioche vendéenne (unité) (45 gr.)"},"14-1200"]
[14,{"$f":"VLOOKUP(A28,Clients[],8,FALSE)","v":"14 - h"},3000,{"$f":"VLOOKUP(C28,Produits[],4,FALSE)","v":"3000 - Panini roquette (x 12) (100 gr.)"},"14-3000"]
[14,{"$f":"VLOOKUP(A29,Clients[],8,FALSE)","v":"14 - h"},4002,{"$f":"VLOOKUP(C29,Produits[],4,FALSE)","v":"4002 - Pain céréales tranché large (unité) (500 gr.)"},"14-4002"]
[14,{"$f":"VLOOKUP(A30,Clients[],8,FALSE)","v":"14 - h"},2100,{"$f":"VLOOKUP(C30,Produits[],4,FALSE)","v":"2100 - Mini-burger oignons (x 24) (35 gr.)"},"14-2100"]
[15,{"$f":"VLOOKUP(A31,Clients[],8,FALSE)","v":"15 - i"},2004,{"$f":"VLOOKUP(C31,Produits[],4,FALSE)","v":"2004 - Burger oignon (x 12) (65 gr.)"},"15-2004"]
[15,{"$f":"VLOOKUP(A32,Clients[],8,FALSE)","v":"15 - i"},1200,{"$f":"VLOOKUP(C32,Produits[],4,FALSE)","v":"1200 - Brioche vendéenne (unité) (45 gr.)"},"15-1200"]
[15,{"$f":"VLOOKUP(A33,Clients[],8,FALSE)","v":"15 - i"},3000,{"$f":"VLOOKUP(C33,Produits[],4,FALSE)","v":"3000 - Panini roquette (x 12) (100 gr.)"},"15-3000"]
[15,{"$f":"VLOOKUP(A34,Clients[],8,FALSE)","v":"15 - i"},4002,{"$f":"VLOOKUP(C34,Produits[],4,FALSE)","v":"4002 - Pain céréales tranché large (unité) (500 gr.)"},"15-4002"]
[15,{"$f":"VLOOKUP(A35,Clients[],8,FALSE)","v":"15 - i"},2100,{"$f":"VLOOKUP(C35,Produits[],4,FALSE)","v":"2100 - Mini-burger oignons (x 24) (35 gr.)"},"15-2100"]
[16,{"$f":"VLOOKUP(A36,Clients[],8,FALSE)","v":"16 - j"},6000,{"$f":"VLOOKUP(C36,Produits[],4,FALSE)","v":"6000 - Baguette levain (x 25) (280 gr.)"},"16-6000"]
[18,{"$f":"VLOOKUP(A37,Clients[],8,FALSE)","v":"18 - a"},3501,{"$f":"VLOOKUP(C37,Produits[],4,FALSE)","v":"3501 - Baguette de blé Vieux-Duluth (unité) (400 gr.)"},"18-3501"]
[19,{"$f":"VLOOKUP(A38,Clients[],8,FALSE)","v":"19 - b"},3502,{"$f":"VLOOKUP(C38,Produits[],4,FALSE)","v":"3502 - Baguette de blé sans sésame Vieux-Duluth (unité) (400 gr.)"},"19-3502"]
[19,{"$f":"VLOOKUP(A39,Clients[],8,FALSE)","v":"19 - b"},6000,{"$f":"VLOOKUP(C39,Produits[],4,FALSE)","v":"6000 - Baguette levain (x 25) (280 gr.)"},"19-6000"]
[20,{"$f":"VLOOKUP(A40,Clients[],8,FALSE)","v":"20 - c"},3501,{"$f":"VLOOKUP(C40,Produits[],4,FALSE)","v":"3501 - Baguette de blé Vieux-Duluth (unité) (400 gr.)"},"20-3501"]
[20,{"$f":"VLOOKUP(A41,Clients[],8,FALSE)","v":"20 - c"},6000,{"$f":"VLOOKUP(C41,Produits[],4,FALSE)","v":"6000 - Baguette levain (x 25) (280 gr.)"},"20-6000"]
[23,{"$f":"VLOOKUP(A42,Clients[],8,FALSE)","v":"23 - d"},1100,{"$f":"VLOOKUP(C42,Produits[],4,FALSE)","v":"1100 - Mini-chocolatine (x 12) (30 gr.)"},"23-1100"]
[23,{"$f":"VLOOKUP(A43,Clients[],8,FALSE)","v":"23 - d"},1101,{"$f":"VLOOKUP(C43,Produits[],4,FALSE)","v":"1101 - Mini-croissant (x 12) (30 gr.)"},"23-1101"]
[23,{"$f":"VLOOKUP(A44,Clients[],8,FALSE)","v":"23 - d"},1102,{"$f":"VLOOKUP(C44,Produits[],4,FALSE)","v":"1102 - Mini-danoise (x 12) (30 gr.)"},"23-1102"]
[23,{"$f":"VLOOKUP(A45,Clients[],8,FALSE)","v":"23 - d"},4100,{"$f":"VLOOKUP(C45,Produits[],4,FALSE)","v":"4100 - Petit belge blanc tranché (unité) (500 gr.)"},"23-4100"]
[23,{"$f":"VLOOKUP(A46,Clients[],8,FALSE)","v":"23 - d"},4101,{"$f":"VLOOKUP(C46,Produits[],4,FALSE)","v":"4101 - Petit belge blé tranché (unité) (500 gr.)"},"23-4101"]
[23,{"$f":"VLOOKUP(A47,Clients[],8,FALSE)","v":"23 - d"},null,{"$f":"VLOOKUP(C47,Produits[],4,FALSE)","v":{"$error":"#N/A"}},"23-"]
[23,{"$f":"VLOOKUP(A48,Clients[],8,FALSE)","v":"23 - d"},1100,{"$f":"VLOOKUP(C48,Produits[],4,FALSE)","v":"1100 - Mini-chocolatine (x 12) (30 gr.)"},"23-1100"]
[23,{"$f":"VLOOKUP(A49,Clients[],8,FALSE)","v":"23 - d"},1101,{"$f":"VLOOKUP(C49,Produits[],4,FALSE)","v":"1101 - Mini-croissant (x 12) (30 gr.)"},"23-1101"]
[23,{"$f":"VLOOKUP(A50,Clients[],8,FALSE)","v":"23 - d"},1102,{"$f":"VLOOKUP(C50,Produits[],4,FALSE)","v":"1102 - Mini-danoise (x 12) (30 gr.)"},"23-1102"]
[23,{"$f":"VLOOKUP(A51,Clients[],8,FALSE)","v":"23 - d"},1303,{"$f":"VLOOKUP(C51,Produits[],4,FALSE)","v":"1303 - Mini-muffins assortis (x 12) (65 gr.)"},"23-1303"]
[28,{"$f":"VLOOKUP(A52,Clients[],8,FALSE)","v":"28 - e"},5000,{"$f":"VLOOKUP(C52,Produits[],4,FALSE)","v":"5000 - Baguette levain (unité) (280 gr.)"},"28-5000"]
[28,{"$f":"VLOOKUP(A53,Clients[],8,FALSE)","v":"28 - e"},6000,{"$f":"VLOOKUP(C53,Produits[],4,FALSE)","v":"6000 - Baguette levain (x 25) (280 gr.)"},"28-6000"]
[31,{"$f":"VLOOKUP(A54,Clients[],8,FALSE)","v":"31 - g"},5000,{"$f":"VLOOKUP(C54,Produits[],4,FALSE)","v":"5000 - Baguette levain (unité) (280 gr.)"},"31-5000"]
[31,{"$f":"VLOOKUP(A55,Clients[],8,FALSE)","v":"31 - g"},6000,{"$f":"VLOOKUP(C55,Produits[],4,FALSE)","v":"6000 - Baguette levain (x 25) (280 gr.)"},"31-6000"]
[32,{"$f":"VLOOKUP(A56,Clients[],8,FALSE)","v":"32 - h"},5000,{"$f":"VLOOKUP(C56,Produits[],4,FALSE)","v":"5000 - Baguette levain (unité) (280 gr.)"},"32-5000"]
[32,{"$f":"VLOOKUP(A57,Clients[],8,FALSE)","v":"32 - h"},5201,{"$f":"VLOOKUP(C57,Produits[],4,FALSE)","v":"5201 - Grosse miche non tranchée (unité) (600 gr.)"},"32-5201"]
[32,{"$f":"VLOOKUP(A58,Clients[],8,FALSE)","v":"32 - h"},5205,{"$f":"VLOOKUP(C58,Produits[],4,FALSE)","v":"5205 - Miche multigrains autrichiens non tranchée (unité) (425 gr.)"},"32-5205"]
[32,{"$f":"VLOOKUP(A59,Clients[],8,FALSE)","v":"32 - h"},5001,{"$f":"VLOOKUP(C59,Produits[],4,FALSE)","v":"5001 - Parisien (unité) (480 gr.)"},"32-5001"]
[32,{"$f":"VLOOKUP(A60,Clients[],8,FALSE)","v":"32 - h"},5202,{"$f":"VLOOKUP(C60,Produits[],4,FALSE)","v":"5202 - Petite miche tranchée (unité) (425 gr.)"},"32-5202"]
[32,{"$f":"VLOOKUP(A61,Clients[],8,FALSE)","v":"32 - h"},6503,{"$f":"VLOOKUP(C61,Produits[],4,FALSE)","v":"6503 - Croissant cru (x 75) (100 gr.)"},"32-6503"]
[32,{"$f":"VLOOKUP(A62,Clients[],8,FALSE)","v":"32 - h"},6502,{"$f":"VLOOKUP(C62,Produits[],4,FALSE)","v":"6502 - Chocolatine crue (x 75) (110 gr.)"},"32-6502"]
[32,{"$f":"VLOOKUP(A63,Clients[],8,FALSE)","v":"32 - h"},100,{"$f":"VLOOKUP(C63,Produits[],4,FALSE)","v":{"$error":"#N/A"}},"32-100"]
[32,{"$f":"VLOOKUP(A64,Clients[],8,FALSE)","v":"32 - h"},1000,{"$f":"VLOOKUP(C64,Produits[],4,FALSE)","v":"1000 - Croissant (unité) (90 gr.)"},"32-1000"]
[32,{"$f":"VLOOKUP(A65,Clients[],8,FALSE)","v":"32 - h"},1001,{"$f":"VLOOKUP(C65,Produits[],4,FALSE)","v":"1001 - Chocolatine (unité) (100 gr.)"},"32-1001"]
[41,{"$f":"VLOOKUP(A66,Clients[],8,FALSE)","v":"41 - i"},6000,{"$f":"VLOOKUP(C66,Produits[],4,FALSE)","v":"6000 - Baguette levain (x 25) (280 gr.)"},{"$f":"CONCATENATE(A66,\"-\",C66)","v":"41-6000"}]
[41,{"$f":"VLOOKUP(A67,Clients[],8,FALSE)","v":"41 - i"},2005,{"$f":"VLOOKUP(C67,Produits[],4,FALSE)","v":"2005 - Burger sésame (x 12) (65 gr.)"},"41-2005"]
[41,{"$f":"VLOOKUP(A68,Clients[],8,FALSE)","v":"41 - i"},2100,{"$f":"VLOOKUP(C68,Produits[],4,FALSE)","v":"2100 - Mini-burger oignons (x 24) (35 gr.)"},"41-2100"]
[41,{"$f":"VLOOKUP(A69,Clients[],8,FALSE)","v":"41 - i"},3103,{"$f":"VLOOKUP(C69,Produits[],4,FALSE)","v":"3103 - Plaque foccacia aux olives (unité) (2 kg.)"},"41-3103"]
[41,{"$f":"VLOOKUP(A70,Clients[],8,FALSE)","v":"41 - i"},3006,{"$f":"VLOOKUP(C70,Produits[],4,FALSE)","v":"3006 - Panini carré graines autrichiennes petit (x 10) (80 gr.)"},"41-3006"]
[41,{"$f":"VLOOKUP(A71,Clients[],8,FALSE)","v":"41 - i"},3003,{"$f":"VLOOKUP(C71,Produits[],4,FALSE)","v":"3003 - Panini carré fariné gros (x 10) (100 gr.)"},"41-3003"]
[41,{"$f":"VLOOKUP(A72,Clients[],8,FALSE)","v":"41 - i"},2105,{"$f":"VLOOKUP(C72,Produits[],4,FALSE)","v":"2105 - Mini-burger brioché fleur de sel (x24) (35gr.)"},"41-2105"]
[41,{"$f":"VLOOKUP(A73,Clients[],8,FALSE)","v":"41 - i"},4104,{"$f":"VLOOKUP(C73,Produits[],4,FALSE)","v":"4104 - Moulé Hot-dog non-tranché (unité) (225 gr.)"},"41-4104"]
[62,{"$f":"VLOOKUP(A74,Clients[],8,FALSE)","v":"62 - b"},4201,{"$f":"VLOOKUP(C74,Produits[],4,FALSE)","v":"4201 - Pain pumpernickel tranché (unité) (500 gr.)"},"62-4201"]
[62,{"$f":"VLOOKUP(A75,Clients[],8,FALSE)","v":"62 - b"},3001,{"$f":"VLOOKUP(C75,Produits[],4,FALSE)","v":"3001 - Panini carré tomate-olive (unité) (100 gr.)"},"62-3001"]
[62,{"$f":"VLOOKUP(A76,Clients[],8,FALSE)","v":"62 - b"},5002,{"$f":"VLOOKUP(C76,Produits[],4,FALSE)","v":"5002 - Ficelle pavot (unité) (175 gr.)"},"62-5002"]
[62,{"$f":"VLOOKUP(A77,Clients[],8,FALSE)","v":"62 - b"},5003,{"$f":"VLOOKUP(C77,Produits[],4,FALSE)","v":"5003 - Ficelle sésame (unité) (175 gr.)"},"62-5003"]
[62,{"$f":"VLOOKUP(A78,Clients[],8,FALSE)","v":"62 - b"},5004,{"$f":"VLOOKUP(C78,Produits[],4,FALSE)","v":"5004 - Ficelle nature (unité) (175 gr.)"},"62-5004"]
[62,{"$f":"VLOOKUP(A79,Clients[],8,FALSE)","v":"62 - b"},3003,{"$f":"VLOOKUP(C79,Produits[],4,FALSE)","v":"3003 - Panini carré fariné gros (x 10) (100 gr.)"},"62-3003"]
[62,{"$f":"VLOOKUP(A80,Clients[],8,FALSE)","v":"62 - b"},4000,{"$f":"VLOOKUP(C80,Produits[],4,FALSE)","v":"4000 - Pain blanc tranché (unité) (500 gr.)"},"62-4000"]
[62,{"$f":"VLOOKUP(A81,Clients[],8,FALSE)","v":"62 - b"},4200,{"$f":"VLOOKUP(C81,Produits[],4,FALSE)","v":"4200 - Pain aux noix de Grenoble tranché (unité) (500 gr.)"},"62-4200"]
[62,{"$f":"VLOOKUP(A82,Clients[],8,FALSE)","v":"62 - b"},4002,{"$f":"VLOOKUP(C82,Produits[],4,FALSE)","v":"4002 - Pain céréales tranché large (unité) (500 gr.)"},"62-4002"]
[62,{"$f":"VLOOKUP(A83,Clients[],8,FALSE)","v":"62 - b"},3101,{"$f":"VLOOKUP(C83,Produits[],4,FALSE)","v":"3101 - Plaque foccacia curi (unité) (2 kg.)"},"62-3101"]
[63,{"$f":"VLOOKUP(A84,Clients[],8,FALSE)","v":"63 - c"},5000,{"$f":"VLOOKUP(C84,Produits[],4,FALSE)","v":"5000 - Baguette levain (unité) (280 gr.)"},"63-5000"]
[63,{"$f":"VLOOKUP(A85,Clients[],8,FALSE)","v":"63 - c"},6000,{"$f":"VLOOKUP(C85,Produits[],4,FALSE)","v":"6000 - Baguette levain (x 25) (280 gr.)"},"63-6000"]
[63,{"$f":"VLOOKUP(A86,Clients[],8,FALSE)","v":"63 - c"},5002,{"$f":"VLOOKUP(C86,Produits[],4,FALSE)","v":"5002 - Ficelle pavot (unité) (175 gr.)"},"63-5002"]
[63,{"$f":"VLOOKUP(A87,Clients[],8,FALSE)","v":"63 - c"},3008,{"$f":"VLOOKUP(C87,Produits[],4,FALSE)","v":"3008 - Panini carré blé-avoine petit (x 10) (80 gr.)"},"63-3008"]
[63,{"$f":"VLOOKUP(A88,Clients[],8,FALSE)","v":"63 - c"},3006,{"$f":"VLOOKUP(C88,Produits[],4,FALSE)","v":"3006 - Panini carré graines autrichiennes petit (x 10) (80 gr.)"},"63-3006"]
[63,{"$f":"VLOOKUP(A89,Clients[],8,FALSE)","v":"63 - c"},3009,{"$f":"VLOOKUP(C89,Produits[],4,FALSE)","v":"3009 - Panini carré carotte petit (x 10) (80 gr.)"},"63-3009"]
[63,{"$f":"VLOOKUP(A90,Clients[],8,FALSE)","v":"63 - c"},4000,{"$f":"VLOOKUP(C90,Produits[],4,FALSE)","v":"4000 - Pain blanc tranché (unité) (500 gr.)"},"63-4000"]
[63,{"$f":"VLOOKUP(A91,Clients[],8,FALSE)","v":"63 - c"},2007,{"$f":"VLOOKUP(C91,Produits[],4,FALSE)","v":"2007 - Burger pavot (x 12) (65 gr.)"},"63-2007"]
[63,{"$f":"VLOOKUP(A92,Clients[],8,FALSE)","v":"63 - c"},6503,{"$f":"VLOOKUP(C92,Produits[],4,FALSE)","v":"6503 - Croissant cru (x 75) (100 gr.)"},"63-6503"]
[63,{"$f":"VLOOKUP(A93,Clients[],8,FALSE)","v":"63 - c"},3002,{"$f":"VLOOKUP(C93,Produits[],4,FALSE)","v":"3002 - Panini carré roquette (unité) (75 gr.)"},"63-3002"]
[63,{"$f":"VLOOKUP(A94,Clients[],8,FALSE)","v":"63 - c"},4206,{"$f":"VLOOKUP(C94,Produits[],4,FALSE)","v":"4206 - Bâtard noix de grenoble et raisins non tranché (unité) (600"},"63-4206"]
[67,{"$f":"VLOOKUP(A95,Clients[],8,FALSE)","v":"67 - d"},5000,{"$f":"VLOOKUP(C95,Produits[],4,FALSE)","v":"5000 - Baguette levain (unité) (280 gr.)"},"67-5000"]
[67,{"$f":"VLOOKUP(A96,Clients[],8,FALSE)","v":"67 - d"},6000,{"$f":"VLOOKUP(C96,Produits[],4,FALSE)","v":"6000 - Baguette levain (x 25) (280 gr.)"},"67-6000"]
[67,{"$f":"VLOOKUP(A97,Clients[],8,FALSE)","v":"67 - d"},4000,{"$f":"VLOOKUP(C97,Produits[],4,FALSE)","v":"4000 - Pain blanc tranché (unité) (500 gr.)"},"67-4000"]
[67,{"$f":"VLOOKUP(A98,Clients[],8,FALSE)","v":"67 - d"},4003,{"$f":"VLOOKUP(C98,Produits[],4,FALSE)","v":"4003 - Pain multigrains la Cohue tranché (unité) (500 gr.)"},"67-4003"]
[72,{"$f":"VLOOKUP(A99,Clients[],8,FALSE)","v":"72 - f"},5000,{"$f":"VLOOKUP(C99,Produits[],4,FALSE)","v":"5000 - Baguette levain (unité) (280 gr.)"},"72-5000"]
[72,{"$f":"VLOOKUP(A100,Clients[],8,FALSE)","v":"72 - f"},2003,{"$f":"VLOOKUP(C100,Produits[],4,FALSE)","v":"2003 - Burger nature (x 12) (50 gr.)"},"72-2003"]
[72,{"$f":"VLOOKUP(A101,Clients[],8,FALSE)","v":"72 - f"},3003,{"$f":"VLOOKUP(C101,Produits[],4,FALSE)","v":"3003 - Panini carré fariné gros (x 10) (100 gr.)"},"72-3003"]
[72,{"$f":"VLOOKUP(A102,Clients[],8,FALSE)","v":"72 - f"},3100,{"$f":"VLOOKUP(C102,Produits[],4,FALSE)","v":"3100 - Plaque foccacia nature (unité) (2 kg.)"},"72-3100"]
[72,{"$f":"VLOOKUP(A103,Clients[],8,FALSE)","v":"72 - f"},6002,{"$f":"VLOOKUP(C103,Produits[],4,FALSE)","v":"6002 - Ficelles sésame/pavot (x 50) (175 gr.)"},"72-6002"]
[72,{"$f":"VLOOKUP(A104,Clients[],8,FALSE)","v":"72 - f"},1100,{"$f":"VLOOKUP(C104,Produits[],4,FALSE)","v":"1100 - Mini-chocolatine (x 12) (30 gr.)"},"72-1100"]
[72,{"$f":"VLOOKUP(A105,Clients[],8,FALSE)","v":"72 - f"},1101,{"$f":"VLOOKUP(C105,Produits[],4,FALSE)","v":"1101 - Mini-croissant (x 12) (30 gr.)"},"72-1101"]
[72,{"$f":"VLOOKUP(A106,Clients[],8,FALSE)","v":"72 - f"},6004,{"$f":"VLOOKUP(C106,Produits[],4,FALSE)","v":"6004 - Baguettine  Parvis (x 12) (80 gr.)"},"72-6004"]
[72,{"$f":"VLOOKUP(A107,Clients[],8,FALSE)","v":"72 - f"},1000,{"$f":"VLOOKUP(C107,Produits[],4,FALSE)","v":"1000 - Croissant (unité) (90 gr.)"},"72-1000"]
[72,{"$f":"VLOOKUP(A108,Clients[],8,FALSE)","v":"72 - f"},4200,{"$f":"VLOOKUP(C108,Produits[],4,FALSE)","v":"4200 - Pain aux noix de Grenoble tranché (unité) (500 gr.)"},"72-4200"]
[73,{"$f":"VLOOKUP(A109,Clients[],8,FALSE)","v":"73 - g"},6000,{"$f":"VLOOKUP(C109,Produits[],4,FALSE)","v":"6000 - Baguette levain (x 25) (280 gr.)"},"73-6000"]
[75,{"$f":"VLOOKUP(A110,Clients[],8,FALSE)","v":"75 - h"},2105,{"$f":"VLOOKUP(C110,Produits[],4,FALSE)","v":"2105 - Mini-burger brioché fleur de sel (x24) (35gr.)"},"75-2105"]
[75,{"$f":"VLOOKUP(A111,Clients[],8,FALSE)","v":"75 - h"},9001,{"$f":"VLOOKUP(C111,Produits[],4,FALSE)","v":"9001 - Pain moulé noix-drêche tranché  (unité) (450 gr.)"},"75-9001"]
[75,{"$f":"VLOOKUP(A112,Clients[],8,FALSE)","v":"75 - h"},9002,{"$f":"VLOOKUP(C112,Produits[],4,FALSE)","v":"9002 - Boule de pâte à pizza nature (x 36) (200 gr.)"},"75-9002"]
[78,{"$f":"VLOOKUP(A113,Clients[],8,FALSE)","v":"78 - j"},1003,{"$f":"VLOOKUP(C113,Produits[],4,FALSE)","v":"1003 - Carré feuilleté (x 12) (70 gr.)"},"78-1003"]
[78,{"$f":"VLOOKUP(A114,Clients[],8,FALSE)","v":"78 - j"},1204,{"$f":"VLOOKUP(C114,Produits[],4,FALSE)","v":"1204 - Pain brioché Victor (x 12) (60 gr.)"},"78-1204"]
[78,{"$f":"VLOOKUP(A115,Clients[],8,FALSE)","v":"78 - j"},5301,{"$f":"VLOOKUP(C115,Produits[],4,FALSE)","v":"5301 - Pain tranché au levain Victor (unité) (820 gr.)"},"78-5301"]
[78,{"$f":"VLOOKUP(A116,Clients[],8,FALSE)","v":"78 - j"},5300,{"$f":"VLOOKUP(C116,Produits[],4,FALSE)","v":"5300 - Pain tranché graines autrichiennes Victor (unité) (820 gr.)"},"78-5300"]
[78,{"$f":"VLOOKUP(A117,Clients[],8,FALSE)","v":"78 - j"},3400,{"$f":"VLOOKUP(C117,Produits[],4,FALSE)","v":"3400 - Pain naan végétalien Victor (x 12) (60 gr.)"},"78-3400"]
[78,{"$f":"VLOOKUP(A118,Clients[],8,FALSE)","v":"78 - j"},2010,{"$f":"VLOOKUP(C118,Produits[],4,FALSE)","v":"2010 - Petit burger semoule-pavot midi Victor (x 12) (50 gr.)"},"78-2010"]
[78,{"$f":"VLOOKUP(A119,Clients[],8,FALSE)","v":"78 - j"},2011,{"$f":"VLOOKUP(C119,Produits[],4,FALSE)","v":"2011 - Gros burger semoule-pavot soir Victor (x 12) (75 gr.)"},"78-2011"]
[78,{"$f":"VLOOKUP(A120,Clients[],8,FALSE)","v":"78 - j"},2101,{"$f":"VLOOKUP(C120,Produits[],4,FALSE)","v":"2101 - Mini-burger pavot (x 24) (35 gr.)"},"78-2101"]
[79,{"$f":"VLOOKUP(A121,Clients[],8,FALSE)","v":"79 - a"},1003,{"$f":"VLOOKUP(C121,Produits[],4,FALSE)","v":"1003 - Carré feuilleté (x 12) (70 gr.)"},"79-1003"]
[79,{"$f":"VLOOKUP(A122,Clients[],8,FALSE)","v":"79 - a"},1204,{"$f":"VLOOKUP(C122,Produits[],4,FALSE)","v":"1204 - Pain brioché Victor (x 12) (60 gr.)"},"79-1204"]
[79,{"$f":"VLOOKUP(A123,Clients[],8,FALSE)","v":"79 - a"},5301,{"$f":"VLOOKUP(C123,Produits[],4,FALSE)","v":"5301 - Pain tranché au levain Victor (unité) (820 gr.)"},"79-5301"]
[79,{"$f":"VLOOKUP(A124,Clients[],8,FALSE)","v":"79 - a"},5300,{"$f":"VLOOKUP(C124,Produits[],4,FALSE)","v":"5300 - Pain tranché graines autrichiennes Victor (unité) (820 gr.)"},"79-5300"]
[79,{"$f":"VLOOKUP(A125,Clients[],8,FALSE)","v":"79 - a"},3400,{"$f":"VLOOKUP(C125,Produits[],4,FALSE)","v":"3400 - Pain naan végétalien Victor (x 12) (60 gr.)"},"79-3400"]
[79,{"$f":"VLOOKUP(A126,Clients[],8,FALSE)","v":"79 - a"},2010,{"$f":"VLOOKUP(C126,Produits[],4,FALSE)","v":"2010 - Petit burger semoule-pavot midi Victor (x 12) (50 gr.)"},"79-2010"]
[79,{"$f":"VLOOKUP(A127,Clients[],8,FALSE)","v":"79 - a"},2011,{"$f":"VLOOKUP(C127,Produits[],4,FALSE)","v":"2011 - Gros burger semoule-pavot soir Victor (x 12) (75 gr.)"},"79-2011"]
[79,{"$f":"VLOOKUP(A128,Clients[],8,FALSE)","v":"79 - a"},2101,{"$f":"VLOOKUP(C128,Produits[],4,FALSE)","v":"2101 - Mini-burger pavot (x 24) (35 gr.)"},"79-2101"]
[80,{"$f":"VLOOKUP(A129,Clients[],8,FALSE)","v":"80 - b"},1003,{"$f":"VLOOKUP(C129,Produits[],4,FALSE)","v":"1003 - Carré feuilleté (x 12) (70 gr.)"},"80-1003"]
[80,{"$f":"VLOOKUP(A130,Clients[],8,FALSE)","v":"80 - b"},1204,{"$f":"VLOOKUP(C130,Produits[],4,FALSE)","v":"1204 - Pain brioché Victor (x 12) (60 gr.)"},{"$f":"CONCATENATE(A130,\"-\",C130)","v":"80-1204"}]
[80,{"$f":"VLOOKUP(A131,Clients[],8,FALSE)","v":"80 - b"},5301,{"$f":"VLOOKUP(C131,Produits[],4,FALSE)","v":"5301 - Pain tranché au levain Victor (unité) (820 gr.)"},"80-5301"]
[80,{"$f":"VLOOKUP(A132,Clients[],8,FALSE)","v":"80 - b"},5300,{"$f":"VLOOKUP(C132,Produits[],4,FALSE)","v":"5300 - Pain tranché graines autrichiennes Victor (unité) (820 gr.)"},"80-5300"]
[80,{"$f":"VLOOKUP(A133,Clients[],8,FALSE)","v":"80 - b"},3400,{"$f":"VLOOKUP(C133,Produits[],4,FALSE)","v":"3400 - Pain naan végétalien Victor (x 12) (60 gr.)"},"80-3400"]
[80,{"$f":"VLOOKUP(A134,Clients[],8,FALSE)","v":"80 - b"},2010,{"$f":"VLOOKUP(C134,Produits[],4,FALSE)","v":"2010 - Petit burger semoule-pavot midi Victor (x 12) (50 gr.)"},"80-2010"]
[80,{"$f":"VLOOKUP(A135,Clients[],8,FALSE)","v":"80 - b"},2011,{"$f":"VLOOKUP(C135,Produits[],4,FALSE)","v":"2011 - Gros burger semoule-pavot soir Victor (x 12) (75 gr.)"},"80-2011"]
[80,{"$f":"VLOOKUP(A136,Clients[],8,FALSE)","v":"80 - b"},2101,{"$f":"VLOOKUP(C136,Produits[],4,FALSE)","v":"2101 - Mini-burger pavot (x 24) (35 gr.)"},"80-2101"]
[81,{"$f":"VLOOKUP(A137,Clients[],8,FALSE)","v":"81 - c"},1003,{"$f":"VLOOKUP(C137,Produits[],4,FALSE)","v":"1003 - Carré feuilleté (x 12) (70 gr.)"},"81-1003"]
[81,{"$f":"VLOOKUP(A138,Clients[],8,FALSE)","v":"81 - c"},1204,{"$f":"VLOOKUP(C138,Produits[],4,FALSE)","v":"1204 - Pain brioché Victor (x 12) (60 gr.)"},"81-1204"]
[81,{"$f":"VLOOKUP(A139,Clients[],8,FALSE)","v":"81 - c"},5301,{"$f":"VLOOKUP(C139,Produits[],4,FALSE)","v":"5301 - Pain tranché au levain Victor (unité) (820 gr.)"},"81-5301"]
[81,{"$f":"VLOOKUP(A140,Clients[],8,FALSE)","v":"81 - c"},5300,{"$f":"VLOOKUP(C140,Produits[],4,FALSE)","v":"5300 - Pain tranché graines autrichiennes Victor (unité) (820 gr.)"},"81-5300"]
[81,{"$f":"VLOOKUP(A141,Clients[],8,FALSE)","v":"81 - c"},3400,{"$f":"VLOOKUP(C141,Produits[],4,FALSE)","v":"3400 - Pain naan végétalien Victor (x 12) (60 gr.)"},"81-3400"]
[81,{"$f":"VLOOKUP(A142,Clients[],8,FALSE)","v":"81 - c"},2010,{"$f":"VLOOKUP(C142,Produits[],4,FALSE)","v":"2010 - Petit burger semoule-pavot midi Victor (x 12) (50 gr.)"},"81-2010"]
[81,{"$f":"VLOOKUP(A143,Clients[],8,FALSE)","v":"81 - c"},2011,{"$f":"VLOOKUP(C143,Produits[],4,FALSE)","v":"2011 - Gros burger semoule-pavot soir Victor (x 12) (75 gr.)"},"81-2011"]
[81,{"$f":"VLOOKUP(A144,Clients[],8,FALSE)","v":"81 - c"},2101,{"$f":"VLOOKUP(C144,Produits[],4,FALSE)","v":"2101 - Mini-burger pavot (x 24) (35 gr.)"},"81-2101"]
[82,{"$f":"VLOOKUP(A145,Clients[],8,FALSE)","v":"82 - d"},1003,{"$f":"VLOOKUP(C145,Produits[],4,FALSE)","v":"1003 - Carré feuilleté (x 12) (70 gr.)"},"82-1003"]
[82,{"$f":"VLOOKUP(A146,Clients[],8,FALSE)","v":"82 - d"},1204,{"$f":"VLOOKUP(C146,Produits[],4,FALSE)","v":"1204 - Pain brioché Victor (x 12) (60 gr.)"},"82-1204"]
[82,{"$f":"VLOOKUP(A147,Clients[],8,FALSE)","v":"82 - d"},5301,{"$f":"VLOOKUP(C147,Produits[],4,FALSE)","v":"5301 - Pain tranché au levain Victor (unité) (820 gr.)"},"82-5301"]
[82,{"$f":"VLOOKUP(A148,Clients[],8,FALSE)","v":"82 - d"},5300,{"$f":"VLOOKUP(C148,Produits[],4,FALSE)","v":"5300 - Pain tranché graines autrichiennes Victor (unité) (820 gr.)"},"82-5300"]
[82,{"$f":"VLOOKUP(A149,Clients[],8,FALSE)","v":"82 - d"},3400,{"$f":"VLOOKUP(C149,Produits[],4,FALSE)","v":"3400 - Pain naan végétalien Victor (x 12) (60 gr.)"},"82-3400"]
[82,{"$f":"VLOOKUP(A150,Clients[],8,FALSE)","v":"82 - d"},2010,{"$f":"VLOOKUP(C150,Produits[],4,FALSE)","v":"2010 - Petit burger semoule-pavot midi Victor (x 12) (50 gr.)"},"82-2010"]
[82,{"$f":"VLOOKUP(A151,Clients[],8,FALSE)","v":"82 - d"},2011,{"$f":"VLOOKUP(C151,Produits[],4,FALSE)","v":"2011 - Gros burger semoule-pavot soir Victor (x 12) (75 gr.)"},"82-2011"]
[82,{"$f":"VLOOKUP(A152,Clients[],8,FALSE)","v":"82 - d"},2101,{"$f":"VLOOKUP(C152,Produits[],4,FALSE)","v":"2101 - Mini-burger pavot (x 24) (35 gr.)"},"82-2101"]
[83,{"$f":"VLOOKUP(A153,Clients[],8,FALSE)","v":"83 - e"},1003,{"$f":"VLOOKUP(C153,Produits[],4,FALSE)","v":"1003 - Carré feuilleté (x 12) (70 gr.)"},"83-1003"]
[83,{"$f":"VLOOKUP(A154,Clients[],8,FALSE)","v":"83 - e"},1204,{"$f":"VLOOKUP(C154,Produits[],4,FALSE)","v":"1204 - Pain brioché Victor (x 12) (60 gr.)"},"83-1204"]
[83,{"$f":"VLOOKUP(A155,Clients[],8,FALSE)","v":"83 - e"},5301,{"$f":"VLOOKUP(C155,Produits[],4,FALSE)","v":"5301 - Pain tranché au levain Victor (unité) (820 gr.)"},"83-5301"]
[83,{"$f":"VLOOKUP(A156,Clients[],8,FALSE)","v":"83 - e"},5300,{"$f":"VLOOKUP(C156,Produits[],4,FALSE)","v":"5300 - Pain tranché graines autrichiennes Victor (unité) (820 gr.)"},"83-5300"]
[83,{"$f":"VLOOKUP(A157,Clients[],8,FALSE)","v":"83 - e"},3400,{"$f":"VLOOKUP(C157,Produits[],4,FALSE)","v":"3400 - Pain naan végétalien Victor (x 12) (60 gr.)"},"83-3400"]
[83,{"$f":"VLOOKUP(A158,Clients[],8,FALSE)","v":"83 - e"},2010,{"$f":"VLOOKUP(C158,Produits[],4,FALSE)","v":"2010 - Petit burger semoule-pavot midi Victor (x 12) (50 gr.)"},"83-2010"]
[83,{"$f":"VLOOKUP(A159,Clients[],8,FALSE)","v":"83 - e"},2011,{"$f":"VLOOKUP(C159,Produits[],4,FALSE)","v":"2011 - Gros burger semoule-pavot soir Victor (x 12) (75 gr.)"},"83-2011"]
[83,{"$f":"VLOOKUP(A160,Clients[],8,FALSE)","v":"83 - e"},2101,{"$f":"VLOOKUP(C160,Produits[],4,FALSE)","v":"2101 - Mini-burger pavot (x 24) (35 gr.)"},"83-2101"]
[84,{"$f":"VLOOKUP(A161,Clients[],8,FALSE)","v":"84 - f"},1003,{"$f":"VLOOKUP(C161,Produits[],4,FALSE)","v":"1003 - Carré feuilleté (x 12) (70 gr.)"},"84-1003"]
[84,{"$f":"VLOOKUP(A162,Clients[],8,FALSE)","v":"84 - f"},1204,{"$f":"VLOOKUP(C162,Produits[],4,FALSE)","v":"1204 - Pain brioché Victor (x 12) (60 gr.)"},"84-1204"]
[84,{"$f":"VLOOKUP(A163,Clients[],8,FALSE)","v":"84 - f"},5301,{"$f":"VLOOKUP(C163,Produits[],4,FALSE)","v":"5301 - Pain tranché au levain Victor (unité) (820 gr.)"},"84-5301"]
[84,{"$f":"VLOOKUP(A164,Clients[],8,FALSE)","v":"84 - f"},5300,{"$f":"VLOOKUP(C164,Produits[],4,FALSE)","v":"5300 - Pain tranché graines autrichiennes Victor (unité) (820 gr.)"},"84-5300"]
[84,{"$f":"VLOOKUP(A165,Clients[],8,FALSE)","v":"84 - f"},3400,{"$f":"VLOOKUP(C165,Produits[],4,FALSE)","v":"3400 - Pain naan végétalien Victor (x 12) (60 gr.)"},"84-3400"]
[84,{"$f":"VLOOKUP(A166,Clients[],8,FALSE)","v":"84 - f"},2010,{"$f":"VLOOKUP(C166,Produits[],4,FALSE)","v":"2010 - Petit burger semoule-pavot midi Victor (x 12) (50 gr.)"},"84-2010"]
[84,{"$f":"VLOOKUP(A167,Clients[],8,FALSE)","v":"84 - f"},2011,{"$f":"VLOOKUP(C167,Produits[],4,FALSE)","v":"2011 - Gros burger semoule-pavot soir Victor (x 12) (75 gr.)"},"84-2011"]
[84,{"$f":"VLOOKUP(A168,Clients[],8,FALSE)","v":"84 - f"},2101,{"$f":"VLOOKUP(C168,Produits[],4,FALSE)","v":"2101 - Mini-burger pavot (x 24) (35 gr.)"},"84-2101"]
[85,{"$f":"VLOOKUP(A169,Clients[],8,FALSE)","v":"85 - g"},1003,{"$f":"VLOOKUP(C169,Produits[],4,FALSE)","v":"1003 - Carré feuilleté (x 12) (70 gr.)"},"85-1003"]
[85,{"$f":"VLOOKUP(A170,Clients[],8,FALSE)","v":"85 - g"},1204,{"$f":"VLOOKUP(C170,Produits[],4,FALSE)","v":"1204 - Pain brioché Victor (x 12) (60 gr.)"},"85-1204"]
[85,{"$f":"VLOOKUP(A171,Clients[],8,FALSE)","v":"85 - g"},5301,{"$f":"VLOOKUP(C171,Produits[],4,FALSE)","v":"5301 - Pain tranché au levain Victor (unité) (820 gr.)"},"85-5301"]
[85,{"$f":"VLOOKUP(A172,Clients[],8,FALSE)","v":"85 - g"},5300,{"$f":"VLOOKUP(C172,Produits[],4,FALSE)","v":"5300 - Pain tranché graines autrichiennes Victor (unité) (820 gr.)"},"85-5300"]
[85,{"$f":"VLOOKUP(A173,Clients[],8,FALSE)","v":"85 - g"},3400,{"$f":"VLOOKUP(C173,Produits[],4,FALSE)","v":"3400 - Pain naan végétalien Victor (x 12) (60 gr.)"},"85-3400"]
[85,{"$f":"VLOOKUP(A174,Clients[],8,FALSE)","v":"85 - g"},2010,{"$f":"VLOOKUP(C174,Produits[],4,FALSE)","v":"2010 - Petit burger semoule-pavot midi Victor (x 12) (50 gr.)"},"85-2010"]
[85,{"$f":"VLOOKUP(A175,Clients[],8,FALSE)","v":"85 - g"},2011,{"$f":"VLOOKUP(C175,Produits[],4,FALSE)","v":"2011 - Gros burger semoule-pavot soir Victor (x 12) (75 gr.)"},"85-2011"]
[85,{"$f":"VLOOKUP(A176,Clients[],8,FALSE)","v":"85 - g"},2101,{"$f":"VLOOKUP(C176,Produits[],4,FALSE)","v":"2101 - Mini-burger pavot (x 24) (35 gr.)"},"85-2101"]
[86,{"$f":"VLOOKUP(A177,Clients[],8,FALSE)","v":"86 - h"},1003,{"$f":"VLOOKUP(C177,Produits[],4,FALSE)","v":"1003 - Carré feuilleté (x 12) (70 gr.)"},"86-1003"]
[86,{"$f":"VLOOKUP(A178,Clients[],8,FALSE)","v":"86 - h"},1204,{"$f":"VLOOKUP(C178,Produits[],4,FALSE)","v":"1204 - Pain brioché Victor (x 12) (60 gr.)"},"86-1204"]
[86,{"$f":"VLOOKUP(A179,Clients[],8,FALSE)","v":"86 - h"},5301,{"$f":"VLOOKUP(C179,Produits[],4,FALSE)","v":"5301 - Pain tranché au levain Victor (unité) (820 gr.)"},"86-5301"]
[86,{"$f":"VLOOKUP(A180,Clients[],8,FALSE)","v":"86 - h"},5300,{"$f":"VLOOKUP(C180,Produits[],4,FALSE)","v":"5300 - Pain tranché graines autrichiennes Victor (unité) (820 gr.)"},"86-5300"]
[86,{"$f":"VLOOKUP(A181,Clients[],8,FALSE)","v":"86 - h"},3400,{"$f":"VLOOKUP(C181,Produits[],4,FALSE)","v":"3400 - Pain naan végétalien Victor (x 12) (60 gr.)"},"86-3400"]
[86,{"$f":"VLOOKUP(A182,Clients[],8,FALSE)","v":"86 - h"},2010,{"$f":"VLOOKUP(C182,Produits[],4,FALSE)","v":"2010 - Petit burger semoule-pavot midi Victor (x 12) (50 gr.)"},"86-2010"]
[86,{"$f":"VLOOKUP(A183,Clients[],8,FALSE)","v":"86 - h"},2011,{"$f":"VLOOKUP(C183,Produits[],4,FALSE)","v":"2011 - Gros burger semoule-pavot soir Victor (x 12) (75 gr.)"},"86-2011"]
[86,{"$f":"VLOOKUP(A184,Clients[],8,FALSE)","v":"86 - h"},2101,{"$f":"VLOOKUP(C184,Produits[],4,FALSE)","v":"2101 - Mini-burger pavot (x 24) (35 gr.)"},"86-2101"]
[88,{"$f":"VLOOKUP(A185,Clients[],8,FALSE)","v":"88 - j"},5000,{"$f":"VLOOKUP(C185,Produits[],4,FALSE)","v":"5000 - Baguette levain (unité) (280 gr.)"},"88-5000"]
[88,{"$f":"VLOOKUP(A186,Clients[],8,FALSE)","v":"88 - j"},6000,{"$f":"VLOOKUP(C186,Produits[],4,FALSE)","v":"6000 - Baguette levain (x 25) (280 gr.)"},"88-6000"]
[88,{"$f":"VLOOKUP(A187,Clients[],8,FALSE)","v":"88 - j"},5001,{"$f":"VLOOKUP(C187,Produits[],4,FALSE)","v":"5001 - Parisien (unité) (480 gr.)"},"88-5001"]
[88,{"$f":"VLOOKUP(A188,Clients[],8,FALSE)","v":"88 - j"},3003,{"$f":"VLOOKUP(C188,Produits[],4,FALSE)","v":"3003 - Panini carré fariné gros (x 10) (100 gr.)"},"88-3003"]
[92,{"$f":"VLOOKUP(A189,Clients[],8,FALSE)","v":"92 - a"},6003,{"$f":"VLOOKUP(C189,Produits[],4,FALSE)","v":"6003 - Baguettine (x 100) (80 gr.)"},"92-6003"]
[92,{"$f":"VLOOKUP(A190,Clients[],8,FALSE)","v":"92 - a"},2013,{"$f":"VLOOKUP(C190,Produits[],4,FALSE)","v":"2013 - Burger semoule pavot (x12) (65 gr.)"},"92-2013"]
[92,{"$f":"VLOOKUP(A191,Clients[],8,FALSE)","v":"92 - a"},3005,{"$f":"VLOOKUP(C191,Produits[],4,FALSE)","v":"3005 - Panini carré graines autrichiennes gros (x 10) (100 gr.)"},"92-3005"]
[92,{"$f":"VLOOKUP(A192,Clients[],8,FALSE)","v":"92 - a"},3106,{"$f":"VLOOKUP(C192,Produits[],4,FALSE)","v":"3106 - Plaque foccacia nature (unité) (1,8 kg.)"},"92-3106"]
[92,{"$f":"VLOOKUP(A193,Clients[],8,FALSE)","v":"92 - a"},2007,{"$f":"VLOOKUP(C193,Produits[],4,FALSE)","v":"2007 - Burger pavot (x 12) (65 gr.)"},"92-2007"]
[92,{"$f":"VLOOKUP(A194,Clients[],8,FALSE)","v":"92 - a"},6000,{"$f":"VLOOKUP(C194,Produits[],4,FALSE)","v":"6000 - Baguette levain (x 25) (280 gr.)"},{"$f":"CONCATENATE(A194,\"-\",C194)","v":"92-6000"}]
[92,{"$f":"VLOOKUP(A195,Clients[],8,FALSE)","v":"92 - a"},4005,{"$f":"VLOOKUP(C195,Produits[],4,FALSE)","v":"4005 - Pain ménage blé tranché (unité) (900 gr.)"},"92-4005"]
[93,{"$f":"VLOOKUP(A196,Clients[],8,FALSE)","v":"93 - b"},2004,{"$f":"VLOOKUP(C196,Produits[],4,FALSE)","v":"2004 - Burger oignon (x 12) (65 gr.)"},"93-2004"]
[93,{"$f":"VLOOKUP(A197,Clients[],8,FALSE)","v":"93 - b"},1200,{"$f":"VLOOKUP(C197,Produits[],4,FALSE)","v":"1200 - Brioche vendéenne (unité) (45 gr.)"},"93-1200"]
[93,{"$f":"VLOOKUP(A198,Clients[],8,FALSE)","v":"93 - b"},3000,{"$f":"VLOOKUP(C198,Produits[],4,FALSE)","v":"3000 - Panini roquette (x 12) (100 gr.)"},"93-3000"]
[93,{"$f":"VLOOKUP(A199,Clients[],8,FALSE)","v":"93 - b"},4002,{"$f":"VLOOKUP(C199,Produits[],4,FALSE)","v":"4002 - Pain céréales tranché large (unité) (500 gr.)"},"93-4002"]
[93,{"$f":"VLOOKUP(A200,Clients[],8,FALSE)","v":"93 - b"},2100,{"$f":"VLOOKUP(C200,Produits[],4,FALSE)","v":"2100 - Mini-burger oignons (x 24) (35 gr.)"},"93-2100"]
[98,{"$f":"VLOOKUP(A201,Clients[],8,FALSE)","v":"98 - f"},2007,{"$f":"VLOOKUP(C201,Produits[],4,FALSE)","v":"2007 - Burger pavot (x 12) (65 gr.)"},"98-2007"]
[98,{"$f":"VLOOKUP(A202,Clients[],8,FALSE)","v":"98 - f"},6000,{"$f":"VLOOKUP(C202,Produits[],4,FALSE)","v":"6000 - Baguette levain (x 25) (280 gr.)"},"98-6000"]
[102,{"$f":"VLOOKUP(A203,Clients[],8,FALSE)","v":"102 - g"},6000,{"$f":"VLOOKUP(C203,Produits[],4,FALSE)","v":"6000 - Baguette levain (x 25) (280 gr.)"},"102-6000"]
[102,{"$f":"VLOOKUP(A204,Clients[],8,FALSE)","v":"102 - g"},1001,{"$f":"VLOOKUP(C204,Produits[],4,FALSE)","v":"1001 - Chocolatine (unité) (100 gr.)"},"102-1001"]
[102,{"$f":"VLOOKUP(A205,Clients[],8,FALSE)","v":"102 - g"},1000,{"$f":"VLOOKUP(C205,Produits[],4,FALSE)","v":"1000 - Croissant (unité) (90 gr.)"},"102-1000"]
[102,{"$f":"VLOOKUP(A206,Clients[],8,FALSE)","v":"102 - g"},6101,{"$f":"VLOOKUP(C206,Produits[],4,FALSE)","v":"6101 - Mini-levain (x 144) (45 gr.)"},"102-6101"]
[102,{"$f":"VLOOKUP(A207,Clients[],8,FALSE)","v":"102 - g"},6104,{"$f":"VLOOKUP(C207,Produits[],4,FALSE)","v":"6104 - Mini-levain au sésame (x144) (45 gr.)"},"102-6104"]
[102,{"$f":"VLOOKUP(A208,Clients[],8,FALSE)","v":"102 - g"},6008,{"$f":"VLOOKUP(C208,Produits[],4,FALSE)","v":"6008 - Miches carrées (x30) (200 gr.)"},"102-6008"]
[102,{"$f":"VLOOKUP(A209,Clients[],8,FALSE)","v":"102 - g"},3402,{"$f":"VLOOKUP(C209,Produits[],4,FALSE)","v":"3402 - Pain plat pavot (x12) (80 gr.)"},"102-3402"]
[107,{"$f":"VLOOKUP(A210,Clients[],8,FALSE)","v":"107 - i"},2006,{"$f":"VLOOKUP(C210,Produits[],4,FALSE)","v":"2006 - Burger sésame noir (x 12) (60 gr.)"},"107-2006"]
[108,{"$f":"VLOOKUP(A211,Clients[],8,FALSE)","v":"108 - j"},6100,{"$f":"VLOOKUP(C211,Produits[],4,FALSE)","v":"6100 - Mini-ciabatta (x 144) (50 gr.)"},"108-6100"]
[108,{"$f":"VLOOKUP(A212,Clients[],8,FALSE)","v":"108 - j"},5300,{"$f":"VLOOKUP(C212,Produits[],4,FALSE)","v":"5300 - Pain tranché graines autrichiennes Victor (unité) (820 gr.)"},"108-5300"]
[108,{"$f":"VLOOKUP(A213,Clients[],8,FALSE)","v":"108 - j"},2009,{"$f":"VLOOKUP(C213,Produits[],4,FALSE)","v":"2009 - Burger origan (x 12) ( 65 gr.)"},"108-2009"]
[108,{"$f":"VLOOKUP(A214,Clients[],8,FALSE)","v":"108 - j"},5000,{"$f":"VLOOKUP(C214,Produits[],4,FALSE)","v":"5000 - Baguette levain (unité) (280 gr.)"},"108-5000"]
[119,{"$f":"VLOOKUP(A215,Clients[],8,FALSE)","v":"119 - f"},1100,{"$f":"VLOOKUP(C215,Produits[],4,FALSE)","v":"1100 - Mini-chocolatine (x 12) (30 gr.)"},"119-1100"]
[119,{"$f":"VLOOKUP(A216,Clients[],8,FALSE)","v":"119 - f"},1101,{"$f":"VLOOKUP(C216,Produits[],4,FALSE)","v":"1101 - Mini-croissant (x 12) (30 gr.)"},"119-1101"]
[119,{"$f":"VLOOKUP(A217,Clients[],8,FALSE)","v":"119 - f"},1102,{"$f":"VLOOKUP(C217,Produits[],4,FALSE)","v":"1102 - Mini-danoise (x 12) (30 gr.)"},"119-1102"]
[119,{"$f":"VLOOKUP(A218,Clients[],8,FALSE)","v":"119 - f"},4100,{"$f":"VLOOKUP(C218,Produits[],4,FALSE)","v":"4100 - Petit belge blanc tranché (unité) (500 gr.)"},"119-4100"]
[119,{"$f":"VLOOKUP(A219,Clients[],8,FALSE)","v":"119 - f"},4101,{"$f":"VLOOKUP(C219,Produits[],4,FALSE)","v":"4101 - Petit belge blé tranché (unité) (500 gr.)"},"119-4101"]
[119,{"$f":"VLOOKUP(A220,Clients[],8,FALSE)","v":"119 - f"},null,{"$f":"VLOOKUP(C220,Produits[],4,FALSE)","v":{"$error":"#N/A"}},"119-"]
[119,{"$f":"VLOOKUP(A221,Clients[],8,FALSE)","v":"119 - f"},1100,{"$f":"VLOOKUP(C221,Produits[],4,FALSE)","v":"1100 - Mini-chocolatine (x 12) (30 gr.)"},"119-1100"]
[119,{"$f":"VLOOKUP(A222,Clients[],8,FALSE)","v":"119 - f"},1101,{"$f":"VLOOKUP(C222,Produits[],4,FALSE)","v":"1101 - Mini-croissant (x 12) (30 gr.)"},"119-1101"]
[119,{"$f":"VLOOKUP(A223,Clients[],8,FALSE)","v":"119 - f"},1102,{"$f":"VLOOKUP(C223,Produits[],4,FALSE)","v":"1102 - Mini-danoise (x 12) (30 gr.)"},"119-1102"]
[119,{"$f":"VLOOKUP(A224,Clients[],8,FALSE)","v":"119 - f"},1303,{"$f":"VLOOKUP(C224,Produits[],4,FALSE)","v":"1303 - Mini-muffins assortis (x 12) (65 gr.)"},"119-1303"]
[120,{"$f":"VLOOKUP(A225,Clients[],8,FALSE)","v":"120 - g"},2008,{"$f":"VLOOKUP(C225,Produits[],4,FALSE)","v":"2008 - Burger semoule (x 12) (65 gr.)"},"120-2008"]
[120,{"$f":"VLOOKUP(A226,Clients[],8,FALSE)","v":"120 - g"},6101,{"$f":"VLOOKUP(C226,Produits[],4,FALSE)","v":"6101 - Mini-levain (x 144) (45 gr.)"},"120-6101"]
[120,{"$f":"VLOOKUP(A227,Clients[],8,FALSE)","v":"120 - g"},4004,{"$f":"VLOOKUP(C227,Produits[],4,FALSE)","v":"4004 - Pain ménage blanc tranché (unité) (900 gr.)"},"120-4004"]
[120,{"$f":"VLOOKUP(A228,Clients[],8,FALSE)","v":"120 - g"},4003,{"$f":"VLOOKUP(C228,Produits[],4,FALSE)","v":"4003 - Pain multigrains la Cohue tranché (unité) (500 gr.)"},"120-4003"]
[120,{"$f":"VLOOKUP(A229,Clients[],8,FALSE)","v":"120 - g"},3401,{"$f":"VLOOKUP(C229,Produits[],4,FALSE)","v":"3401 - Pain déjeuner style ciabatta (x 15) (45 gr.)"},"120-3401"]
[120,{"$f":"VLOOKUP(A230,Clients[],8,FALSE)","v":"120 - g"},6004,{"$f":"VLOOKUP(C230,Produits[],4,FALSE)","v":"6004 - Baguettine  Parvis (x 12) (80 gr.)"},"120-6004"]
[120,{"$f":"VLOOKUP(A231,Clients[],8,FALSE)","v":"120 - g"},3104,{"$f":"VLOOKUP(C231,Produits[],4,FALSE)","v":"3104 - Plaque pain grilled-cheese (x 2) (1 kg.)"},"120-3104"]
[121,{"$f":"VLOOKUP(A232,Clients[],8,FALSE)","v":"121 - h"},2000,{"$f":"VLOOKUP(C232,Produits[],4,FALSE)","v":"2000 - Burger brioché nature (x 12) (65 gr.)"},"121-2000"]
[125,{"$f":"VLOOKUP(A233,Clients[],8,FALSE)","v":"125 - a"},3003,{"$f":"VLOOKUP(C233,Produits[],4,FALSE)","v":"3003 - Panini carré fariné gros (x 10) (100 gr.)"},"125-3003"]
[126,{"$f":"VLOOKUP(A234,Clients[],8,FALSE)","v":"126 - b"},6103,{"$f":"VLOOKUP(C234,Produits[],4,FALSE)","v":"6103 - Mini-levain canneberge-citron (x 144) (40 gr.)"},"126-6103"]
[126,{"$f":"VLOOKUP(A235,Clients[],8,FALSE)","v":"126 - b"},2002,{"$f":"VLOOKUP(C235,Produits[],4,FALSE)","v":"2002 - Burger brioché fleur de sel (x 12) (65 gr.)"},"126-2002"]
[126,{"$f":"VLOOKUP(A236,Clients[],8,FALSE)","v":"126 - b"},4004,{"$f":"VLOOKUP(C236,Produits[],4,FALSE)","v":"4004 - Pain ménage blanc tranché (unité) (900 gr.)"},"126-4004"]
[130,{"$f":"VLOOKUP(A237,Clients[],8,FALSE)","v":"130 - e"},6101,{"$f":"VLOOKUP(C237,Produits[],4,FALSE)","v":"6101 - Mini-levain (x 144) (45 gr.)"},"130-6101"]
[130,{"$f":"VLOOKUP(A238,Clients[],8,FALSE)","v":"130 - e"},6101,{"$f":"VLOOKUP(C238,Produits[],4,FALSE)","v":"6101 - Mini-levain (x 144) (45 gr.)"},"130-6101"]
[130,{"$f":"VLOOKUP(A239,Clients[],8,FALSE)","v":"130 - e"},6000,{"$f":"VLOOKUP(C239,Produits[],4,FALSE)","v":"6000 - Baguette levain (x 25) (280 gr.)"},"130-6000"]
[130,{"$f":"VLOOKUP(A240,Clients[],8,FALSE)","v":"130 - e"},3004,{"$f":"VLOOKUP(C240,Produits[],4,FALSE)","v":"3004 - Panini carré fariné petit (x 10) (80 gr.)"},"130-3004"]
[130,{"$f":"VLOOKUP(A241,Clients[],8,FALSE)","v":"130 - e"},3006,{"$f":"VLOOKUP(C241,Produits[],4,FALSE)","v":"3006 - Panini carré graines autrichiennes petit (x 10) (80 gr.)"},"130-3006"]
[130,{"$f":"VLOOKUP(A242,Clients[],8,FALSE)","v":"130 - e"},3008,{"$f":"VLOOKUP(C242,Produits[],4,FALSE)","v":"3008 - Panini carré blé-avoine petit (x 10) (80 gr.)"},"130-3008"]
[130,{"$f":"VLOOKUP(A243,Clients[],8,FALSE)","v":"130 - e"},4000,{"$f":"VLOOKUP(C243,Produits[],4,FALSE)","v":"4000 - Pain blanc tranché (unité) (500 gr.)"},"130-4000"]
[130,{"$f":"VLOOKUP(A244,Clients[],8,FALSE)","v":"130 - e"},4001,{"$f":"VLOOKUP(C244,Produits[],4,FALSE)","v":"4001 - Pain blé tranché (unité) (500 gr.)"},"130-4001"]
[130,{"$f":"VLOOKUP(A245,Clients[],8,FALSE)","v":"130 - e"},5206,{"$f":"VLOOKUP(C245,Produits[],4,FALSE)","v":"5206 - Petite miche bol à soupe (unité) (90 gr.)"},"130-5206"]
[130,{"$f":"VLOOKUP(A246,Clients[],8,FALSE)","v":"130 - e"},2005,{"$f":"VLOOKUP(C246,Produits[],4,FALSE)","v":"2005 - Burger sésame (x 12) (65 gr.)"},"130-2005"]
[130,{"$f":"VLOOKUP(A247,Clients[],8,FALSE)","v":"130 - e"},3301,{"$f":"VLOOKUP(C247,Produits[],4,FALSE)","v":"3301 - Sous-marin aux fines herbes (x 12) (75 gr.)"},"130-3301"]
[130,{"$f":"VLOOKUP(A248,Clients[],8,FALSE)","v":"130 - e"},3300,{"$f":"VLOOKUP(C248,Produits[],4,FALSE)","v":"3300 - Sous-marin nature (x 12) (75 gr.)"},"130-3300"]
[130,{"$f":"VLOOKUP(A249,Clients[],8,FALSE)","v":"130 - e"},3302,{"$f":"VLOOKUP(C249,Produits[],4,FALSE)","v":"3302 - Sous-marin blé-avoine (x 12) (75 gr.)"},"130-3302"]
[130,{"$f":"VLOOKUP(A250,Clients[],8,FALSE)","v":"130 - e"},6101,{"$f":"VLOOKUP(C250,Produits[],4,FALSE)","v":"6101 - Mini-levain (x 144) (45 gr.)"},"130-6101"]
[130,{"$f":"VLOOKUP(A251,Clients[],8,FALSE)","v":"130 - e"},6000,{"$f":"VLOOKUP(C251,Produits[],4,FALSE)","v":"6000 - Baguette levain (x 25) (280 gr.)"},"130-6000"]
[130,{"$f":"VLOOKUP(A252,Clients[],8,FALSE)","v":"130 - e"},3004,{"$f":"VLOOKUP(C252,Produits[],4,FALSE)","v":"3004 - Panini carré fariné petit (x 10) (80 gr.)"},"130-3004"]
[130,{"$f":"VLOOKUP(A253,Clients[],8,FALSE)","v":"130 - e"},3006,{"$f":"VLOOKUP(C253,Produits[],4,FALSE)","v":"3006 - Panini carré graines autrichiennes petit (x 10) (80 gr.)"},"130-3006"]
[130,{"$f":"VLOOKUP(A254,Clients[],8,FALSE)","v":"130 - e"},3008,{"$f":"VLOOKUP(C254,Produits[],4,FALSE)","v":"3008 - Panini carré blé-avoine petit (x 10) (80 gr.)"},"130-3008"]
[130,{"$f":"VLOOKUP(A255,Clients[],8,FALSE)","v":"130 - e"},3010,{"$f":"VLOOKUP(C255,Produits[],4,FALSE)","v":"3010 - Panini pumpernickel petit (x 10) (80 gr.)"},"130-3010"]
[130,{"$f":"VLOOKUP(A256,Clients[],8,FALSE)","v":"130 - e"},4000,{"$f":"VLOOKUP(C256,Produits[],4,FALSE)","v":"4000 - Pain blanc tranché (unité) (500 gr.)"},"130-4000"]
[130,{"$f":"VLOOKUP(A257,Clients[],8,FALSE)","v":"130 - e"},4001,{"$f":"VLOOKUP(C257,Produits[],4,FALSE)","v":"4001 - Pain blé tranché (unité) (500 gr.)"},"130-4001"]
[130,{"$f":"VLOOKUP(A258,Clients[],8,FALSE)","v":"130 - e"},5206,{"$f":"VLOOKUP(C258,Produits[],4,FALSE)","v":"5206 - Petite miche bol à soupe (unité) (90 gr.)"},{"$f":"CONCATENATE(A258,\"-\",C258)","v":"130-5206"}]
[130,{"$f":"VLOOKUP(A259,Clients[],8,FALSE)","v":"130 - e"},2005,{"$f":"VLOOKUP(C259,Produits[],4,FALSE)","v":"2005 - Burger sésame (x 12) (65 gr.)"},"130-2005"]
[130,{"$f":"VLOOKUP(A260,Clients[],8,FALSE)","v":"130 - e"},3301,{"$f":"VLOOKUP(C260,Produits[],4,FALSE)","v":"3301 - Sous-marin aux fines herbes (x 12) (75 gr.)"},"130-3301"]
[130,{"$f":"VLOOKUP(A261,Clients[],8,FALSE)","v":"130 - e"},3300,{"$f":"VLOOKUP(C261,Produits[],4,FALSE)","v":"3300 - Sous-marin nature (x 12) (75 gr.)"},"130-3300"]
[130,{"$f":"VLOOKUP(A262,Clients[],8,FALSE)","v":"130 - e"},3302,{"$f":"VLOOKUP(C262,Produits[],4,FALSE)","v":"3302 - Sous-marin blé-avoine (x 12) (75 gr.)"},"130-3302"]
[130,{"$f":"VLOOKUP(A263,Clients[],8,FALSE)","v":"130 - e"},6101,{"$f":"VLOOKUP(C263,Produits[],4,FALSE)","v":"6101 - Mini-levain (x 144) (45 gr.)"},"130-6101"]
[130,{"$f":"VLOOKUP(A264,Clients[],8,FALSE)","v":"130 - e"},6000,{"$f":"VLOOKUP(C264,Produits[],4,FALSE)","v":"6000 - Baguette levain (x 25) (280 gr.)"},"130-6000"]
[130,{"$f":"VLOOKUP(A265,Clients[],8,FALSE)","v":"130 - e"},3004,{"$f":"VLOOKUP(C265,Produits[],4,FALSE)","v":"3004 - Panini carré fariné petit (x 10) (80 gr.)"},"130-3004"]
[130,{"$f":"VLOOKUP(A266,Clients[],8,FALSE)","v":"130 - e"},3006,{"$f":"VLOOKUP(C266,Produits[],4,FALSE)","v":"3006 - Panini carré graines autrichiennes petit (x 10) (80 gr.)"},"130-3006"]
[130,{"$f":"VLOOKUP(A267,Clients[],8,FALSE)","v":"130 - e"},3008,{"$f":"VLOOKUP(C267,Produits[],4,FALSE)","v":"3008 - Panini carré blé-avoine petit (x 10) (80 gr.)"},"130-3008"]
[130,{"$f":"VLOOKUP(A268,Clients[],8,FALSE)","v":"130 - e"},3010,{"$f":"VLOOKUP(C268,Produits[],4,FALSE)","v":"3010 - Panini pumpernickel petit (x 10) (80 gr.)"},"130-3010"]
[130,{"$f":"VLOOKUP(A269,Clients[],8,FALSE)","v":"130 - e"},4000,{"$f":"VLOOKUP(C269,Produits[],4,FALSE)","v":"4000 - Pain blanc tranché (unité) (500 gr.)"},"130-4000"]
[130,{"$f":"VLOOKUP(A270,Clients[],8,FALSE)","v":"130 - e"},4001,{"$f":"VLOOKUP(C270,Produits[],4,FALSE)","v":"4001 - Pain blé tranché (unité) (500 gr.)"},"130-4001"]
[130,{"$f":"VLOOKUP(A271,Clients[],8,FALSE)","v":"130 - e"},5206,{"$f":"VLOOKUP(C271,Produits[],4,FALSE)","v":"5206 - Petite miche bol à soupe (unité) (90 gr.)"},"130-5206"]
[130,{"$f":"VLOOKUP(A272,Clients[],8,FALSE)","v":"130 - e"},2005,{"$f":"VLOOKUP(C272,Produits[],4,FALSE)","v":"2005 - Burger sésame (x 12) (65 gr.)"},"130-2005"]
[130,{"$f":"VLOOKUP(A273,Clients[],8,FALSE)","v":"130 - e"},3301,{"$f":"VLOOKUP(C273,Produits[],4,FALSE)","v":"3301 - Sous-marin aux fines herbes (x 12) (75 gr.)"},"130-3301"]
[130,{"$f":"VLOOKUP(A274,Clients[],8,FALSE)","v":"130 - e"},3300,{"$f":"VLOOKUP(C274,Produits[],4,FALSE)","v":"3300 - Sous-marin nature (x 12) (75 gr.)"},"130-3300"]
[130,{"$f":"VLOOKUP(A275,Clients[],8,FALSE)","v":"130 - e"},3302,{"$f":"VLOOKUP(C275,Produits[],4,FALSE)","v":"3302 - Sous-marin blé-avoine (x 12) (75 gr.)"},"130-3302"]
[130,{"$f":"VLOOKUP(A276,Clients[],8,FALSE)","v":"130 - e"},6101,{"$f":"VLOOKUP(C276,Produits[],4,FALSE)","v":"6101 - Mini-levain (x 144) (45 gr.)"},"130-6101"]
[130,{"$f":"VLOOKUP(A277,Clients[],8,FALSE)","v":"130 - e"},6000,{"$f":"VLOOKUP(C277,Produits[],4,FALSE)","v":"6000 - Baguette levain (x 25) (280 gr.)"},"130-6000"]
[130,{"$f":"VLOOKUP(A278,Clients[],8,FALSE)","v":"130 - e"},3004,{"$f":"VLOOKUP(C278,Produits[],4,FALSE)","v":"3004 - Panini carré fariné petit (x 10) (80 gr.)"},"130-3004"]
[130,{"$f":"VLOOKUP(A279,Clients[],8,FALSE)","v":"130 - e"},3006,{"$f":"VLOOKUP(C279,Produits[],4,FALSE)","v":"3006 - Panini carré graines autrichiennes petit (x 10) (80 gr.)"},"130-3006"]
[130,{"$f":"VLOOKUP(A280,Clients[],8,FALSE)","v":"130 - e"},3008,{"$f":"VLOOKUP(C280,Produits[],4,FALSE)","v":"3008 - Panini carré blé-avoine petit (x 10) (80 gr.)"},"130-3008"]
[130,{"$f":"VLOOKUP(A281,Clients[],8,FALSE)","v":"130 - e"},3010,{"$f":"VLOOKUP(C281,Produits[],4,FALSE)","v":"3010 - Panini pumpernickel petit (x 10) (80 gr.)"},"130-3010"]
[130,{"$f":"VLOOKUP(A282,Clients[],8,FALSE)","v":"130 - e"},4000,{"$f":"VLOOKUP(C282,Produits[],4,FALSE)","v":"4000 - Pain blanc tranché (unité) (500 gr.)"},"130-4000"]
[130,{"$f":"VLOOKUP(A283,Clients[],8,FALSE)","v":"130 - e"},4001,{"$f":"VLOOKUP(C283,Produits[],4,FALSE)","v":"4001 - Pain blé tranché (unité) (500 gr.)"},"130-4001"]
[130,{"$f":"VLOOKUP(A284,Clients[],8,FALSE)","v":"130 - e"},5206,{"$f":"VLOOKUP(C284,Produits[],4,FALSE)","v":"5206 - Petite miche bol à soupe (unité) (90 gr.)"},"130-5206"]
[130,{"$f":"VLOOKUP(A285,Clients[],8,FALSE)","v":"130 - e"},2005,{"$f":"VLOOKUP(C285,Produits[],4,FALSE)","v":"2005 - Burger sésame (x 12) (65 gr.)"},"130-2005"]
[130,{"$f":"VLOOKUP(A286,Clients[],8,FALSE)","v":"130 - e"},3301,{"$f":"VLOOKUP(C286,Produits[],4,FALSE)","v":"3301 - Sous-marin aux fines herbes (x 12) (75 gr.)"},"130-3301"]
[130,{"$f":"VLOOKUP(A287,Clients[],8,FALSE)","v":"130 - e"},3300,{"$f":"VLOOKUP(C287,Produits[],4,FALSE)","v":"3300 - Sous-marin nature (x 12) (75 gr.)"},"130-3300"]
[130,{"$f":"VLOOKUP(A288,Clients[],8,FALSE)","v":"130 - e"},3302,{"$f":"VLOOKUP(C288,Produits[],4,FALSE)","v":"3302 - Sous-marin blé-avoine (x 12) (75 gr.)"},"130-3302"]
[130,{"$f":"VLOOKUP(A289,Clients[],8,FALSE)","v":"130 - e"},6101,{"$f":"VLOOKUP(C289,Produits[],4,FALSE)","v":"6101 - Mini-levain (x 144) (45 gr.)"},"130-6101"]
[130,{"$f":"VLOOKUP(A290,Clients[],8,FALSE)","v":"130 - e"},6000,{"$f":"VLOOKUP(C290,Produits[],4,FALSE)","v":"6000 - Baguette levain (x 25) (280 gr.)"},"130-6000"]
[130,{"$f":"VLOOKUP(A291,Clients[],8,FALSE)","v":"130 - e"},3004,{"$f":"VLOOKUP(C291,Produits[],4,FALSE)","v":"3004 - Panini carré fariné petit (x 10) (80 gr.)"},"130-3004"]
[130,{"$f":"VLOOKUP(A292,Clients[],8,FALSE)","v":"130 - e"},2005,{"$f":"VLOOKUP(C292,Produits[],4,FALSE)","v":"2005 - Burger sésame (x 12) (65 gr.)"},"130-2005"]
[130,{"$f":"VLOOKUP(A293,Clients[],8,FALSE)","v":"130 - e"},3301,{"$f":"VLOOKUP(C293,Produits[],4,FALSE)","v":"3301 - Sous-marin aux fines herbes (x 12) (75 gr.)"},"130-3301"]
[130,{"$f":"VLOOKUP(A294,Clients[],8,FALSE)","v":"130 - e"},3300,{"$f":"VLOOKUP(C294,Produits[],4,FALSE)","v":"3300 - Sous-marin nature (x 12) (75 gr.)"},"130-3300"]
[130,{"$f":"VLOOKUP(A295,Clients[],8,FALSE)","v":"130 - e"},6101,{"$f":"VLOOKUP(C295,Produits[],4,FALSE)","v":"6101 - Mini-levain (x 144) (45 gr.)"},"130-6101"]
[130,{"$f":"VLOOKUP(A296,Clients[],8,FALSE)","v":"130 - e"},3101,{"$f":"VLOOKUP(C296,Produits[],4,FALSE)","v":"3101 - Plaque foccacia curi (unité) (2 kg.)"},"130-3101"]
[132,{"$f":"VLOOKUP(A297,Clients[],8,FALSE)","v":"132 - f"},6000,{"$f":"VLOOKUP(C297,Produits[],4,FALSE)","v":"6000 - Baguette levain (x 25) (280 gr.)"},"132-6000"]
[132,{"$f":"VLOOKUP(A298,Clients[],8,FALSE)","v":"132 - f"},6101,{"$f":"VLOOKUP(C298,Produits[],4,FALSE)","v":"6101 - Mini-levain (x 144) (45 gr.)"},"132-6101"]
[132,{"$f":"VLOOKUP(A299,Clients[],8,FALSE)","v":"132 - f"},3300,{"$f":"VLOOKUP(C299,Produits[],4,FALSE)","v":"3300 - Sous-marin nature (x 12) (75 gr.)"},"132-3300"]
[132,{"$f":"VLOOKUP(A300,Clients[],8,FALSE)","v":"132 - f"},9005,{"$f":"VLOOKUP(C300,Produits[],4,FALSE)","v":"9005 - Pâte à beigne maison (x 160) (60 gr.)"},"132-9005"]
[132,{"$f":"VLOOKUP(A301,Clients[],8,FALSE)","v":"132 - f"},4100,{"$f":"VLOOKUP(C301,Produits[],4,FALSE)","v":"4100 - Petit belge blanc tranché (unité) (500 gr.)"},"132-4100"]
[132,{"$f":"VLOOKUP(A302,Clients[],8,FALSE)","v":"132 - f"},6007,{"$f":"VLOOKUP(C302,Produits[],4,FALSE)","v":"6007 - Demie-baguette canneberge (x 40) (135 gr.)"},"132-6007"]
[136,{"$f":"VLOOKUP(A303,Clients[],8,FALSE)","v":"136 - i"},5003,{"$f":"VLOOKUP(C303,Produits[],4,FALSE)","v":"5003 - Ficelle sésame (unité) (175 gr.)"},"136-5003"]
[136,{"$f":"VLOOKUP(A304,Clients[],8,FALSE)","v":"136 - i"},5002,{"$f":"VLOOKUP(C304,Produits[],4,FALSE)","v":"5002 - Ficelle pavot (unité) (175 gr.)"},"136-5002"]
[136,{"$f":"VLOOKUP(A305,Clients[],8,FALSE)","v":"136 - i"},3003,{"$f":"VLOOKUP(C305,Produits[],4,FALSE)","v":"3003 - Panini carré fariné gros (x 10) (100 gr.)"},"136-3003"]
[139,{"$f":"VLOOKUP(A306,Clients[],8,FALSE)","v":"139 - a"},1003,{"$f":"VLOOKUP(C306,Produits[],4,FALSE)","v":"1003 - Carré feuilleté (x 12) (70 gr.)"},"139-1003"]
[139,{"$f":"VLOOKUP(A307,Clients[],8,FALSE)","v":"139 - a"},1204,{"$f":"VLOOKUP(C307,Produits[],4,FALSE)","v":"1204 - Pain brioché Victor (x 12) (60 gr.)"},"139-1204"]
[139,{"$f":"VLOOKUP(A308,Clients[],8,FALSE)","v":"139 - a"},5301,{"$f":"VLOOKUP(C308,Produits[],4,FALSE)","v":"5301 - Pain tranché au levain Victor (unité) (820 gr.)"},"139-5301"]
[139,{"$f":"VLOOKUP(A309,Clients[],8,FALSE)","v":"139 - a"},5300,{"$f":"VLOOKUP(C309,Produits[],4,FALSE)","v":"5300 - Pain tranché graines autrichiennes Victor (unité) (820 gr.)"},"139-5300"]
[139,{"$f":"VLOOKUP(A310,Clients[],8,FALSE)","v":"139 - a"},3400,{"$f":"VLOOKUP(C310,Produits[],4,FALSE)","v":"3400 - Pain naan végétalien Victor (x 12) (60 gr.)"},"139-3400"]
[139,{"$f":"VLOOKUP(A311,Clients[],8,FALSE)","v":"139 - a"},2010,{"$f":"VLOOKUP(C311,Produits[],4,FALSE)","v":"2010 - Petit burger semoule-pavot midi Victor (x 12) (50 gr.)"},"139-2010"]
[139,{"$f":"VLOOKUP(A312,Clients[],8,FALSE)","v":"139 - a"},2011,{"$f":"VLOOKUP(C312,Produits[],4,FALSE)","v":"2011 - Gros burger semoule-pavot soir Victor (x 12) (75 gr.)"},"139-2011"]
[139,{"$f":"VLOOKUP(A313,Clients[],8,FALSE)","v":"139 - a"},2101,{"$f":"VLOOKUP(C313,Produits[],4,FALSE)","v":"2101 - Mini-burger pavot (x 24) (35 gr.)"},"139-2101"]
[142,{"$f":"VLOOKUP(A314,Clients[],8,FALSE)","v":"142 - c"},3106,{"$f":"VLOOKUP(C314,Produits[],4,FALSE)","v":"3106 - Plaque foccacia nature (unité) (1,8 kg.)"},"142-3106"]
[142,{"$f":"VLOOKUP(A315,Clients[],8,FALSE)","v":"142 - c"},3107,{"$f":"VLOOKUP(C315,Produits[],4,FALSE)","v":"3107 - Plaque foccacia au paprika (unité) (1,8 kg.)"},"142-3107"]
[142,{"$f":"VLOOKUP(A316,Clients[],8,FALSE)","v":"142 - c"},3004,{"$f":"VLOOKUP(C316,Produits[],4,FALSE)","v":"3004 - Panini carré fariné petit (x 10) (80 gr.)"},"142-3004"]
[142,{"$f":"VLOOKUP(A317,Clients[],8,FALSE)","v":"142 - c"},5207,{"$f":"VLOOKUP(C317,Produits[],4,FALSE)","v":"5207 - Miche bol à soupe (unité) ( 200 gr.)"},"142-5207"]
[142,{"$f":"VLOOKUP(A318,Clients[],8,FALSE)","v":"142 - c"},5300,{"$f":"VLOOKUP(C318,Produits[],4,FALSE)","v":"5300 - Pain tranché graines autrichiennes Victor (unité) (820 gr.)"},"142-5300"]
[143,{"$f":"VLOOKUP(A319,Clients[],8,FALSE)","v":"143 - d"},3105,{"$f":"VLOOKUP(C319,Produits[],4,FALSE)","v":"3105 - Plaque foccacia au maïs (unité) (2 kg.)"},"143-3105"]
[145,{"$f":"VLOOKUP(A320,Clients[],8,FALSE)","v":"145 - f"},6002,{"$f":"VLOOKUP(C320,Produits[],4,FALSE)","v":"6002 - Ficelles sésame/pavot (x 50) (175 gr.)"},"145-6002"]
[145,{"$f":"VLOOKUP(A321,Clients[],8,FALSE)","v":"145 - f"},4005,{"$f":"VLOOKUP(C321,Produits[],4,FALSE)","v":"4005 - Pain ménage blé tranché (unité) (900 gr.)"},"145-4005"]
[145,{"$f":"VLOOKUP(A322,Clients[],8,FALSE)","v":"145 - f"},1101,{"$f":"VLOOKUP(C322,Produits[],4,FALSE)","v":"1101 - Mini-croissant (x 12) (30 gr.)"},{"$f":"CONCATENATE(A322,\"-\",C322)","v":"145-1101"}]
[145,{"$f":"VLOOKUP(A323,Clients[],8,FALSE)","v":"145 - f"},1100,{"$f":"VLOOKUP(C323,Produits[],4,FALSE)","v":"1100 - Mini-chocolatine (x 12) (30 gr.)"},"145-1100"]
[145,{"$f":"VLOOKUP(A324,Clients[],8,FALSE)","v":"145 - f"},6501,{"$f":"VLOOKUP(C324,Produits[],4,FALSE)","v":"6501 - Mini-croissant cru (x 150) (35 gr.)"},"145-6501"]
[145,{"$f":"VLOOKUP(A325,Clients[],8,FALSE)","v":"145 - f"},6500,{"$f":"VLOOKUP(C325,Produits[],4,FALSE)","v":"6500 - Mini-chocolatine crue (x 150) (35 gr.)"},"145-6500"]
[145,{"$f":"VLOOKUP(A326,Clients[],8,FALSE)","v":"145 - f"},2007,{"$f":"VLOOKUP(C326,Produits[],4,FALSE)","v":"2007 - Burger pavot (x 12) (65 gr.)"},"145-2007"]
[148,{"$f":"VLOOKUP(A327,Clients[],8,FALSE)","v":"148 - i"},5005,{"$f":"VLOOKUP(C327,Produits[],4,FALSE)","v":"5005 - Grosse baguettine nature (unité) (175 gr.)"},"148-5005"]
[148,{"$f":"VLOOKUP(A328,Clients[],8,FALSE)","v":"148 - i"},1303,{"$f":"VLOOKUP(C328,Produits[],4,FALSE)","v":"1303 - Mini-muffins assortis (x 12) (65 gr.)"},"148-1303"]
[148,{"$f":"VLOOKUP(A329,Clients[],8,FALSE)","v":"148 - i"},1301,{"$f":"VLOOKUP(C329,Produits[],4,FALSE)","v":"1301 - Gros muffin trois chocolats (unité) (130 gr.)"},"148-1301"]
[148,{"$f":"VLOOKUP(A330,Clients[],8,FALSE)","v":"148 - i"},1302,{"$f":"VLOOKUP(C330,Produits[],4,FALSE)","v":"1302 - Gros muffin aux agrumes (unité) (130 gr.)"},"148-1302"]
[148,{"$f":"VLOOKUP(A331,Clients[],8,FALSE)","v":"148 - i"},1300,{"$f":"VLOOKUP(C331,Produits[],4,FALSE)","v":"1300 - Gros muffin aux petits fruits (unité) (130 gr.)"},"148-1300"]
[148,{"$f":"VLOOKUP(A332,Clients[],8,FALSE)","v":"148 - i"},1000,{"$f":"VLOOKUP(C332,Produits[],4,FALSE)","v":"1000 - Croissant (unité) (90 gr.)"},"148-1000"]
[149,{"$f":"VLOOKUP(A333,Clients[],8,FALSE)","v":"149 - j"},3400,{"$f":"VLOOKUP(C333,Produits[],4,FALSE)","v":"3400 - Pain naan végétalien Victor (x 12) (60 gr.)"},"149-3400"]
[null,{"$f":"VLOOKUP(A334,Clients[],8,FALSE)","v":{"$error":"#N/A"}},null,{"$f":"VLOOKUP(C334,Produits[],4,FALSE)","v":{"$error":"#N/A"}},"-"]
[null,{"$f":"VLOOKUP(A335,Clients[],8,FALSE)","v":{"$error":"#N/A"}},null,{"$f":"VLOOKUP(C335,Produits[],4,FALSE)","v":{"$error":"#N/A"}},"-"]
[null,{"$f":"VLOOKUP(A336,Clients[],8,FALSE)","v":{"$error":"#N/A"}},null,{"$f":"VLOOKUP(C336,Produits[],4,FALSE)","v":{"$error":"#N/A"}},"-"]
[null,{"$f":"VLOOKUP(A337,Clients[],8,FALSE)","v":{"$error":"#N/A"}},null,{"$f":"VLOOKUP(C337,Produits[],4,FALSE)","v":{"$error":"#N/A"}},"-"]
[null,{"$f":"VLOOKUP(A338,Clients[],8,FALSE)","v":{"$error":"#N/A"}},null,{"$f":"VLOOKUP(C338,Produits[],4,FALSE)","v":{"$error":"#N/A"}},"-"]
[null,{"$f":"VLOOKUP(A339,Clients[],8,FALSE)","v":{"$error":"#N/A"}},null,{"$f":"VLOOKUP(C339,Produits[],4,FALSE)","v":{"$error":"#N/A"}},"-"]
[null,{"$f":"VLOOKUP(A340,Clients[],8,FALSE)","v":{"$error":"#N/A"}},null,{"$f":"VLOOKUP(C340,Produits[],4,FALSE)","v":{"$error":"#N/A"}},"-"]
[null,{"$f":"VLOOKUP(A341,Clients[],8,FALSE)","v":{"$error":"#N/A"}},null,{"$f":"VLOOKUP(C341,Produits[],4,FALSE)","v":{"$error":"#N/A"}},"-"]
[null,{"$f":"VLOOKUP(A342,Clients[],8,FALSE)","v":{"$error":"#N/A"}},null,{"$f":"VLOOKUP(C342,Produits[],4,FALSE)","v":{"$error":"#N/A"}},"-"]
[null,{"$f":"VLOOKUP(A343,Clients[],8,FALSE)","v":{"$error":"#N/A"}},null,{"$f":"VLOOKUP(C343,Produits[],4,FALSE)","v":{"$error":"#N/A"}},"-"]
[null,{"$f":"VLOOKUP(A344,Clients[],8,FALSE)","v":{"$error":"#N/A"}},null,{"$f":"VLOOKUP(C344,Produits[],4,FALSE)","v":{"$error":"#N/A"}},"-"]
[null,{"$f":"VLOOKUP(A345,Clients[],8,FALSE)","v":{"$error":"#N/A"}},null,{"$f":"VLOOKUP(C345,Produits[],4,FALSE)","v":{"$error":"#N/A"}},"-"]
[null,{"$f":"VLOOKUP(A346,Clients[],8,FALSE)","v":{"$error":"#N/A"}},null,{"$f":"VLOOKUP(C346,Produits[],4,FALSE)","v":{"$error":"#N/A"}},"-"]
[null,{"$f":"VLOOKUP(A347,Clients[],8,FALSE)","v":{"$error":"#N/A"}},null,{"$f":"VLOOKUP(C347,Produits[],4,FALSE)","v":{"$error":"#N/A"}},"-"]
[null,{"$f":"VLOOKUP(A348,Clients[],8,FALSE)","v":{"$error":"#N/A"}},null,{"$f":"VLOOKUP(C348,Produits[],4,FALSE)","v":{"$error":"#N/A"}},"-"]
[null,{"$f":"VLOOKUP(A349,Clients[],8,FALSE)","v":{"$error":"#N/A"}},null,{"$f":"VLOOKUP(C349,Produits[],4,FALSE)","v":{"$error":"#N/A"}},"-"]
[null,{"$f":"VLOOKUP(A350,Clients[],8,FALSE)","v":{"$error":"#N/A"}},null,{"$f":"VLOOKUP(C350,Produits[],4,FALSE)","v":{"$error":"#N/A"}},"-"]
[null,{"$f":"VLOOKUP(A351,Clients[],8,FALSE)","v":{"$error":"#N/A"}},null,{"$f":"VLOOKUP(C351,Produits[],4,FALSE)","v":{"$error":"#N/A"}},"-"]
[null,{"$f":"VLOOKUP(A352,Clients[],8,FALSE)","v":{"$error":"#N/A"}},null,{"$f":"VLOOKUP(C352,Produits[],4,FALSE)","v":{"$error":"#N/A"}},"-"]
[null,{"$f":"VLOOKUP(A353,Clients[],8,FALSE)","v":{"$error":"#N/A"}},null,{"$f":"VLOOKUP(C353,Produits[],4,FALSE)","v":{"$error":"#N/A"}},"-"]
[null,{"$f":"VLOOKUP(A354,Clients[],8,FALSE)","v":{"$error":"#N/A"}},null,{"$f":"VLOOKUP(C354,Produits[],4,FALSE)","v":{"$error":"#N/A"}},"-"]
[null,{"$f":"VLOOKUP(A355,Clients[],8,FALSE)","v":{"$error":"#N/A"}},null,{"$f":"VLOOKUP(C355,Produits[],4,FALSE)","v":{"$error":"#N/A"}},"-"]
[null,{"$f":"VLOOKUP(A356,Clients[],8,FALSE)","v":{"$error":"#N/A"}},null,{"$f":"VLOOKUP(C356,Produits[],4,FALSE)","v":{"$error":"#N/A"}},"-"]
[null,{"$f":"VLOOKUP(A357,Clients[],8,FALSE)","v":{"$error":"#N/A"}},null,{"$f":"VLOOKUP(C357,Produits[],4,FALSE)","v":{"$error":"#N/A"}},"-"]
[null,{"$f":"VLOOKUP(A358,Clients[],8,FALSE)","v":{"$error":"#N/A"}},null,{"$f":"VLOOKUP(C358,Produits[],4,FALSE)","v":{"$error":"#N/A"}},"-"]
[null,{"$f":"VLOOKUP(A359,Clients[],8,FALSE)","v":{"$error":"#N/A"}},null,{"$f":"VLOOKUP(C359,Produits[],4,FALSE)","v":{"$error":"#N/A"}},"-"]
[null,{"$f":"VLOOKUP(A360,Clients[],8,FALSE)","v":{"$error":"#N/A"}},null,{"$f":"VLOOKUP(C360,Produits[],4,FALSE)","v":{"$error":"#N/A"}},"-"]
[null,{"$f":"VLOOKUP(A361,Clients[],8,FALSE)","v":{"$error":"#N/A"}},null,{"$f":"VLOOKUP(C361,Produits[],4,FALSE)","v":{"$error":"#N/A"}},"-"]
[null,{"$f":"VLOOKUP(A362,Clients[],8,FALSE)","v":{"$error":"#N/A"}},null,{"$f":"VLOOKUP(C362,Produits[],4,FALSE)","v":{"$error":"#N/A"}},"-"]
[null,{"$f":"VLOOKUP(A363,Clients[],8,FALSE)","v":{"$error":"#N/A"}},null,{"$f":"VLOOKUP(C363,Produits[],4,FALSE)","v":{"$error":"#N/A"}},"-"]
[null,{"$f":"VLOOKUP(A364,Clients[],8,FALSE)","v":{"$error":"#N/A"}},null,{"$f":"VLOOKUP(C364,Produits[],4,FALSE)","v":{"$error":"#N/A"}},"-"]
[null,{"$f":"VLOOKUP(A365,Clients[],8,FALSE)","v":{"$error":"#N/A"}},null,{"$f":"VLOOKUP(C365,Produits[],4,FALSE)","v":{"$error":"#N/A"}},"-"]
[null,{"$f":"VLOOKUP(A366,Clients[],8,FALSE)","v":{"$error":"#N/A"}},null,{"$f":"VLOOKUP(C366,Produits[],4,FALSE)","v":{"$error":"#N/A"}},"-"]
[null,{"$f":"VLOOKUP(A367,Clients[],8,FALSE)","v":{"$error":"#N/A"}},null,{"$f":"VLOOKUP(C367,Produits[],4,FALSE)","v":{"$error":"#N/A"}},"-"]
[null,{"$f":"VLOOKUP(A368,Clients[],8,FALSE)","v":{"$error":"#N/A"}},null,{"$f":"VLOOKUP(C368,Produits[],4,FALSE)","v":{"$error":"#N/A"}},"-"]
[null,{"$f":"VLOOKUP(A369,Clients[],8,FALSE)","v":{"$error":"#N/A"}},null,{"$f":"VLOOKUP(C369,Produits[],4,FALSE)","v":{"$error":"#N/A"}},"-"]
[null,{"$f":"VLOOKUP(A370,Clients[],8,FALSE)","v":{"$error":"#N/A"}},null,{"$f":"VLOOKUP(C370,Produits[],4,FALSE)","v":{"$error":"#N/A"}},"-"]
[null,{"$f":"VLOOKUP(A371,Clients[],8,FALSE)","v":{"$error":"#N/A"}},null,{"$f":"VLOOKUP(C371,Produits[],4,FALSE)","v":{"$error":"#N/A"}},"-"]
[null,{"$f":"VLOOKUP(A372,Clients[],8,FALSE)","v":{"$error":"#N/A"}},null,{"$f":"VLOOKUP(C372,Produits[],4,FALSE)","v":{"$error":"#N/A"}},"-"]
[null,{"$f":"VLOOKUP(A373,Clients[],8,FALSE)","v":{"$error":"#N/A"}},null,{"$f":"VLOOKUP(C373,Produits[],4,FALSE)","v":{"$error":"#N/A"}},"-"]
[null,{"$f":"VLOOKUP(A374,Clients[],8,FALSE)","v":{"$error":"#N/A"}},null,{"$f":"VLOOKUP(C374,Produits[],4,FALSE)","v":{"$error":"#N/A"}},"-"]
[null,{"$f":"VLOOKUP(A375,Clients[],8,FALSE)","v":{"$error":"#N/A"}},null,{"$f":"VLOOKUP(C375,Produits[],4,FALSE)","v":{"$error":"#N/A"}},"-"]
[null,{"$f":"VLOOKUP(A376,Clients[],8,FALSE)","v":{"$error":"#N/A"}},null,{"$f":"VLOOKUP(C376,Produits[],4,FALSE)","v":{"$error":"#N/A"}},"-"]
[null,{"$f":"VLOOKUP(A377,Clients[],8,FALSE)","v":{"$error":"#N/A"}},null,{"$f":"VLOOKUP(C377,Produits[],4,FALSE)","v":{"$error":"#N/A"}},"-"]
[null,{"$f":"VLOOKUP(A378,Clients[],8,FALSE)","v":{"$error":"#N/A"}},null,{"$f":"VLOOKUP(C378,Produits[],4,FALSE)","v":{"$error":"#N/A"}},"-"]
[null,{"$f":"VLOOKUP(A379,Clients[],8,FALSE)","v":{"$error":"#N/A"}},null,{"$f":"VLOOKUP(C379,Produits[],4,FALSE)","v":{"$error":"#N/A"}},"-"]
[null,{"$f":"VLOOKUP(A380,Clients[],8,FALSE)","v":{"$error":"#N/A"}},null,{"$f":"VLOOKUP(C380,Produits[],4,FALSE)","v":{"$error":"#N/A"}},"-"]
[null,{"$f":"VLOOKUP(A381,Clients[],8,FALSE)","v":{"$error":"#N/A"}},null,{"$f":"VLOOKUP(C381,Produits[],4,FALSE)","v":{"$error":"#N/A"}},"-"]
[null,{"$f":"VLOOKUP(A382,Clients[],8,FALSE)","v":{"$error":"#N/A"}},null,{"$f":"VLOOKUP(C382,Produits[],4,FALSE)","v":{"$error":"#N/A"}},"-"]
[null,{"$f":"VLOOKUP(A383,Clients[],8,FALSE)","v":{"$error":"#N/A"}},null,{"$f":"VLOOKUP(C383,Produits[],4,FALSE)","v":{"$error":"#N/A"}},"-"]
[null,{"$f":"VLOOKUP(A384,Clients[],8,FALSE)","v":{"$error":"#N/A"}},null,{"$f":"VLOOKUP(C384,Produits[],4,FALSE)","v":{"$error":"#N/A"}},"-"]
[null,{"$f":"VLOOKUP(A385,Clients[],8,FALSE)","v":{"$error":"#N/A"}},null,{"$f":"VLOOKUP(C385,Produits[],4,FALSE)","v":{"$error":"#N/A"}},"-"]
[null,{"$f":"VLOOKUP(A386,Clients[],8,FALSE)","v":{"$error":"#N/A"}},null,{"$f":"VLOOKUP(C386,Produits[],4,FALSE)","v":{"$error":"#N/A"}},{"$f":"CONCATENATE(A386,\"-\",C386)","v":"-"}]
[null,{"$f":"VLOOKUP(A387,Clients[],8,FALSE)","v":{"$error":"#N/A"}},null,{"$f":"VLOOKUP(C387,Produits[],4,FALSE)","v":{"$error":"#N/A"}},"-"]
[null,{"$f":"VLOOKUP(A388,Clients[],8,FALSE)","v":{"$error":"#N/A"}},null,{"$f":"VLOOKUP(C388,Produits[],4,FALSE)","v":{"$error":"#N/A"}},"-"]
[null,{"$f":"VLOOKUP(A389,Clients[],8,FALSE)","v":{"$error":"#N/A"}},null,{"$f":"VLOOKUP(C389,Produits[],4,FALSE)","v":{"$error":"#N/A"}},"-"]
[null,{"$f":"VLOOKUP(A390,Clients[],8,FALSE)","v":{"$error":"#N/A"}},null,{"$f":"VLOOKUP(C390,Produits[],4,FALSE)","v":{"$error":"#N/A"}},"-"]
[null,{"$f":"VLOOKUP(A391,Clients[],8,FALSE)","v":{"$error":"#N/A"}},null,{"$f":"VLOOKUP(C391,Produits[],4,FALSE)","v":{"$error":"#N/A"}},"-"]
[null,{"$f":"VLOOKUP(A392,Clients[],8,FALSE)","v":{"$error":"#N/A"}},null,{"$f":"VLOOKUP(C392,Produits[],4,FALSE)","v":{"$error":"#N/A"}},"-"]
[null,{"$f":"VLOOKUP(A393,Clients[],8,FALSE)","v":{"$error":"#N/A"}},null,{"$f":"VLOOKUP(C393,Produits[],4,FALSE)","v":{"$error":"#N/A"}},"-"]
[null,{"$f":"VLOOKUP(A394,Clients[],8,FALSE)","v":{"$error":"#N/A"}},null,{"$f":"VLOOKUP(C394,Produits[],4,FALSE)","v":{"$error":"#N/A"}},"-"]
[null,{"$f":"VLOOKUP(A395,Clients[],8,FALSE)","v":{"$error":"#N/A"}},null,{"$f":"VLOOKUP(C395,Produits[],4,FALSE)","v":{"$error":"#N/A"}},"-"]
[null,{"$f":"VLOOKUP(A396,Clients[],8,FALSE)","v":{"$error":"#N/A"}},null,{"$f":"VLOOKUP(C396,Produits[],4,FALSE)","v":{"$error":"#N/A"}},"-"]
[null,{"$f":"VLOOKUP(A397,Clients[],8,FALSE)","v":{"$error":"#N/A"}},null,{"$f":"VLOOKUP(C397,Produits[],4,FALSE)","v":{"$error":"#N/A"}},"-"]
[null,{"$f":"VLOOKUP(A398,Clients[],8,FALSE)","v":{"$error":"#N/A"}},null,{"$f":"VLOOKUP(C398,Produits[],4,FALSE)","v":{"$error":"#N/A"}},"-"]
[null,{"$f":"VLOOKUP(A399,Clients[],8,FALSE)","v":{"$error":"#N/A"}},null,{"$f":"VLOOKUP(C399,Produits[],4,FALSE)","v":{"$error":"#N/A"}},"-"]
[null,{"$f":"VLOOKUP(A400,Clients[],8,FALSE)","v":{"$error":"#N/A"}},null,{"$f":"VLOOKUP(C400,Produits[],4,FALSE)","v":{"$error":"#N/A"}},"-"]
[null,{"$f":"VLOOKUP(A401,Clients[],8,FALSE)","v":{"$error":"#N/A"}},null,{"$f":"VLOOKUP(C401,Produits[],4,FALSE)","v":{"$error":"#N/A"}},"-"]
[null,{"$f":"VLOOKUP(A402,Clients[],8,FALSE)","v":{"$error":"#N/A"}},null,{"$f":"VLOOKUP(C402,Produits[],4,FALSE)","v":{"$error":"#N/A"}},"-"]
[null,{"$f":"VLOOKUP(A403,Clients[],8,FALSE)","v":{"$error":"#N/A"}},null,{"$f":"VLOOKUP(C403,Produits[],4,FALSE)","v":{"$error":"#N/A"}},"-"]
[null,{"$f":"VLOOKUP(A404,Clients[],8,FALSE)","v":{"$error":"#N/A"}},null,{"$f":"VLOOKUP(C404,Produits[],4,FALSE)","v":{"$error":"#N/A"}},"-"]
[null,{"$f":"VLOOKUP(A405,Clients[],8,FALSE)","v":{"$error":"#N/A"}},null,{"$f":"VLOOKUP(C405,Produits[],4,FALSE)","v":{"$error":"#N/A"}},"-"]
[null,{"$f":"VLOOKUP(A406,Clients[],8,FALSE)","v":{"$error":"#N/A"}},null,{"$f":"VLOOKUP(C406,Produits[],4,FALSE)","v":{"$error":"#N/A"}},"-"]
[null,{"$f":"VLOOKUP(A407,Clients[],8,FALSE)","v":{"$error":"#N/A"}},null,{"$f":"VLOOKUP(C407,Produits[],4,FALSE)","v":{"$error":"#N/A"}},"-"]
[null,{"$f":"VLOOKUP(A408,Clients[],8,FALSE)","v":{"$error":"#N/A"}},null,{"$f":"VLOOKUP(C408,Produits[],4,FALSE)","v":{"$error":"#N/A"}},"-"]
[null,{"$f":"VLOOKUP(A409,Clients[],8,FALSE)","v":{"$error":"#N/A"}},null,{"$f":"VLOOKUP(C409,Produits[],4,FALSE)","v":{"$error":"#N/A"}},"-"]
[null,{"$f":"VLOOKUP(A410,Clients[],8,FALSE)","v":{"$error":"#N/A"}},null,{"$f":"VLOOKUP(C410,Produits[],4,FALSE)","v":{"$error":"#N/A"}},"-"]
[null,{"$f":"VLOOKUP(A411,Clients[],8,FALSE)","v":{"$error":"#N/A"}},null,{"$f":"VLOOKUP(C411,Produits[],4,FALSE)","v":{"$error":"#N/A"}},"-"]
[null,{"$f":"VLOOKUP(A412,Clients[],8,FALSE)","v":{"$error":"#N/A"}},null,{"$f":"VLOOKUP(C412,Produits[],4,FALSE)","v":{"$error":"#N/A"}},"-"]
[null,{"$f":"VLOOKUP(A413,Clients[],8,FALSE)","v":{"$error":"#N/A"}},null,{"$f":"VLOOKUP(C413,Produits[],4,FALSE)","v":{"$error":"#N/A"}},"-"]
[null,{"$f":"VLOOKUP(A414,Clients[],8,FALSE)","v":{"$error":"#N/A"}},null,{"$f":"VLOOKUP(C414,Produits[],4,FALSE)","v":{"$error":"#N/A"}},"-"]
[null,{"$f":"VLOOKUP(A415,Clients[],8,FALSE)","v":{"$error":"#N/A"}},null,{"$f":"VLOOKUP(C415,Produits[],4,FALSE)","v":{"$error":"#N/A"}},"-"]
[null,{"$f":"VLOOKUP(A416,Clients[],8,FALSE)","v":{"$error":"#N/A"}},null,{"$f":"VLOOKUP(C416,Produits[],4,FALSE)","v":{"$error":"#N/A"}},"-"]
[null,{"$f":"VLOOKUP(A417,Clients[],8,FALSE)","v":{"$error":"#N/A"}},null,{"$f":"VLOOKUP(C417,Produits[],4,FALSE)","v":{"$error":"#N/A"}},"-"]
[null,{"$f":"VLOOKUP(A418,Clients[],8,FALSE)","v":{"$error":"#N/A"}},null,{"$f":"VLOOKUP(C418,Produits[],4,FALSE)","v":{"$error":"#N/A"}},"-"]
[null,{"$f":"VLOOKUP(A419,Clients[],8,FALSE)","v":{"$error":"#N/A"}},null,{"$f":"VLOOKUP(C419,Produits[],4,FALSE)","v":{"$error":"#N/A"}},"-"]
[null,{"$f":"VLOOKUP(A420,Clients[],8,FALSE)","v":{"$error":"#N/A"}},null,{"$f":"VLOOKUP(C420,Produits[],4,FALSE)","v":{"$error":"#N/A"}},"-"]
[null,{"$f":"VLOOKUP(A421,Clients[],8,FALSE)","v":{"$error":"#N/A"}},null,{"$f":"VLOOKUP(C421,Produits[],4,FALSE)","v":{"$error":"#N/A"}},"-"]
[null,{"$f":"VLOOKUP(A422,Clients[],8,FALSE)","v":{"$error":"#N/A"}},null,{"$f":"VLOOKUP(C422,Produits[],4,FALSE)","v":{"$error":"#N/A"}},"-"]
[null,{"$f":"VLOOKUP(A423,Clients[],8,FALSE)","v":{"$error":"#N/A"}},null,{"$f":"VLOOKUP(C423,Produits[],4,FALSE)","v":{"$error":"#N/A"}},"-"]

{"sheet":"Ref","index":6,"n_rows":12,"n_cols":3,"rows_kept":12,"cut":false,"hidden":false,"merged":[]}
["Date"]
[{"$f":"TODAY()","v":"2016-06-03"}]
[{"$f":"A2+1","v":"2016-06-04"}]
[{"$f":"A2+2","v":"2016-06-05"}]
[{"$f":"A2+3","v":"2016-06-06"},null,"Attention pour la mise èa jour client pour que les ifnormations suivent"]
[{"$f":"A2+4","v":"2016-06-07"}]
[{"$f":"A2+5","v":"2016-06-08"},null,"Épurer la liste déroulante de date de commande pour pas avoir les semaines précédentes"]
[{"$f":"A2+6","v":"2016-06-09"},null,"Avoir procédure dans un onglet"]
[null,null,"Pouvoir imprimer sa liste de commande vierge au cas qu'il y ait un bug"]
[null,null,"Pour voir modifier une commande du jour si le client rappelle"]
[null,null,"Ajouter l'heure de la prise de commande "]
[null,null,"Exemple quand Rochebelle appelle après 12h, ça va dans la run de 8h30, avatn ça va dans la run de 5h30"]

{"sheet":"Instructions","index":7,"n_rows":21,"n_cols":1,"rows_kept":21,"cut":false,"hidden":false,"merged":[]}
["Instructions"]
[]
[]
[]
[]
[]
[]
[]
[]
[]
[]
[]
["Clients-produits"]
[]
["Ajout de produit - client existant"]
["Pour ajouter un produit pour un client, copier une ligne existante du client"]
["Insérer coller la ligne à la suite des produits"]
["Changer le numéro de produit pour le nouveau produit requis"]
[]
["Suppression de produit - client existant"]
["Simplement supprimer la ligne, avec clic droit et supprimer"]